{"text_format":"1","workbook":"xlsx","n_sheets":5,"sheets":["Рекомендации","Ипостасные","Здание","Этажи","справочники"],"not_rendered":{"charts":0,"images":3,"macros":1,"external_links":0,"defined_names":30,"comments":0,"pivot_tables":0},"unopened":[],"bounds":{"document_bytes":16777216,"sheet_cells":100000,"rows_first":2000,"rows_last":500,"rows_between":2000,"halvings":0,"cell_chars":16384,"cell_head_chars":4096},"cells_cut":0,"cells_raw":0,"read":"whole","date_system":"1900"}

{"sheet":"Рекомендации","index":0,"n_rows":50,"n_cols":1,"rows_kept":50,"cut":false,"hidden":false,"merged":[]}
["Методические рекомендации Главам МАИ и Главам подразделений ИВДИВО для применения Книги подразделения ИВДИВО"]
[]
["Утверждаю. КХ 08122016"]
["Редакция Книги 08 декабря 2016 г."]
[]
["Данная Книга является инструментом подразделения ИВДИВО и обязательна для применения."]
[]
["Книга содержит программы, при ее открытии Excel может запросить разрешения. Разрешайте, чтобы включить весь функционал этого инструмента вашего Служения. Если что-то не работает, значит вы не включили в Excel содержание Книги при ее открытии или у вас настолько старый Excel, что он не понимает применённый язык программирования."]
[]
["Применение Книги начинается с указания ее базовых параметров на листе \"Ипостасные\":"]
["1. В ячейку D2 введите номер Изначальности вашего подразделения."]
["2. Выберите вид состава вашего подразделения."]
["Настройка Книги на этом завершена. Можно вводить данные всех Советов и Составов подразделения и филиалов."]
["Идея в том, что именно в этой Книге должны содержаться данные столпа и контакты Ипостасных вашего подразделения. В контактах обязательно указывайте адрес электронной почты и номер телефона в международном формате."]
["Последовательность действий:"]
["1. На листе \"Ипостасные\" выбираем один из 16 составов и вводим Основной состав подразделения."]
["2. Вводим филиалы с Домами Отца. Логосов и Аватаров филиала с ДО необходимо ввести до ввода Синтезного состава, т.к. в столпе места этих Ипостасных филиалов чётко регламентированы и не могут быть заняты Синтезным составом. Для ввода филиалов с Домами Отца используйте кнопку «Добавить Дом Отца филиала». После каждого нажатия кнопки вводите ФИО Ипостасных филиала."]
["3. Вручную вводим Синтезный состав подразделения, последовательно заполняя вакансии Синтезного состава сверху вниз. Распределение Синтезного состава по Организациям и Домам Отца не регламентировано. Аватары сами набирают Синтезный состав в свои команды и руководят им."]
["4. Вводим Синтезный состав Домов Отца филиалов, последовательно заполняя вакансии Синтезного состава сверху вниз. Данная операция не автоматизирована, но проста в ручном исполнении: в окончании звания Ипостасного дописывайте: [филиал <название территории>]"]
["5. Вводим филиалы до трёх Ипостасных, последовательно заполняя вакансии Синтезного состава сверху вниз. Используйте кнопку «Добавить филиал до 3 Ипостасных». После каждого нажатия кнопки вводите ФИО Ипостасных филиала."]
["Данная последовательность действий реализует алгоритм, данный в Регламенте 13."]
[]
["Если вы ошиблись при вводе данных, исходный вид таблицы можно восстановить. Для этого выберите любой другой состав подразделения. А затем выберите свой состав. Эта операция сбрасывает изменения в столбце должностных званий, но не изменяет личные данные Ипостасных."]
["После ввода всех данных следует создать файл столпа Ипостасных подразделения."]
["Для этого на листе \"Ипостасные\" есть кнопка \"Столп\". Её нажатие запускает генерацию текстового файла в Word."]
[]
["Программа сканирует столбец D листа \"Ипостасные\" по всем введённым данным. В файл столпа входят только те позиции, в который заполнены ФИО Ипостасных."]
["Последовательность филиалов определяется исторически: в столпе выше тот филиал, который был стяжён ранее. Но сначала идут все филиалы с Домами Отца, за ними филиалы до трёх Ипостасных."]
[]
["После нажатия кнопок \"Столп\" или \"Контакты\" не вмешивайтесь в процесс генерации файла до его окончания. Не пользуйтесь клавиатурой и не нажимайте кнопки мыши."]
["Лист \"справочники\" редактированию не подлежит. Он нужен для технических целей."]
["Не имеет смысла редактировать файлы столпа и контактов. Все изменения вносите в Книгу, а требуемые файлы вы всегда сможете сгенерировать по мере необходимости."]
["На утверждение в ИВДИВО направляется именно файл столпа, который сгенерирован Книгой. Никакие корректировки в него не вносятся."]
[]
["В МАИ ИВДИВО направляйте:"]
["1. Файл утвержденного столпа подразделения ИВДИВО."]
["2. Файл контактов  подразделения ИВДИВО."]
["Саму Книгу высылать не надо. Контакты в открытом доступе не публикуются. МАИ ИВДИВО использует их только в служебных целях. Контакты необходимы прежде всего для организации горизонтальных взаимодействий между Ипостасными разных подразделений ИВДИВО."]
["Если вы, заполняя Книгу, совершили ошибочное действие, его можно отменить, нажав Ctrl+Z."]
["Изучение формул и программ Книги приветствуется. Но изменяйте их, лишь имея должную компетенцию и видя смысл своих действий. "]
["Книга обновляется согласно Распоряжениям и Регламентам ИВДИВО. Актуальная редакция всегда доступна на странице "]
["http://документы.ИВДИВО.орг/распоряжения/"]
[]
["Дата редакции Книги указана вверху этого листа."]
["Если вы скачали обновленную редакцию Книги, то:"]
["1. Сделайте в новой Книге базовые установки, как сказано выше."]
["2. Скопируйте в новую Книгу только данные Ипостасных из ячеек серого цвета. Формулы и программы копировать не надо. Процесс перехода на новую редакцию занимает 1-2-3-… минуты в зависимости от ваших умений и навыков работы в Excel."]
["При возникновении вопросов с филиалами высылайте в мой адрес вашу книгу, перечень ваших филиалов и список Ипостасных в каждом из них."]
["Глава МАИ ИВДИВО Сергей Кишиневский"]
["64z@mail.ru"]

{"sheet":"Ипостасные","index":1,"n_rows":274,"n_cols":18,"rows_kept":274,"cut":false,"hidden":false,"merged":[[8,0,8,2],[1,0,1,2]]}
[16,null,null,"Данные вводятся только в ячейки серого цвета!"]
[{"$f":"\"Книга подразделения ИВДИВО «\"&IFERROR(INDEX(справочники!L2:L17,A1),\"такого подразделения нет\")&\"».\"","v":"Книга подразделения ИВДИВО «16 Состав: 128 Служащих»."},null,null,256]
[null,null,"Наименование подразделения в родительном падеже:",{"$f":"IFERROR(INDEX(Название_подразделения_рп,MATCH(Изначальность,Номер_Изначальности,0)),\"такого подразделения нет\")","v":"ИВДИВО"},{"$f":"IF(OR(Изначальность>256,Изначальность<129),\"такого подразделения нет\",\" Изначальности\")","v":" Изначальности"},{"$f":"IFERROR(INDEX(Название_Подразделения,MATCH(Изначальность,Номер_Изначальности,0)),\"такого подразделения нет\")","v":"ИВДИВО"}]
[null,null,"Управление Синтеза",{"$f":"IFERROR(INDEX(_256рица_Синтеза_ИВО,MATCH(Изначальность,Номер_Изначальности,0)),\"такого подразделения нет\")","v":"ИВДИВО"},{"$f":"IFERROR(INDEX(Отделения,MATCH(Изначальность,Номер_Изначальности,0)),\" нет\")","v":"Р"}]
[null,null,"Территория (именительный падеж):",{"$f":"IFERROR(IF(D9=1,INDEX(Территория_,MATCH(Изначальность,Номер_Изначальности,0)),INDEX(Территория_,MATCH(Изначальность,Номер_Изначальности,0))),\" нет\")","v":"Москва"},{"$f":"IF(E4=\"Р\",\"Региональный\",\"Местный\")","v":"Региональный"}]
[null,null,"Территория (родительный падеж):",{"$f":"IFERROR(IF(D9=1,INDEX(Территории_,MATCH(D2,Номер_Изначальности,0)),INDEX(Территории_,MATCH(D2,Номер_Изначальности,0))),\" нет\")","v":"Москвы"},{"$f":"IF(E4=\"Р\",\"Регионального\",\"Местного\")","v":"Регионального"}]
[null,null,"Владыка",{"$f":"IFERROR(INDEX(ИВладыки_родит_падеж,257-Изначальность),\"такого Владыки нет\")","v":"Кут Хуми"}]
[null,null,"Владычица",{"$f":"IFERROR(INDEX(ИВладыки_родит_падеж,385-Изначальность),\"такого Владыки нет\")","v":"Фаинь"}]
[{"$f":"\"Мыслеобраз, Цель, Задача, Устремление \"&Наименование_Подразделения&\" \"&Изначальность&\" Изначальности, \"&Территория&\":\"","v":"Мыслеобраз, Цель, Задача, Устремление ИВДИВО 256 Изначальности, Москва:"},null,null,255]
["Отцовскость ИВО Синтезностью Созидающей Мощью Основ ИВДИВО ИВО",null,null,{"$f":"\"Мыслеобраз \"&Наименование_Подразделения&\" \"&Изначальность&\" Изначальности\"","v":"Мыслеобраз ИВДИВО 256 Изначальности"}]
["Синтезность концентрацией примененного Синтеза Иерархии 256И состоятельностью полномочий служащих синтезипостасно",null,null,{"$f":"\"Цель \"&Наименование_Подразделения&\" \"&Изначальность&\" Изначальности\"","v":"Цель ИВДИВО 256 Изначальности"}]
["Идивные технологии явления физичности Основ ИВО Синтезом ИС ИВДИВО",null,null,{"$f":"\"Задача \"&Наименование_Подразделения&\" \"&Изначальность&\" Изначальности\"","v":"Задача ИВДИВО 256 Изначальности"}]
["Наработать 64ую процессуальность 256 Части ИВО",null,null,{"$f":"\"Устремление \"&Наименование_Подразделения&\" \"&Изначальность&\" Изначальности\"","v":"Устремление ИВДИВО 256 Изначальности"}]
[]
["Совет Изначально Вышестоящего Отца:",null,null,"ФИО","E-mail","Тел.1","Тел.2","WhatsApp","Viber","Город","Служащий Синтеза","Поручения","Личные стяжания","Статус","Мыслеобраз","Цель","Задача","Устремление"]
[null,1,{"$f":"\"Отец, Ипостась Синтез Синтеза Изначально Вышестоящего Отца, Глава \"&Наименование_Подразделения&\" \"&Изначальность&\" Изначальности, Управления Синтеза Кут Хуми\"","v":"Отец, Ипостась Синтез Синтеза Изначально Вышестоящего Отца, Глава ИВДИВО 256 Изначальности, Управления Синтеза Кут Хуми"}]
[null,2,{"$f":"\"Владыка, Ипостась \"&IFERROR(INDEX(_256_ИВО,257-Изначальность),\"ошибка\")&\", Глава Высшей Школы Синтеза ИВДИВО \"&Изначальность&\" Изначальности, Управления Синтеза Иосифа\"","v":"Владыка, Ипостась ИВ Отца ИВО, Глава Высшей Школы Синтеза ИВДИВО 256 Изначальности, Управления Синтеза Иосифа"}]
[null,3,{"$f":"\"Учитель, Ипостась Синтеза Изначального Владыки Кут Хуми, Глава Изначально Метагалактической Академии Наук \"&Территории&\", Управления Синтеза Мории\"","v":"Учитель, Ипостась Синтеза Изначального Владыки Кут Хуми, Глава Изначально Метагалактической Академии Наук Москвы, Управления Синтеза Мории"}]
[null,4,{"$f":"\"Учитель, Ипостась Синтеза Изначального Владыки \"&Владыка&\", Глава Изначального Центра Ипостаси Синтеза \"&Наименование_Подразделения&\", Управления Синтеза Филиппа\"","v":"Учитель, Ипостась Синтеза Изначального Владыки Кут Хуми, Глава Изначального Центра Ипостаси Синтеза ИВДИВО, Управления Синтеза Филиппа"}]
[null,5,{"$f":"\"Учитель, Ипостась Синтеза Изначально Вышестоящего Отца, Глава Метагалактической Гражданской Конфедерации \"&Территории&\", Управления Синтеза Византия\"","v":"Учитель, Ипостась Синтеза Изначально Вышестоящего Отца, Глава Метагалактической Гражданской Конфедерации Москвы, Управления Синтеза Византия"}]
[null,6,{"$f":"\"Учитель, Ипостась Синтеза Изначально Вышестоящего Отца, Глава Дома Изначально Вышестоящего Отца Психодинамики \"&Изначальность&\" Изначальности, Управления Синтеза Янова\"","v":"Учитель, Ипостась Синтеза Изначально Вышестоящего Отца, Глава Дома Изначально Вышестоящего Отца Психодинамики 256 Изначальности, Управления Синтеза Янова"}]
[null,7,{"$f":"\"Учитель, Ипостась Синтеза Изначально Вышестоящего Отца, Глава Дома Изначально Вышестоящего Отца Статусов \"&Изначальность&\" Изначальности, Управления Синтеза Юлия\"","v":"Учитель, Ипостась Синтеза Изначально Вышестоящего Отца, Глава Дома Изначально Вышестоящего Отца Статусов 256 Изначальности, Управления Синтеза Юлия"}]
[null,8,{"$f":"\"Учитель, Ипостась Синтеза Изначально Вышестоящего Отца, Глава Дома Изначально Вышестоящего Отца Посвящений \"&Изначальность&\" Изначальности, Управления Синтеза Юсефа\"","v":"Учитель, Ипостась Синтеза Изначально Вышестоящего Отца, Глава Дома Изначально Вышестоящего Отца Посвящений 256 Изначальности, Управления Синтеза Юсефа"}]
[null,9,{"$f":"\"Учитель, Ипостась Синтеза Изначально Вышестоящего Отца, Глава Метагалактического Агентства Информации \"&Территории&\", Управления Синтеза Владомира\"","v":"Учитель, Ипостась Синтеза Изначально Вышестоящего Отца, Глава Метагалактического Агентства Информации Москвы, Управления Синтеза Владомира"}]
["Совет Изначально Вышестоящего Дома Изначально Вышестоящего Отца:"]
[null,10,"Логос, Ипостась Синтеза Изначально Вышестоящего Отца, Глава Дома Отца Генезиса ИВО, Управления Синтеза Саввы"]
[null,11,"Логос, Ипостась Синтеза Изначально Вышестоящего Отца, Глава Дома Отца Практик ИВО, Управления Синтеза Савелия"]
[null,12,"Логос, Ипостась Синтеза Изначально Вышестоящего Отца, Глава Дома Отца Человечности ИВО, Управления Синтеза Вильгельма"]
[null,13,"Логос, Ипостась Синтеза Изначально Вышестоящего Отца, Глава Дома Отца Служения ИВО, Управления Синтеза Юстаса"]
[null,14,"Логос, Ипостась Синтеза Изначально Вышестоящего Отца, Глава Дома Отца Взрастания ИВО, Управления Синтеза Александра"]
[null,15,"Логос, Ипостась Синтеза Изначально Вышестоящего Отца, Глава Дома Отца Воскрешения ИВО, Управления Синтеза Яромира"]
[null,16,"Логос, Ипостась Синтеза Изначально Вышестоящего Отца, Глава Дома Отца Пробуждения ИВО, Управления Синтеза Сераписа"]
[null,17,"Логос, Ипостась Синтеза Изначально Вышестоящего Отца, Глава Дома Отца Ипостаси ИВО, Управления Синтеза Эдуарда"]
[null,18,"Логос, Ипостась Синтеза Изначально Вышестоящего Отца, Глава Дома Отца Пассионарности ИВО, Управления Синтеза Фадея"]
[null,19,"Логос, Ипостась Синтеза Изначально Вышестоящего Отца, Глава Дома Отца Истинности ИВО, Управления Синтеза Серафима"]
[null,20,"Логос, Ипостась Синтеза Изначально Вышестоящего Отца, Глава Дома Отца Окскости ИВО, Управления Синтеза Святослава"]
[null,21,"Логос, Ипостась Синтеза Изначально Вышестоящего Отца, Глава Дома Отца Могущества ИВО, Управления Синтеза Эоана"]
[null,22,"Логос, Ипостась Синтеза Изначально Вышестоящего Отца, Глава Дома Отца Изначальности ИВО, Управления Синтеза Сергея"]
[null,23,"Логос, Ипостась Синтеза Изначально Вышестоящего Отца, Глава Дома Отца Присутствия ИВО, Управления Синтеза Сулеймана"]
[null,24,"Логос, Ипостась Синтеза Изначально Вышестоящего Отца, Глава Дома Отца Изначальной Метагалактики ИВО, Управления Синтеза Себастьяна"]
[null,25,"Логос, Ипостась Синтеза Изначально Вышестоящего Отца, Глава Дома Отца Метагалактики ИВО, Управления Синтеза Теодора"]
[null,26,"Логос, Ипостась Синтеза Изначально Вышестоящего Отца, Глава Дома Отца Планеты ИВО, Управления Синтеза Антея"]
[null,27,"Логос, Ипостась Синтеза Изначально Вышестоящего Отца, Глава Дома Отца Буддичности Человека ИВО, Управления Синтеза Наума"]
[null,28,"Логос, Ипостась Синтеза Изначально Вышестоящего Отца, Глава Дома Отца Всеединой Супергалактики ИВО, Управления Синтеза Велемира"]
[null,29,"Логос, Ипостась Синтеза Изначально Вышестоящего Отца, Глава Дома Отца Единой Галактики Метагалактики ИВО, Управления Синтеза Георга"]
[null,30,"Логос, Ипостась Синтеза Изначально Вышестоящего Отца, Глава Дома Отца Универсума Солнца ИВО, Управления Синтеза Алексея"]
[null,31,"Логос, Ипостась Синтеза Изначально Вышестоящего Отца, Глава Дома Отца Звёздной Вселенной ИВО, Управления Синтеза Эмиля"]
["Основной Состав:"]
[null,32,"Аватар, Ипостась Синтеза Физичности Изначально Вышестоящего Отца Управления Синтеза Дария, Ипостась Ипостасного Синтеза ВШС"]
[null,33,"Аватар, Ипостась Синтеза ИВД Аватара Изначально Вышестоящего Отца Управления Синтеза Валентина, Ипостась Профессионального Синтеза ВШС"]
[null,34,"Аватар, Ипостась Синтеза ИВ Воли Изначально Вышестоящего Отца Управления Синтеза Савия, Ипостась Синтеза Изначально Вышестоящего Отца ВШС"]
[null,35,"Аватар, Ипостась Синтеза ИВ Мудрости Изначально Вышестоящего Отца Управления Синтеза Вячеслава, Философский Синтез-Секретарь ВШС"]
[null,36,"Аватар, Ипостась Синтеза ИВ Любви Изначально Вышестоящего Отца Управления Синтеза Андрея, Ипостась Сиаматического Совета ИМАН"]
[null,37,"Аватар, Ипостась Синтеза ИВ Живы Изначально Вышестоящего Отца Управления Синтеза Давида, Ипостась Философского Совета ИМАН"]
[null,38,"Аватар, Ипостась Синтеза ИВ Творения Изначально Вышестоящего Отца Управления Синтеза Евгения, Ипостась Учёного Совета ИМАН"]
[null,39,"Аватар, Ипостась Синтеза ИВ Созидания Изначально Вышестоящего Отца Управления Синтеза Дмитрия, Академический Секретарь ИМАН"]
[null,40,"Аватар, Ипостась Синтеза ИВ Жизни Изначально Вышестоящего Отца Управления Синтеза Есения, Ипостась Синтез-Окскости"]
[null,41,"Аватар, Ипостась Синтеза ИВД Ипостаси Изначально Вышестоящего Отца Управления Синтеза Константина, Ипостась Синтез-Ипостасности"]
[null,42,"Аватар, Ипостась Синтеза ИВ Генезиса Изначально Вышестоящего Отца Управления Синтеза Ростислава, Ипостась Синтез-Метагалактичности"]
[null,43,"Аватар, Ипостась Синтеза ИВ Практик Изначально Вышестоящего Отца Управления Синтеза Яна, Изначальный Офис-секретарь ИВДИВО"]
[null,44,{"$f":"\"Аватар, Ипостась Синтеза ИВ Человечности Изначально Вышестоящего Отца Управления Синтеза Василия, Ипостась  \"&Р_М_Совета&\" Совета МГК\"","v":"Аватар, Ипостась Синтеза ИВ Человечности Изначально Вышестоящего Отца Управления Синтеза Василия, Ипостась  Регионального Совета МГК"}]
[null,45,{"$f":"\"Аватар, Ипостась Синтеза ИВ Служения Изначально Вышестоящего Отца Управления Синтеза Арсения, Ипостась  \"&Р_М_Совета&\" Совета МГК\"","v":"Аватар, Ипостась Синтеза ИВ Служения Изначально Вышестоящего Отца Управления Синтеза Арсения, Ипостась  Регионального Совета МГК"}]
[null,46,{"$f":"\"Аватар, Ипостась Синтеза ИВ Изначальной Метагалактичности Изначально Вышестоящего Отца Управления Синтеза Огюста, \"&Р_М_Совет&\"  Ревизор МГК\"","v":"Аватар, Ипостась Синтеза ИВ Изначальной Метагалактичности Изначально Вышестоящего Отца Управления Синтеза Огюста, Региональный  Ревизор МГК"}]
[null,47,{"$f":"\"Аватар, Ипостась Синтеза ИВ Изначальности Изначально Вышестоящего Отца Управления Синтеза Илия, \"&Р_М_Совет&\"  Секретарь МГК\"","v":"Аватар, Ипостась Синтеза ИВ Изначальности Изначально Вышестоящего Отца Управления Синтеза Илия, Региональный  Секретарь МГК"}]
[null,48,"Аватар, Ипостась Синтеза ИВ Метагалактичности Изначально Вышестоящего Отца Управления Синтеза Геральда, Ипостась Культуры Синтеза"]
[null,49,"Аватар, Ипостась Синтеза ИВД Служащего Изначально Вышестоящего Отца Управления Синтеза Платона, Ипостась Психодинамического Мастерства"]
[null,50,"Аватар, Ипостась Синтеза ИВ Пассионарности Идеи Изначально Вышестоящего Отца Управления Синтеза Николая, Ипостась Пассионарного Синтеза"]
[null,51,"Аватар, Ипостась Синтеза ИВ Истинности Сути Изначально Вышестоящего Отца Управления Синтеза Игоря, Частный Синтез-Секретарь ИВДИВО"]
[null,52,"Аватар, Ипостась Синтеза ИВ Окскости Смысла Изначально Вышестоящего Отца Управления Синтеза Яра, Ипостась Синтез-Генезиса"]
[null,53,"Аватар, Ипостась Синтеза ИВ Могущества Мысли Изначально Вышестоящего Отца Управления Синтеза Вадима, Ипостась Статус-Синтеза"]
[null,54,"Аватар, Ипостась Синтеза ИВ Воссоединённости Чувств Изначально Вышестоящего Отца Управления Синтеза Огнеслава, Ипостась Синтез-Стяжаний"]
[null,55,"Аватар, Ипостась Синтеза ИВ Образа Ощущений Изначально Вышестоящего Отца Управления Синтеза Марка, Праздничный Секретарь ИВДИВО"]
[null,56,"Аватар, Ипостась Синтеза ИВ Изначальной Метагалактики Движения ИВО Управления Синтеза Теона, Ипостась Синтез-Практик"]
[null,57,"Аватар, Ипостась Синтеза ИВД Посвящённого Изначально Вышестоящего Отца Управления Синтеза Трофима, Ипостась Синтез-Посвящений"]
[null,58,"Аватар, Ипостась Синтеза ИВ Духа Частей Изначально Вышестоящего Отца Управления Синтеза Емельяна, Ипостась Синтез-Инструментов"]
[null,59,"Аватар, Ипостась Синтеза ИВ Света Систем Изначально Вышестоящего Отца Управления Синтеза Ефрема, Энергопотенциальный Секретарь ИВДИВО"]
[null,60,"Аватар, Ипостась Синтеза ИВ Энергии Аппаратов Изначально Вышестоящего Отца Управления Синтеза Натана, Ипостась Синтез-Сайта ИВДИВО"]
[null,61,"Аватар, Ипостась Синтеза ИВ Субъядерности Частностей Изначально Вышестоящего Отца Управления Синтеза Артёма, Ипостась Синтез-Мышления"]
[null,62,"Аватар, Ипостась Синтеза ИВ Формы Абсолютности Изначально Вышестоящего Отца Управления Синтеза Игнатия, Ипостась Пресс-секретарь ИВДИВО"]
[null,63,"Аватар, Ипостась Синтеза ИВ Содержания Воскрешения ИзначальноВышестоящегоОтца Управления Синтеза Юлиана, Ипостась Дома Отца Генезиса ИВО"]
[null,64,"Аватар, Ипостась Синтеза ИВ Поле Пробуждения Изначально Вышестоящего Отца Управления Синтеза Аркадия, Ипостась Дома Отца Генезиса ИВО"]
[null,65,"Аватар, Ипостась Синтеза ИВД ИВ Человека Изначально Вышестоящего Отца Управления Синтеза Никиты, Ипостась Дома Отца Генезиса ИВО"]
[null,66,"Аватар, Ипостась Синтеза Владычества Статусов Изначально Вышестоящего Отца Управления Синтеза Олега, Ипостась Дома Отца Практик ИВО"]
[null,67,"Аватар, Ипостась Синтеза Прав Посвящений Изначально Вышестоящего Отца Управления Синтеза Владимира, Ипостась Дома Отца Практик ИВО"]
[null,68,"Аватар, Ипостась Синтеза Стратагемии Знаний Изначально Вышестоящего Отца Управления Синтеза Стефана, Ипостась Дома Отца Практик ИВО"]
[null,69,"Аватар, Ипостась Синтеза Мочьности Наблюдателя Изначально Вышестоящего Отца Управления Синтеза Горислава, Ипостась Дома Отца Человечности ИВО"]
[null,70,"Аватар, Ипостась Синтеза Голоса Полномочий Изначально Вышестоящего Отца Управления Синтеза Никона, Ипостась Дома Отца Человечности ИВО"]
[null,71,"Аватар, Ипостась Синтеза Интуиции Генезиса Изначально Вышестоящего Отца Управления Синтеза Эрика, Ипостась Дома Отца Человечности ИВО"]
[null,72,"Аватар, Ипостась Синтеза Парадигмы Отца Изначально Вышестоящего Отца Управления Синтеза Олафа, Ипостась Дома Отца Служения ИВО"]
[null,73,"Аватар, Ипостась Синтеза ИВД Человека Изначально Вышестоящего Отца Управления Синтеза Вацлава, Ипостась Дома Отца Служения ИВО"]
[null,74,"Аватар, Ипостась Синтеза Столпа Изначально Вышестоящего Отца Управления Синтеза Левия, Ипостась Дома Отца Служения ИВО"]
[null,75,"Аватар, Ипостась Синтеза Сутенности Изначально Вышестоящего Отца Управления Синтеза Руслана, Ипостась Дома Отца Взрастания ИВО"]
[null,76,"Аватар, Ипостась Синтеза ИВ Пассионарности Изначально Вышестоящего Отца Управления Синтеза Генриха, Ипостась Дома Отца Взрастания ИВО"]
[null,77,"Аватар, Ипостась Синтеза Чаши ОМ Изначально Вышестоящего Отца Управления Синтеза Владлена, Ипостась Дома Отца Взрастания ИВО"]
[null,78,"Аватар, Ипостась Синтеза Куба Созидания Изначально Вышестоящего Отца Управления Синтеза Борислава, Ипостась Дома Отца Воскрешения ИВО"]
[null,79,"Аватар, Ипостась Синтеза Потенциала Изначально Вышестоящего Отца Управления Синтеза Нестора, Ипостась Дома Отца Воскрешения ИВО"]
[null,80,"Аватар, Ипостась Синтеза Вечности Отца Изначально Вышестоящего Отца Управления Синтеза Аристарха, Ипостась Дома Отца Воскрешения ИВО"]
[null,81,"Аватар, Ипостась Синтеза ИВД Сына Изначально Вышестоящего Отца Управления Синтеза Альфреда, Ипостась Дома Отца Пробуждения ИВО"]
[null,82,"Аватар, Ипостась Синтеза Веры Изначально Вышестоящего Отца Управления Синтеза Егора, Ипостась Дома Отца Пробуждения ИВО"]
[null,83,"Аватар, Ипостась Синтеза Рацио Изначально Вышестоящего Отца Управления Синтеза Витольда, Ипостась Дома Отца Пробуждения ИВО"]
[null,84,"Аватар, Ипостась Синтеза Памяти Изначально Вышестоящего Отца Управления Синтеза Стократа, Ипостась Дома Отца Ипостаси ИВО"]
[null,85,"Аватар, Ипостась Синтеза Прозрения Изначально Вышестоящего Отца Управления Синтеза Глеба, Ипостась Дома Отца Ипостаси ИВО"]
[null,86,"Аватар, Ипостась Синтеза Униграммы Изначально Вышестоящего Отца Управления Синтеза Клавдия, Ипостась Дома Отца Ипостаси ИВО"]
[null,87,"Аватар, Ипостась Синтеза Мерности Изначально Вышестоящего Отца Управления Синтеза Теониса, Ипостась Дома Отца Пассионарности ИВО"]
[null,88,"Аватар, Ипостась Синтеза Заряженности Изначально Вышестоящего Отца Управления Синтеза Донана, Ипостась Дома Отца Пассионарности ИВО"]
[null,89,"Аватар, Ипостась Синтеза ИВД Дочери Изначально Вышестоящего Отца Управления Синтеза Альберта, Ипостась Дома Отца Пассионарности ИВО"]
[null,90,"Аватар, Ипостась Синтеза Образ-типа Изначально Вышестоящего Отца Управления Синтеза Степана, Ипостась Дома Отца Истинности ИВО"]
[null,91,"Аватар, Ипостась Синтеза Сообразительности Изначально Вышестоящего Отца Управления Синтеза Арсана, Ипостась Дома Отца Истинности ИВО"]
[null,92,"Аватар, Ипостась Синтеза Осмысленности Изначально Вышестоящего Отца Управления Синтеза Остапа, Ипостась Дома Отца Истинности ИВО"]
[null,93,"Аватар, Ипостась Синтеза Логики Изначально Вышестоящего Отца Управления Синтеза Романа, Ипостась Дома Отца Окскости ИВО"]
[null,94,"Аватар, Ипостась Синтеза Чувствознания Изначально Вышестоящего Отца Управления Синтеза Клима, Ипостась Дома Отца Окскости ИВО"]
[null,95,"Аватар, Ипостась Синтеза Проницания Изначально Вышестоящего Отца Управления Синтеза Петра, Ипостась Дома Отца Окскости ИВО"]
[null,96,"Аватар, Ипостась Синтеза Активности Изначально Вышестоящего Отца Управления Синтеза Макея, Ипостась Дома Отца Могущества ИВО"]
[null,97,"Аватар, Ипостась Синтеза ИВД Человека ИМг Изначально Вышестоящего Отца Управления Синтеза Аниса, Ипостась Дома Отца Могущества ИВО"]
[null,98,"Аватар, Ипостась Синтеза Ипостасного Тела Изначально Вышестоящего Отца Управления Синтеза Ара, Ипостась Дома Отца Могущества ИВО"]
[null,99,"Аватар, Ипостась Синтеза Истины Изначально Вышестоящего Отца Управления Синтеза Дорадия, Ипостась Дома Отца Изначальности ИВО"]
[null,100,"Аватар, Ипостась Синтеза Око Изначально Вышестоящего Отца Управления Синтеза Дора, Ипостась Дома Отца Изначальности ИВО"]
[null,101,"Аватар, Ипостась Синтеза Хум Изначально Вышестоящего Отца Управления Синтеза Понтелея, Ипостась Дома Отца Изначальности ИВО"]
[null,102,"Аватар, Ипостась Синтеза Абсолют Изначально Вышестоящего Отца Управления Синтеза Явира, Ипостась Дома Отца Присутствия ИВО"]
[null,103,"Аватар, Ипостась Синтеза Омега Изначально Вышестоящего Отца Управления Синтеза Триса, Ипостась Дома Отца Присутствия ИВО"]
[null,104,"Аватар, Ипостась Синтеза Монада Изначально Вышестоящего Отца Управления Синтеза Виктора, Ипостась Дома Отца Присутствия ИВО"]
[null,105,"Аватар, Ипостась Синтеза ИВД Человека Изначальности Изначально Вышестоящего Отца Управления Синтеза Визара, Ипостась Дома Отца ИМг ИВО"]
[null,106,"Аватар, Ипостась Синтеза Физического тела Изначально Вышестоящего Отца Управления Синтеза Ерёмы, Ипостась Дома Отца ИМг ИВО"]
[null,107,"Аватар, Ипостась Синтеза Разума Изначально Вышестоящего Отца Управления Синтеза Ираклия, Ипостась Дома Отца ИМг ИВО"]
[null,108,"Аватар, Ипостась Синтеза Сердца Изначально Вышестоящего Отца Управления Синтеза Елизара, Ипостась Дома Отца Метагалактики ИВО"]
[null,109,"Аватар, Ипостась Синтеза Мышления Изначально Вышестоящего Отца Управления Синтеза Градимира, Ипостась Дома Отца Метагалактики ИВО"]
[null,110,"Аватар, Ипостась Синтеза Головерсума Изначально Вышестоящего Отца Управления Синтеза Рустама, Ипостась Дома Отца Метагалактики ИВО"]
[null,111,"Аватар, Ипостась Синтеза Восприятия Изначально Вышестоящего Отца Управления Синтеза Октана, Ипостась Дома Отца Планеты ИВО"]
[null,112,"Аватар, Ипостась Синтеза Пламени Отца Изначально Вышестоящего Отца Управления Синтеза Силуана, Ипостась Дома Отца Планеты ИВО"]
[null,113,"Аватар, Ипостась Синтеза ИВД Человека Мг Изначально Вышестоящего Отца Управления Синтеза Лукьяна, Ипостась Дома Отца Планеты ИВО"]
[null,114,"Аватар, Ипостась Синтеза Синтезтела Изначально Вышестоящего Отца Управления Синтеза Люсьена, Ипостась Дома Отца Буддичности Человека ИВО"]
[null,115,"Аватар, Ипостась Синтеза Сознания Изначально Вышестоящего Отца Управления Синтеза Андриана, Ипостась Дома Отца Буддичности Человека ИВО"]
[null,116,"Аватар, Ипостась Синтеза Грааля Изначально Вышестоящего Отца Управления Синтеза Прокофия, Ипостась Дома Отца Буддичности Человека ИВО"]
[null,117,"Аватар, Ипостась Синтеза Синтезобраза ИзначальноВышестоящегоОтца Управления Синтеза Зарка, Ипостась Дома Отца Всеединой Супергалактики ИВО"]
[null,118,"Аватар, Ипостась Синтеза Провидения ИзначальноВышестоящегоОтца УправленияСинтеза Станиса, Ипостась Дома Отца Всеединой Супергалактики ИВО"]
[null,119,"Аватар, Ипостась Синтеза Нить Синтеза Изначально Вышестоящего Отца Управления Синтеза Панкрата, Ипостась Дома Отца Всеединой Супергалактики ИВО"]
[null,120,"Аватар, Ипостась Синтеза Мощи Отца Изначально Вышестоящего Отца Управления Синтеза Старка, Ипостась Дома Отца Единой Галактики ИВО"]
[null,121,"Аватар, Ипостась Синтеза ИВД Человека Планеты Изначально Вышестоящего Отца Управления Синтеза Дорофея,Ипостась Дома Отца Единой Галактики ИВО"]
[null,122,"Аватар, Ипостась Синтеза Трансвизора Изначально Вышестоящего Отца Управления Синтеза Якова, Ипостась Дома Отца Единой Галактики ИВО"]
[null,123,"Аватар, Ипостась Синтеза Интеллекта Изначально Вышестоящего Отца Управления Синтеза Ульяна, Ипостась Дома Отца Универсума Солнца ИВО"]
[null,124,"Аватар, Ипостась Синтеза Престола Изначально Вышестоящего Отца Управления Синтеза Германа, Ипостась Дома Отца Универсума Солнца ИВО"]
[null,125,"Аватар, Ипостась Синтеза Ума Изначально Вышестоящего Отца Управления Синтеза Радомира, Ипостась Дома Отца Универсума Солнца ИВО"]
[null,126,"Аватар, Ипостась Синтеза Души Изначально Вышестоящего Отца Управления Синтеза Октавия, Ипостась Дома Отца Звёздной Вселенной ИВО"]
[null,127,"Аватар, Ипостась Синтеза Слова Отца Изначально Вышестоящего Отца Управления Синтеза Кима, Ипостась Дома Отца Звёздной Вселенной ИВО"]
[null,128,"Аватар, Ипостась Синтеза Образа Отца Изначально Вышестоящего Отца Управления Синтеза Бонифация, Ипостась Дома Отца Звёздной Вселенной ИВО"]
["Синтезный Состав:"]
[null,129,"Ипостась Синтеза 383-Мерностного Синтезтела Изначально Вышестоящего Отца Изначально Вышестоящего Отца, Управления Синтеза Фаинь"]
[null,130,"Ипостась Синтеза 382-Мерностного Синтезтела Изначально Вышестоящего Владыки Изначально Вышестоящего Отца, Управления Синтеза Славии"]
[null,131,"Ипостась Синтеза 381-Мерностного Синтезтела Изначально Вышестоящего Учителя Изначально Вышестоящего Отца, Управления Синтеза Свет"]
[null,132,"Ипостась Синтеза 380-Мерностного Синтезтела Изначально Вышестоящего Логоса Изначально Вышестоящего Отца, Управления Синтеза Марины"]
[null,133,"Ипостась Синтеза 379-Мерностного Синтезтела Изначально Вышестоящего Аватара Изначально Вышестоящего Отца, Управления Синтеза Альбины"]
[null,134,"Ипостась Синтеза 378-Мерностного Синтезтела Изначально Вышестоящей Ипостаси Изначально Вышестоящего Отца, Управления Синтеза Вероники"]
[null,135,"Ипостась Синтеза 377-Мерностного Синтезтела Изначально Вышестоящего Служащего Изначально Вышестоящего Отца, Управления Синтеза Сианы"]
[null,136,"Ипостась Синтеза 376-Мерностного Синтезтела Изначально Вышестоящего Посвящённого Изначально Вышестоящего Отца, Управления Синтеза Оны"]
[null,137,"Ипостась Синтеза 375-Мерностного Синтезтела Изначально Вышестоящего Полномочного Изначально Вышестоящего Отца, Управления Синтеза Стефании"]
[null,138,"Ипостась Синтеза 374-Мерностного Синтезтела Изначально Вышестоящего Ману Изначально Вышестоящего Отца, Управления Синтеза Святы"]
[null,139,"Ипостась Синтеза 373-Мерностного Синтезтела Изначально Вышестоящего Теурга Изначально Вышестоящего Отца, Управления Синтеза Баяны"]
[null,140,"Ипостась Синтеза 372-Мерностного Синтезтела Изначально Вышестоящего Творца Изначально Вышестоящего Отца, Управления Синтеза Екатерины"]
[null,141,"Ипостась Синтеза 371-Мерностного Синтезтела Изначально Вышестоящего Аспекта Изначально Вышестоящего Отца, Управления Синтеза Сивиллы"]
[null,142,"Ипостась Синтеза 370-Мерностного Синтезтела Изначально Вышестоящего Майтрейи Изначально Вышестоящего Отца, Управления Синтеза Тамилы"]
[null,143,"Ипостась Синтеза 369-Мерностного Синтезтела Изначально Вышестоящего Христа Изначально Вышестоящего Отца, Управления Синтеза Ники"]
[null,144,"Ипостась Синтеза 368-Мерностного Синтезтела Изначально Вышестоящего Будды Изначально Вышестоящего Отца, Управления Синтеза Велетте"]
[null,145,"Ипостась Синтеза 367-Мерностного Синтезтела Изначально Вышестоящего ИВ Человека ИВышестоящего Отца, Управления Синтеза Эмилии"]
[null,146,"Ипостась Синтеза 366-Мерностного Синтезтела Изначально Вышестоящего Человека Изначально Вышестоящего Отца, Управления Синтеза Елены"]
[null,147,"Ипостась Синтеза 365-Мерностного Синтезтела Изначально Вышестоящего Сына Изначально Вышестоящего Отца, Управления Синтеза Валерии"]
[null,148,"Ипостась Синтеза 364-Мерностного Синтезтела Изначально Вышестоящей Дочери Изначально Вышестоящего Отца, Управления Синтеза Олеси"]
[null,149,"Ипостась Синтеза 363-Мерностного Синтезтела Изначально Вышестоящего Человека ИМетагалактики ИВО, Управления Синтеза Антуанетты"]
[null,150,"Ипостась Синтеза 362-Мерностного Синтезтела Изначально Вышестоящего Человека Изначальности ИВОтца, Управления Синтеза Юлианы"]
[null,151,"Ипостась Синтеза 361-Мерностного Синтезтела Изначально Вышестоящего Человека Метагалактики ИВОтца, Управления Синтеза Синтии"]
[null,152,"Ипостась Синтеза 360-Мерностного Синтезтела Изначально Вышестоящей Матери Изначально Вышестоящего Отца, Управления Синтеза Виктории"]
[null,153,"Ипостась Синтеза 359-Мерностного Синтезтела Изначально Вышестоящего Праведника ИВышестоящего Отца, Управления Синтеза Дариды"]
[null,154,"Ипостась Синтеза 358-Мерностного Синтезтела Изначально Вышестоящего Неизречённого ИВышестоящего Отца, Управления Синтеза Алины"]
[null,155,"Ипостась Синтеза 357-Мерностного Синтезтела Изначально Вышестоящего Всемогущего ИВышестоящего Отца, Управления Синтеза Софьи"]
[null,156,"Ипостась Синтеза 356-Мерностного Синтезтела Изначально Вышестоящего Предвечного ИВышестоящего Отца, Управления Синтеза Агафьи"]
[null,157,"Ипостась Синтеза 355-Мерностного Синтезтела Изначально Вышестоящего Предначального ИВышестоящего Отца, Управления Синтеза Дарьи"]
[null,158,"Ипостась Синтеза 354-Мерностного Синтезтела Изначально Вышестоящего Вседержителя ИВышестоящего Отца, Управления Синтеза Иланы"]
[null,159,"Ипостась Синтеза 353-Мерностного Синтезтела Изначально Вышестоящего Всевышнего Изначально Вышестоящего Отца, Управления Синтеза Яны"]
[null,160,"Ипостась Синтеза 352-Мерностного Синтезтела Изначально Вышестоящего Человека Планеты Изначально Вышестоящего Отца, Управления Синтеза Давлаты"]
[null,161,"Ипостась Синтеза 351-Мерностного Синтезтела Отца Изначальной Метагалактики Изначально Вышестоящего Отца, Управления Синтеза Ирины"]
[null,162,"Ипостась Синтеза 350-Мерностного Синтезтела Владыки Изначальной Метагалактики Изначально Вышестоящего Отца, Управления Синтеза Лины"]
[null,163,"Ипостась Синтеза 349-Мерностного Синтезтела Учителя Изначальной Метагалактики Изначально Вышестоящего Отца, Управления Синтеза Анастасии"]
[null,164,"Ипостась Синтеза 348-Мерностного Синтезтела Логоса Изначальной Метагалактики Изначально Вышестоящего Отца, Управления Синтеза Омы"]
[null,165,"Ипостась Синтеза 347-Мерностного Синтезтела Аватара Изначальной Метагалактики Изначально Вышестоящего Отца, Управления Синтеза Сольвейг"]
[null,166,"Ипостась Синтеза 346-Мерностного Синтезтела Ипостаси Изначальной Метагалактики Изначально Вышестоящего Отца, Управления Синтеза Октавии"]
[null,167,"Ипостась Синтеза 345-Мерностного Синтезтела Служащего Изначальной Метагалактики Изначально Вышестоящего Отца, Управления Синтеза Кристины"]
[null,168,"Ипостась Синтеза 344-Мерностного Синтезтела Посвящённого Изначальной Метагалактики Изначально Вышестоящего Отца, Управления Синтеза Версавии"]
[null,169,"Ипостась Синтеза 343-Мерностного Синтезтела Полномочного Изначальной Метагалактики Изначально Вышестоящего Отца, Управления Синтеза Ксении"]
[null,170,"Ипостась Синтеза 342-Мерностного Синтезтела Ману Изначальной Метагалактики Изначально Вышестоящего Отца, Управления Синтеза Эммы"]
[null,171,"Ипостась Синтеза 341-Мерностного Синтезтела Теурга Изначальной Метагалактики Изначально Вышестоящего Отца, Управления Синтеза Стафии"]
[null,172,"Ипостась Синтеза 340-Мерностного Синтезтела Творца Изначальной Метагалактики Изначально Вышестоящего Отца, Управления Синтеза Оксаны"]
[null,173,"Ипостась Синтеза 339-Мерностного Синтезтела Аспекта Изначальной Метагалактики Изначально Вышестоящего Отца, Управления Синтеза Ульяны"]
[null,174,"Ипостась Синтеза 338-Мерностного Синтезтела Майтрейю Изначальной Метагалактики ИВышестоящего Отца, Управления Синтеза Беатрисс"]
[null,175,"Ипостась Синтеза 337-Мерностного Синтезтела Христа Изначальной Метагалактики Изначально Вышестоящего Отца, Управления Синтеза Оливии"]
[null,176,"Ипостась Синтеза 336-Мерностного Синтезтела Будду Изначальной Метагалактики Изначально Вышестоящего Отца, Управления Синтеза Аллы"]
[null,177,"Ипостась Синтеза 335-Мерностного Синтезтела ИВ Человека ИВышестоящего Отца Изначальной Метагалактики, Управления Синтеза Натали"]
[null,178,"Ипостась Синтеза 334-Мерностного Синтезтела Человека Изначально Вышестоящего Отца Изначальной Метагалактики, Управления Синтеза Эвы"]
[null,179,"Ипостась Синтеза 333-Мерностного Синтезтела Сына Изначальной Метагалактики Изначально Вышестоящего Отца, Управления Синтеза Ланы"]
[null,180,"Ипостась Синтеза 332-Мерностного Синтезтела Дочери Изначальной Метагалактики Изначально Вышестоящего Отца, Управления Синтеза Одель"]
[null,181,"Ипостась Синтеза 331-Мерностного Синтезтела Человека Изначальной Метагалактики Изначально Вышестоящего Отца, Управления Синтеза Тамары"]
[null,182,"Ипостась Синтеза 330-Мерностного Синтезтела Человека Изначальности Изначальной Метагалактики Изначально Вышестоящего Отца, Управления Синтеза Нины"]
[null,183,"Ипостась Синтеза 329-Мерностного Синтезтела Человека Метагалактики Изначальной Метагалактики Изначально Вышестоящего Отца, Управления Синтеза Орфеи"]
[null,184,"Ипостась Синтеза 328-Мерностного Синтезтела Матери Изначальной Метагалактики Изначально Вышестоящего Отца, Управления Синтеза Вергилии"]
[null,185,"Ипостась Синтеза 327-Мерностного Синтезтела Праведника Изначальной Метагалактики Изначально Вышестоящего Отца, Управления Синтеза Василисы"]
[null,186,"Ипостась Синтеза 326-Мерностного Синтезтела Неизречённого Изначальной Метагалактики Изначально Вышестоящего Отца, Управления Синтеза Варвары"]
[null,187,"Ипостась Синтеза 325-Мерностного Синтезтела Всемогущего Изначальной Метагалактики Изначально Вышестоящего Отца, Управления Синтеза Арины"]
[null,188,"Ипостась Синтеза 324-Мерностного Синтезтела Предвечного Изначальной Метагалактики Изначально Вышестоящего Отца, Управления Синтеза Амалии"]
[null,189,"Ипостась Синтеза 323-Мерностного Синтезтела Предначального Изначальной Метагалактики Изначально Вышестоящего Отца, Управления Синтеза Елизаветы"]
[null,190,"Ипостась Синтеза 322-Мерностного Синтезтела Вседержителя Изначальной Метагалактики Изначально Вышестоящего Отца, Управления Синтеза Веры"]
[null,191,"Ипостась Синтеза 321-Мерностного Синтезтела Всевышнего Изначальной Метагалактики Изначально Вышестоящего Отца, Управления Синтеза Мирославы"]
[null,192,"Ипостась Синтеза 320-Мерностного Синтезтела Человека Планеты Изначальной Метагалактики Изначально Вышестоящего Отца, Управления Синтеза Даяны"]
[null,193,"Ипостась Синтеза 319-Мерностного Синтезтела Отца Изначальности Изначально Вышестоящего Отца, Управления Синтеза Стеллы"]
[null,194,"Ипостась Синтеза 318-Мерностного Синтезтела Владыки Изначальности Изначально Вышестоящего Отца, Управления Синтеза Доры"]
[null,195,"Ипостась Синтеза 317-Мерностного Синтезтела Учителя Изначальности Изначально Вышестоящего Отца, Управления Синтеза Клавдии"]
[null,196,"Ипостась Синтеза 316-Мерностного Синтезтела Логоса Изначальности Изначально Вышестоящего Отца, Управления Синтеза Лады"]
[null,197,"Ипостась Синтеза 315-Мерностного Синтезтела Аватара Изначальности Изначально Вышестоящего Отца, Управления Синтеза Ветты"]
[null,198,"Ипостась Синтеза 314-Мерностного Синтезтела Ипостаси Изначальности Изначально Вышестоящего Отца, Управления Синтеза Власты"]
[null,199,"Ипостась Синтеза 313-Мерностного Синтезтела Служащего Изначальности Изначально Вышестоящего Отца, Управления Синтеза Офелии"]
[null,200,"Ипостась Синтеза 312-Мерностного Синтезтела Посвящённого Изначальности Изначально Вышестоящего Отца, Управления Синтеза Данаи"]
[null,201,"Ипостась Синтеза 311-Мерностного Синтезтела Полномочного Изначальности Изначально Вышестоящего Отца, Управления Синтеза Ханны"]
[null,202,"Ипостась Синтеза 310-Мерностного Синтезтела Ману Изначальности Изначально Вышестоящего Отца, Управления Синтеза Хлои"]
[null,203,"Ипостась Синтеза 309-Мерностного Синтезтела Теурга Изначальности Изначально Вышестоящего Отца, Управления Синтеза Надежды"]
[null,204,"Ипостась Синтеза 308-Мерностного Синтезтела Творца Изначальности Изначально Вышестоящего Отца, Управления Синтеза Оллы"]
[null,205,"Ипостась Синтеза 307-Мерностного Синтезтела Аспекта Изначальности Изначально Вышестоящего Отца, Управления Синтеза Илоны"]
[null,206,"Ипостась Синтеза 306-Мерностного Синтезтела Майтрейи Изначальности Изначально Вышестоящего Отца, Управления Синтеза Генриетты"]
[null,207,"Ипостась Синтеза 305-Мерностного Синтезтела Христа Изначальности Изначально Вышестоящего Отца, Управления Синтеза Марии"]
[null,208,"Ипостась Синтеза 304-Мерностного Синтезтела Будды Изначальности Изначально Вышестоящего Отца, Управления Синтеза Глории"]
[null,209,"Ипостась Синтеза 303-Мерностного Синтезтела ИВЧеловека Изначально Вышестоящего Отца Изначальности, Управления Синтеза Констанции"]
[null,210,"Ипостась Синтеза 302-Мерностного Синтезтела Человека Изначально Вышестоящего Отца Изначальности, Управления Синтеза Стэвии"]
[null,211,"Ипостась Синтеза 301-Мерностного Синтезтела Сына Изначальности Изначально Вышестоящего Отца, Управления Синтеза Полины"]
[null,212,"Ипостась Синтеза 300-Мерностного Синтезтела Дочери Изначальности Изначально Вышестоящего Отца, Управления Синтеза Виры"]
[null,213,"Ипостась Синтеза 299-Мерностного Синтезтела Человека Изначальной Метагалактики Изначальности ИВОтца, Управления Синтеза Фанны"]
[null,214,"Ипостась Синтеза 298-Мерностного Синтезтела Человека Изначальности Изначально Вышестоящего Отца, Управления Синтеза Евгении"]
[null,215,"Ипостась Синтеза 297-Мерностного Синтезтела Человека Метагалактики Изначальности ИВышестоящего Отца, Управления Синтеза Элины"]
[null,216,"Ипостась Синтеза 296-Мерностного Синтезтела Матери Изначальности Изначально Вышестоящего Отца, Управления Синтеза Сары"]
[null,217,"Ипостась Синтеза 295-Мерностного Синтезтела Праведника Изначальности Изначально Вышестоящего Отца, Управления Синтеза Алевтины"]
[null,218,"Ипостась Синтеза 294-Мерностного Синтезтела Неизречённого Изначальности Изначально Вышестоящего Отца, Управления Синтеза Раисы"]
[null,219,"Ипостась Синтеза 293-Мерностного Синтезтела Всемогущего Изначальности Изначально Вышестоящего Отца, Управления Синтеза Авроры"]
[null,220,"Ипостась Синтеза 292-Мерностного Синтезтела Предвечного Изначальности Изначально Вышестоящего Отца, Управления Синтеза Диланы"]
[null,221,"Ипостась Синтеза 291-Мерностного Синтезтела Предначального Изначальности Изначально Вышестоящего Отца, Управления Синтеза Яси"]
[null,222,"Ипостась Синтеза 290-Мерностного Синтезтела Вседержителя Изначальности Изначально Вышестоящего Отца, Управления Синтеза Фиры"]
[null,223,"Ипостась Синтеза 289-Мерностного Синтезтела Всевышнего Изначальности Изначально Вышестоящего Отца, Управления Синтеза Омелии"]
[null,224,"Ипостась Синтеза 288-Мерностного Синтезтела Человека Планеты Изначальности Изначально Вышестоящего Отца, Управления Синтеза Мадлен"]
[null,225,"Ипостась Синтеза 287-Мерностного Синтезтела Отца Метагалактики Изначально Вышестоящего Отца, Управления Синтеза Риммы"]
[null,226,"Ипостась Синтеза 286-Мерностного Синтезтела Владыки Метагалактики Изначально Вышестоящего Отца, Управления Синтеза Беллы"]
[null,227,"Ипостась Синтеза 285-Мерностного Синтезтела Учителя Метагалактики Изначально Вышестоящего Отца, Управления Синтеза Агнии"]
[null,228,"Ипостась Синтеза 284-Мерностного Синтезтела Логоса Метагалактики Изначально Вышестоящего Отца, Управления Синтеза Фелиции"]
[null,229,"Ипостась Синтеза 283-Мерностного Синтезтела Аватара Метагалактики Изначально Вышестоящего Отца, Управления Синтеза Виталины"]
[null,230,"Ипостась Синтеза 282-Мерностного Синтезтела Ипостаси Метагалактики Изначально Вышестоящего Отца, Управления Синтеза Ноны"]
[null,231,"Ипостась Синтеза 281-Мерностного Синтезтела Служащего Метагалактики Изначально Вышестоящего Отца, Управления Синтеза Клементины"]
[null,232,"Ипостась Синтеза 280-Мерностного Синтезтела Посвящённого Метагалактики Изначально Вышестоящего Отца, Управления Синтеза Лиры"]
[null,233,"Ипостась Синтеза 279-Мерностного Синтезтела Полномочного Метагалактики Изначально Вышестоящего Отца, Управления Синтеза Ванессы"]
[null,234,"Ипостась Синтеза 278-Мерностного Синтезтела Ману Метагалактики Изначально Вышестоящего Отца, Управления Синтеза Евдокии"]
[null,235,"Ипостась Синтеза 277-Мерностного Синтезтела Теурга Метагалактики Изначально Вышестоящего Отца, Управления Синтеза Клары"]
[null,236,"Ипостась Синтеза 276-Мерностного Синтезтела Творца Метагалактики Изначально Вышестоящего Отца, Управления Синтеза Лизы"]
[null,237,"Ипостась Синтеза 275-Мерностного Синтезтела Аспекта Метагалактики Изначально Вышестоящего Отца, Управления Синтеза Сюзанны"]
[null,238,"Ипостась Синтеза 274-Мерностного Синтезтела Майтрейи Метагалактики Изначально Вышестоящего Отца, Управления Синтеза Сейлы"]
[null,239,"Ипостась Синтеза 273-Мерностного Синтезтела Христа Метагалактики Изначально Вышестоящего Отца, Управления Синтеза Русланы"]
[null,240,"Ипостась Синтеза 272-Мерностного Синтезтела Будды Метагалактики Изначально Вышестоящего Отца, Управления Синтеза Устины"]
[null,241,"Ипостась Синтеза 271-Мерностного Синтезтела ИВЧеловека Изначально Вышестоящего Отца Метагалактики, Управления Синтеза Марики"]
[null,242,"Ипостась Синтеза 270-Мерностного Синтезтела Человека Изначально Вышестоящего Отца Метагалактики, Управления Синтеза Франсуазы"]
[null,243,"Ипостась Синтеза 269-Мерностного Синтезтела Сына Метагалактики Изначально Вышестоящего Отца, Управления Синтеза Христины"]
[null,244,"Ипостась Синтеза 268-Мерностного Синтезтела Дочери Метагалактики Изначально Вышестоящего Отца, Управления Синтеза Иоланы"]
[null,245,"Ипостась Синтеза 267-Мерностного Синтезтела Человека Изначальной Метагалактики Метагалактики ИВОтца, Управления Синтеза Джесики"]
[null,246,"Ипостась Синтеза 266-Мерностного Синтезтела Человека Изначальности Метагалактики ИВышестоящего Отца, Управления Синтеза Сабины"]
[null,247,"Ипостась Синтеза 265-Мерностного Синтезтела Человека Метагалактики Изначально Вышестоящего Отца, Управления Синтеза Нелли"]
[null,248,"Ипостась Синтеза 264-Мерностного Синтезтела Матери Метагалактики Изначально Вышестоящего Отца, Управления Синтеза Санты"]
[null,249,"Ипостась Синтеза 263-Мерностного Синтезтела Праведника Метагалактики Изначально Вышестоящего Отца, Управления Синтеза Доротеи"]
[null,250,"Ипостась Синтеза 262-Мерностного Синтезтела Неизречённого Метагалактики Изначально Вышестоящего Отца, Управления Синтеза Янины"]
[null,251,"Ипостась Синтеза 261-Мерностного Синтезтела Всемогущего Метагалактики Изначально Вышестоящего Отца, Управления Синтеза Люции"]
[null,252,"Ипостась Синтеза 260-Мерностного Синтезтела Предвечного Метагалактики Изначально Вышестоящего Отца, Управления Синтеза Ирэн"]
[null,253,"Ипостась Синтеза 259-Мерностного Синтезтела Предначального Метагалактики Изначально Вышестоящего Отца, Управления Синтеза Сесилии"]
[null,254,"Ипостась Синтеза 258-Мерностного Синтезтела Вседержителя Метагалактики Изначально Вышестоящего Отца, Управления Синтеза Вериславы"]
[null,255,"Ипостась Синтеза 257-Мерностного Синтезтела Всевышнего Метагалактики Изначально Вышестоящего Отца, Управления Синтеза Станиславы"]
[null,256,"Ипостась Синтеза 256-Мерностного Синтезтела Человека Планеты Метагалактики Изначально Вышестоящего Отца, Управления Синтеза Милославы"]

{"sheet":"Здание","index":2,"n_rows":261,"n_cols":4,"rows_kept":261,"cut":false,"hidden":false,"merged":[[4,2,4,3],[0,2,0,3]]}
[null,null,{"$f":"\"Здание \"&Наименование_Подразделения&\" \"&Изначальность&\" Изначальности, \"&Территория &\"\nна 1 вышестоящем Присутствии \" &Изначальность & \" Изначальности\"","v":"Здание ИВДИВО 256 Изначальности, Москва\nна 1 вышестоящем Присутствии 256 Изначальности"}]
[]
[null,null,"Залы Иерархов ИВДИВО","Залы и кабинеты Ипостасных в Здании"]
[]
[null,null,"Зал Изначально Вышестоящего Отца"]
[256,null,{"$f":"\"Зал и кабинет \"&Ипостасные!C16&\" ИВО\nЗал и кабинет Изначального Владыки ИВО \"&справочники!K2","v":"Зал и кабинет Отец, Ипостась Синтез Синтеза Изначально Вышестоящего Отца, Глава ИВДИВО 256 Изначальности, Управления Синтеза Кут Хуми ИВО\nЗал и кабинет Изначального Владыки ИВО Кут Хуми"},{"$f":"IF(Ипостасные!D16=\"\",\"\", \"Зал и кабинет \"&Ипостасные!C16&\" \"&Ипостасные!D16)&\"\nЗал Совета ИВО\nЗал Совета ИВДИВО\"","v":"\nЗал Совета ИВО\nЗал Совета ИВДИВО"}]
[255,null,{"$f":"\"Зал и кабинет \"&Ипостасные!C17&\" ИВО\nЗал и кабинет Изначального Владыки ИВО \"&справочники!K3","v":"Зал и кабинет Владыка, Ипостась ИВ Отца ИВО, Глава Высшей Школы Синтеза ИВДИВО 256 Изначальности, Управления Синтеза Иосифа ИВО\nЗал и кабинет Изначального Владыки ИВО Иосифа"},{"$f":"IF(Ипостасные!D17=\"\",\"\", \"Зал и кабинет \"&Ипостасные!C17&\" \"&Ипостасные!D17)","v":""}]
[254,null,{"$f":"\"Зал и кабинет \"&Ипостасные!C18&\" ИВО\nЗал и кабинет Изначального Владыки ИВО \"&справочники!K4","v":"Зал и кабинет Учитель, Ипостась Синтеза Изначального Владыки Кут Хуми, Глава Изначально Метагалактической Академии Наук Москвы, Управления Синтеза Мории ИВО\nЗал и кабинет Изначального Владыки ИВО Мории"},{"$f":"IF(Ипостасные!D18=\"\",\"\", \"Зал и кабинет \"&Ипостасные!C18&\" \"&Ипостасные!D18)","v":""}]
[253,null,{"$f":"\"Зал и кабинет \"&Ипостасные!C19&\" ИВО\nЗал и кабинет Изначального Владыки ИВО \"&справочники!K5","v":"Зал и кабинет Учитель, Ипостась Синтеза Изначального Владыки Кут Хуми, Глава Изначального Центра Ипостаси Синтеза ИВДИВО, Управления Синтеза Филиппа ИВО\nЗал и кабинет Изначального Владыки ИВО Филиппа"},{"$f":"IF(Ипостасные!D19=\"\",\"\", \"Зал и кабинет \"&Ипостасные!C19&\" \"&Ипостасные!D19)","v":""}]
[252,null,{"$f":"\"Зал и кабинет \"&Ипостасные!C20&\" ИВО\nЗал и кабинет Изначального Владыки ИВО \"&справочники!K6","v":"Зал и кабинет Учитель, Ипостась Синтеза Изначально Вышестоящего Отца, Глава Метагалактической Гражданской Конфедерации Москвы, Управления Синтеза Византия ИВО\nЗал и кабинет Изначального Владыки ИВО Византия"},{"$f":"IF(Ипостасные!D20=\"\",\"\", \"Зал и кабинет \"&Ипостасные!C20&\" \"&Ипостасные!D20)","v":""}]
[251,null,{"$f":"\"Зал и кабинет \"&Ипостасные!C21&\" ИВО\nЗал и кабинет Изначального Владыки ИВО \"&справочники!K7","v":"Зал и кабинет Учитель, Ипостась Синтеза Изначально Вышестоящего Отца, Глава Дома Изначально Вышестоящего Отца Психодинамики 256 Изначальности, Управления Синтеза Янова ИВО\nЗал и кабинет Изначального Владыки ИВО Янова"},{"$f":"IF(Ипостасные!D21=\"\",\"\", \"Зал и кабинет \"&Ипостасные!C21&\" \"&Ипостасные!D21)","v":""}]
[250,null,{"$f":"\"Зал и кабинет \"&Ипостасные!C22&\" ИВО\nЗал и кабинет Изначального Владыки ИВО \"&справочники!K8","v":"Зал и кабинет Учитель, Ипостась Синтеза Изначально Вышестоящего Отца, Глава Дома Изначально Вышестоящего Отца Статусов 256 Изначальности, Управления Синтеза Юлия ИВО\nЗал и кабинет Изначального Владыки ИВО Юлия"},{"$f":"IF(Ипостасные!D22=\"\",\"\", \"Зал и кабинет \"&Ипостасные!C22&\" \"&Ипостасные!D22)","v":""}]
[249,null,{"$f":"\"Зал и кабинет \"&Ипостасные!C23&\" ИВО\nЗал и кабинет Изначального Владыки ИВО \"&справочники!K9","v":"Зал и кабинет Учитель, Ипостась Синтеза Изначально Вышестоящего Отца, Глава Дома Изначально Вышестоящего Отца Посвящений 256 Изначальности, Управления Синтеза Юсефа ИВО\nЗал и кабинет Изначального Владыки ИВО Юсефа"},{"$f":"IF(Ипостасные!D23=\"\",\"\", \"Зал и кабинет \"&Ипостасные!C23&\" \"&Ипостасные!D23)","v":""}]
[248,null,{"$f":"\"Зал и кабинет \"&Ипостасные!C24&\" ИВО\nЗал и кабинет Изначального Владыки ИВО \"&справочники!K10","v":"Зал и кабинет Учитель, Ипостась Синтеза Изначально Вышестоящего Отца, Глава Метагалактического Агентства Информации Москвы, Управления Синтеза Владомира ИВО\nЗал и кабинет Изначального Владыки ИВО Владомира"},{"$f":"IF(Ипостасные!D24=\"\",\"\", \"Зал и кабинет \"&Ипостасные!C24&\" \"&Ипостасные!D24)","v":""}]
[247,null,{"$f":"\"Зал и кабинет \"&Ипостасные!C26&\" ИВО\nЗал и кабинет Изначального Владыки ИВО \"&справочники!K11","v":"Зал и кабинет Логос, Ипостась Синтеза Изначально Вышестоящего Отца, Глава Дома Отца Генезиса ИВО, Управления Синтеза Саввы ИВО\nЗал и кабинет Изначального Владыки ИВО Саввы"},{"$f":"IF(Ипостасные!D26=\"\",\"\", \"Зал и кабинет \"&Ипостасные!C26&\" \"&Ипостасные!D26)","v":""}]
[246,null,{"$f":"\"Зал и кабинет \"&Ипостасные!C27&\" ИВО\nЗал и кабинет Изначального Владыки ИВО \"&справочники!K12","v":"Зал и кабинет Логос, Ипостась Синтеза Изначально Вышестоящего Отца, Глава Дома Отца Практик ИВО, Управления Синтеза Савелия ИВО\nЗал и кабинет Изначального Владыки ИВО Савелия"},{"$f":"IF(Ипостасные!D27=\"\",\"\", \"Зал и кабинет \"&Ипостасные!C27&\" \"&Ипостасные!D27)","v":""}]
[245,null,{"$f":"\"Зал и кабинет \"&Ипостасные!C28&\" ИВО\nЗал и кабинет Изначального Владыки ИВО \"&справочники!K13","v":"Зал и кабинет Логос, Ипостась Синтеза Изначально Вышестоящего Отца, Глава Дома Отца Человечности ИВО, Управления Синтеза Вильгельма ИВО\nЗал и кабинет Изначального Владыки ИВО Вильгельма"},{"$f":"IF(Ипостасные!D28=\"\",\"\", \"Зал и кабинет \"&Ипостасные!C28&\" \"&Ипостасные!D28)","v":""}]
[244,null,{"$f":"\"Зал и кабинет \"&Ипостасные!C29&\" ИВО\nЗал и кабинет Изначального Владыки ИВО \"&справочники!K14","v":"Зал и кабинет Логос, Ипостась Синтеза Изначально Вышестоящего Отца, Глава Дома Отца Служения ИВО, Управления Синтеза Юстаса ИВО\nЗал и кабинет Изначального Владыки ИВО Юстаса"},{"$f":"IF(Ипостасные!D29=\"\",\"\", \"Зал и кабинет \"&Ипостасные!C29&\" \"&Ипостасные!D29)","v":""}]
[243,null,{"$f":"\"Зал и кабинет \"&Ипостасные!C30&\" ИВО\nЗал и кабинет Изначального Владыки ИВО \"&справочники!K15","v":"Зал и кабинет Логос, Ипостась Синтеза Изначально Вышестоящего Отца, Глава Дома Отца Взрастания ИВО, Управления Синтеза Александра ИВО\nЗал и кабинет Изначального Владыки ИВО Александра"},{"$f":"IF(Ипостасные!D30=\"\",\"\", \"Зал и кабинет \"&Ипостасные!C30&\" \"&Ипостасные!D30)","v":""}]
[242,null,{"$f":"\"Зал и кабинет \"&Ипостасные!C31&\" ИВО\nЗал и кабинет Изначального Владыки ИВО \"&справочники!K16","v":"Зал и кабинет Логос, Ипостась Синтеза Изначально Вышестоящего Отца, Глава Дома Отца Воскрешения ИВО, Управления Синтеза Яромира ИВО\nЗал и кабинет Изначального Владыки ИВО Яромира"},{"$f":"IF(Ипостасные!D31=\"\",\"\", \"Зал и кабинет \"&Ипостасные!C31&\" \"&Ипостасные!D31)","v":""}]
[241,null,{"$f":"\"Зал и кабинет \"&Ипостасные!C32&\" ИВО\nЗал и кабинет Изначального Владыки ИВО \"&справочники!K17","v":"Зал и кабинет Логос, Ипостась Синтеза Изначально Вышестоящего Отца, Глава Дома Отца Пробуждения ИВО, Управления Синтеза Сераписа ИВО\nЗал и кабинет Изначального Владыки ИВО Сераписа"},{"$f":"IF(Ипостасные!D32=\"\",\"\", \"Зал и кабинет \"&Ипостасные!C32&\" \"&Ипостасные!D32)","v":""}]
[240,null,{"$f":"\"Зал и кабинет \"&Ипостасные!C33&\" ИВО\nЗал и кабинет Изначального Владыки ИВО \"&справочники!K18","v":"Зал и кабинет Логос, Ипостась Синтеза Изначально Вышестоящего Отца, Глава Дома Отца Ипостаси ИВО, Управления Синтеза Эдуарда ИВО\nЗал и кабинет Изначального Владыки ИВО Эдуарда"},{"$f":"IF(Ипостасные!D33=\"\",\"\", \"Зал и кабинет \"&Ипостасные!C33&\" \"&Ипостасные!D33)","v":""}]
[239,null,{"$f":"\"Зал и кабинет \"&Ипостасные!C34&\" ИВО\nЗал и кабинет Изначального Владыки ИВО \"&справочники!K19","v":"Зал и кабинет Логос, Ипостась Синтеза Изначально Вышестоящего Отца, Глава Дома Отца Пассионарности ИВО, Управления Синтеза Фадея ИВО\nЗал и кабинет Изначального Владыки ИВО Фадея"},{"$f":"IF(Ипостасные!D34=\"\",\"\", \"Зал и кабинет \"&Ипостасные!C34&\" \"&Ипостасные!D34)","v":""}]
[238,null,{"$f":"\"Зал и кабинет \"&Ипостасные!C35&\" ИВО\nЗал и кабинет Изначального Владыки ИВО \"&справочники!K20","v":"Зал и кабинет Логос, Ипостась Синтеза Изначально Вышестоящего Отца, Глава Дома Отца Истинности ИВО, Управления Синтеза Серафима ИВО\nЗал и кабинет Изначального Владыки ИВО Серафима"},{"$f":"IF(Ипостасные!D35=\"\",\"\", \"Зал и кабинет \"&Ипостасные!C35&\" \"&Ипостасные!D35)","v":""}]
[237,null,{"$f":"\"Зал и кабинет \"&Ипостасные!C36&\" ИВО\nЗал и кабинет Изначального Владыки ИВО \"&справочники!K21","v":"Зал и кабинет Логос, Ипостась Синтеза Изначально Вышестоящего Отца, Глава Дома Отца Окскости ИВО, Управления Синтеза Святослава ИВО\nЗал и кабинет Изначального Владыки ИВО Святослава"},{"$f":"IF(Ипостасные!D36=\"\",\"\", \"Зал и кабинет \"&Ипостасные!C36&\" \"&Ипостасные!D36)","v":""}]
[236,null,{"$f":"\"Зал и кабинет \"&Ипостасные!C37&\" ИВО\nЗал и кабинет Изначального Владыки ИВО \"&справочники!K22","v":"Зал и кабинет Логос, Ипостась Синтеза Изначально Вышестоящего Отца, Глава Дома Отца Могущества ИВО, Управления Синтеза Эоана ИВО\nЗал и кабинет Изначального Владыки ИВО Эоана"},{"$f":"IF(Ипостасные!D37=\"\",\"\", \"Зал и кабинет \"&Ипостасные!C37&\" \"&Ипостасные!D37)","v":""}]
[235,null,{"$f":"\"Зал и кабинет \"&Ипостасные!C38&\" ИВО\nЗал и кабинет Изначального Владыки ИВО \"&справочники!K23","v":"Зал и кабинет Логос, Ипостась Синтеза Изначально Вышестоящего Отца, Глава Дома Отца Изначальности ИВО, Управления Синтеза Сергея ИВО\nЗал и кабинет Изначального Владыки ИВО Сергея"},{"$f":"IF(Ипостасные!D38=\"\",\"\", \"Зал и кабинет \"&Ипостасные!C38&\" \"&Ипостасные!D38)","v":""}]
[234,null,{"$f":"\"Зал и кабинет \"&Ипостасные!C39&\" ИВО\nЗал и кабинет Изначального Владыки ИВО \"&справочники!K24","v":"Зал и кабинет Логос, Ипостась Синтеза Изначально Вышестоящего Отца, Глава Дома Отца Присутствия ИВО, Управления Синтеза Сулеймана ИВО\nЗал и кабинет Изначального Владыки ИВО Сулеймана"},{"$f":"IF(Ипостасные!D39=\"\",\"\", \"Зал и кабинет \"&Ипостасные!C39&\" \"&Ипостасные!D39)","v":""}]
[233,null,{"$f":"\"Зал и кабинет \"&Ипостасные!C40&\" ИВО\nЗал и кабинет Изначального Владыки ИВО \"&справочники!K25","v":"Зал и кабинет Логос, Ипостась Синтеза Изначально Вышестоящего Отца, Глава Дома Отца Изначальной Метагалактики ИВО, Управления Синтеза Себастьяна ИВО\nЗал и кабинет Изначального Владыки ИВО Себастьяна"},{"$f":"IF(Ипостасные!D40=\"\",\"\", \"Зал и кабинет \"&Ипостасные!C40&\" \"&Ипостасные!D40)","v":""}]
[232,null,{"$f":"\"Зал и кабинет \"&Ипостасные!C41&\" ИВО\nЗал и кабинет Изначального Владыки ИВО \"&справочники!K26","v":"Зал и кабинет Логос, Ипостась Синтеза Изначально Вышестоящего Отца, Глава Дома Отца Метагалактики ИВО, Управления Синтеза Теодора ИВО\nЗал и кабинет Изначального Владыки ИВО Теодора"},{"$f":"IF(Ипостасные!D41=\"\",\"\", \"Зал и кабинет \"&Ипостасные!C41&\" \"&Ипостасные!D41)","v":""}]
[231,null,{"$f":"\"Зал и кабинет \"&Ипостасные!C42&\" ИВО\nЗал и кабинет Изначального Владыки ИВО \"&справочники!K27","v":"Зал и кабинет Логос, Ипостась Синтеза Изначально Вышестоящего Отца, Глава Дома Отца Планеты ИВО, Управления Синтеза Антея ИВО\nЗал и кабинет Изначального Владыки ИВО Антея"},{"$f":"IF(Ипостасные!D42=\"\",\"\", \"Зал и кабинет \"&Ипостасные!C42&\" \"&Ипостасные!D42)","v":""}]
[230,null,{"$f":"\"Зал и кабинет \"&Ипостасные!C43&\" ИВО\nЗал и кабинет Изначального Владыки ИВО \"&справочники!K28","v":"Зал и кабинет Логос, Ипостась Синтеза Изначально Вышестоящего Отца, Глава Дома Отца Буддичности Человека ИВО, Управления Синтеза Наума ИВО\nЗал и кабинет Изначального Владыки ИВО Наума"},{"$f":"IF(Ипостасные!D43=\"\",\"\", \"Зал и кабинет \"&Ипостасные!C43&\" \"&Ипостасные!D43)","v":""}]
[229,null,{"$f":"\"Зал и кабинет \"&Ипостасные!C44&\" ИВО\nЗал и кабинет Изначального Владыки ИВО \"&справочники!K29","v":"Зал и кабинет Логос, Ипостась Синтеза Изначально Вышестоящего Отца, Глава Дома Отца Всеединой Супергалактики ИВО, Управления Синтеза Велемира ИВО\nЗал и кабинет Изначального Владыки ИВО Велемира"},{"$f":"IF(Ипостасные!D44=\"\",\"\", \"Зал и кабинет \"&Ипостасные!C44&\" \"&Ипостасные!D44)","v":""}]
[228,null,{"$f":"\"Зал и кабинет \"&Ипостасные!C45&\" ИВО\nЗал и кабинет Изначального Владыки ИВО \"&справочники!K30","v":"Зал и кабинет Логос, Ипостась Синтеза Изначально Вышестоящего Отца, Глава Дома Отца Единой Галактики Метагалактики ИВО, Управления Синтеза Георга ИВО\nЗал и кабинет Изначального Владыки ИВО Георга"},{"$f":"IF(Ипостасные!D45=\"\",\"\", \"Зал и кабинет \"&Ипостасные!C45&\" \"&Ипостасные!D45)","v":""}]
[227,null,{"$f":"\"Зал и кабинет \"&Ипостасные!C46&\" ИВО\nЗал и кабинет Изначального Владыки ИВО \"&справочники!K31","v":"Зал и кабинет Логос, Ипостась Синтеза Изначально Вышестоящего Отца, Глава Дома Отца Универсума Солнца ИВО, Управления Синтеза Алексея ИВО\nЗал и кабинет Изначального Владыки ИВО Алексея"},{"$f":"IF(Ипостасные!D46=\"\",\"\", \"Зал и кабинет \"&Ипостасные!C46&\" \"&Ипостасные!D46)","v":""}]
[226,null,{"$f":"\"Зал и кабинет \"&Ипостасные!C47&\" ИВО\nЗал и кабинет Изначального Владыки ИВО \"&справочники!K32","v":"Зал и кабинет Логос, Ипостась Синтеза Изначально Вышестоящего Отца, Глава Дома Отца Звёздной Вселенной ИВО, Управления Синтеза Эмиля ИВО\nЗал и кабинет Изначального Владыки ИВО Эмиля"},{"$f":"IF(Ипостасные!D47=\"\",\"\", \"Зал и кабинет \"&Ипостасные!C47&\" \"&Ипостасные!D47)","v":""}]
[225,null,{"$f":"\"Зал и кабинет \"&Ипостасные!C49&\" ИВО\nЗал и кабинет Изначального Владыки ИВО \"&справочники!K33","v":"Зал и кабинет Аватар, Ипостась Синтеза Физичности Изначально Вышестоящего Отца Управления Синтеза Дария, Ипостась Ипостасного Синтеза ВШС ИВО\nЗал и кабинет Изначального Владыки ИВО Дария"},{"$f":"IF(Ипостасные!D49=\"\",\"\", \"Зал и кабинет \"&Ипостасные!C49&\" \"&Ипостасные!D49)","v":""}]
[224,null,{"$f":"\"Зал и кабинет \"&Ипостасные!C50&\" ИВО\nЗал и кабинет Изначального Владыки ИВО \"&справочники!K34","v":"Зал и кабинет Аватар, Ипостась Синтеза ИВД Аватара Изначально Вышестоящего Отца Управления Синтеза Валентина, Ипостась Профессионального Синтеза ВШС ИВО\nЗал и кабинет Изначального Владыки ИВО Валентина"},{"$f":"IF(Ипостасные!D50=\"\",\"\", \"Зал и кабинет \"&Ипостасные!C50&\" \"&Ипостасные!D50)","v":""}]
[223,null,{"$f":"\"Зал и кабинет \"&Ипостасные!C51&\" ИВО\nЗал и кабинет Изначального Владыки ИВО \"&справочники!K35","v":"Зал и кабинет Аватар, Ипостась Синтеза ИВ Воли Изначально Вышестоящего Отца Управления Синтеза Савия, Ипостась Синтеза Изначально Вышестоящего Отца ВШС ИВО\nЗал и кабинет Изначального Владыки ИВО Савия"},{"$f":"IF(Ипостасные!D51=\"\",\"\", \"Зал и кабинет \"&Ипостасные!C51&\" \"&Ипостасные!D51)","v":""}]
[222,null,{"$f":"\"Зал и кабинет \"&Ипостасные!C52&\" ИВО\nЗал и кабинет Изначального Владыки ИВО \"&справочники!K36","v":"Зал и кабинет Аватар, Ипостась Синтеза ИВ Мудрости Изначально Вышестоящего Отца Управления Синтеза Вячеслава, Философский Синтез-Секретарь ВШС ИВО\nЗал и кабинет Изначального Владыки ИВО Вячеслава"},{"$f":"IF(Ипостасные!D52=\"\",\"\", \"Зал и кабинет \"&Ипостасные!C52&\" \"&Ипостасные!D52)","v":""}]
[221,null,{"$f":"\"Зал и кабинет \"&Ипостасные!C53&\" ИВО\nЗал и кабинет Изначального Владыки ИВО \"&справочники!K37","v":"Зал и кабинет Аватар, Ипостась Синтеза ИВ Любви Изначально Вышестоящего Отца Управления Синтеза Андрея, Ипостась Сиаматического Совета ИМАН ИВО\nЗал и кабинет Изначального Владыки ИВО Андрея"},{"$f":"IF(Ипостасные!D53=\"\",\"\", \"Зал и кабинет \"&Ипостасные!C53&\" \"&Ипостасные!D53)","v":""}]
[220,null,{"$f":"\"Зал и кабинет \"&Ипостасные!C54&\" ИВО\nЗал и кабинет Изначального Владыки ИВО \"&справочники!K38","v":"Зал и кабинет Аватар, Ипостась Синтеза ИВ Живы Изначально Вышестоящего Отца Управления Синтеза Давида, Ипостась Философского Совета ИМАН ИВО\nЗал и кабинет Изначального Владыки ИВО Давида"},{"$f":"IF(Ипостасные!D54=\"\",\"\", \"Зал и кабинет \"&Ипостасные!C54&\" \"&Ипостасные!D54)","v":""}]
[219,null,{"$f":"\"Зал и кабинет \"&Ипостасные!C55&\" ИВО\nЗал и кабинет Изначального Владыки ИВО \"&справочники!K39","v":"Зал и кабинет Аватар, Ипостась Синтеза ИВ Творения Изначально Вышестоящего Отца Управления Синтеза Евгения, Ипостась Учёного Совета ИМАН ИВО\nЗал и кабинет Изначального Владыки ИВО Евгения"},{"$f":"IF(Ипостасные!D55=\"\",\"\", \"Зал и кабинет \"&Ипостасные!C55&\" \"&Ипостасные!D55)","v":""}]
[218,null,{"$f":"\"Зал и кабинет \"&Ипостасные!C56&\" ИВО\nЗал и кабинет Изначального Владыки ИВО \"&справочники!K40","v":"Зал и кабинет Аватар, Ипостась Синтеза ИВ Созидания Изначально Вышестоящего Отца Управления Синтеза Дмитрия, Академический Секретарь ИМАН ИВО\nЗал и кабинет Изначального Владыки ИВО Дмитрия"},{"$f":"IF(Ипостасные!D56=\"\",\"\", \"Зал и кабинет \"&Ипостасные!C56&\" \"&Ипостасные!D56)","v":""}]
[217,null,{"$f":"\"Зал и кабинет \"&Ипостасные!C57&\" ИВО\nЗал и кабинет Изначального Владыки ИВО \"&справочники!K41","v":"Зал и кабинет Аватар, Ипостась Синтеза ИВ Жизни Изначально Вышестоящего Отца Управления Синтеза Есения, Ипостась Синтез-Окскости ИВО\nЗал и кабинет Изначального Владыки ИВО Есения"},{"$f":"IF(Ипостасные!D57=\"\",\"\", \"Зал и кабинет \"&Ипостасные!C57&\" \"&Ипостасные!D57)","v":""}]
[216,null,{"$f":"\"Зал и кабинет \"&Ипостасные!C58&\" ИВО\nЗал и кабинет Изначального Владыки ИВО \"&справочники!K42","v":"Зал и кабинет Аватар, Ипостась Синтеза ИВД Ипостаси Изначально Вышестоящего Отца Управления Синтеза Константина, Ипостась Синтез-Ипостасности ИВО\nЗал и кабинет Изначального Владыки ИВО Константина"},{"$f":"IF(Ипостасные!D58=\"\",\"\", \"Зал и кабинет \"&Ипостасные!C58&\" \"&Ипостасные!D58)","v":""}]
[215,null,{"$f":"\"Зал и кабинет \"&Ипостасные!C59&\" ИВО\nЗал и кабинет Изначального Владыки ИВО \"&справочники!K43","v":"Зал и кабинет Аватар, Ипостась Синтеза ИВ Генезиса Изначально Вышестоящего Отца Управления Синтеза Ростислава, Ипостась Синтез-Метагалактичности ИВО\nЗал и кабинет Изначального Владыки ИВО Ростислава"},{"$f":"IF(Ипостасные!D59=\"\",\"\", \"Зал и кабинет \"&Ипостасные!C59&\" \"&Ипостасные!D59)","v":""}]
[214,null,{"$f":"\"Зал и кабинет \"&Ипостасные!C60&\" ИВО\nЗал и кабинет Изначального Владыки ИВО \"&справочники!K44","v":"Зал и кабинет Аватар, Ипостась Синтеза ИВ Практик Изначально Вышестоящего Отца Управления Синтеза Яна, Изначальный Офис-секретарь ИВДИВО ИВО\nЗал и кабинет Изначального Владыки ИВО Яна"},{"$f":"IF(Ипостасные!D60=\"\",\"\", \"Зал и кабинет \"&Ипостасные!C60&\" \"&Ипостасные!D60)","v":""}]
[213,null,{"$f":"\"Зал и кабинет \"&Ипостасные!C61&\" ИВО\nЗал и кабинет Изначального Владыки ИВО \"&справочники!K45","v":"Зал и кабинет Аватар, Ипостась Синтеза ИВ Человечности Изначально Вышестоящего Отца Управления Синтеза Василия, Ипостась  Регионального Совета МГК ИВО\nЗал и кабинет Изначального Владыки ИВО Василия"},{"$f":"IF(Ипостасные!D61=\"\",\"\", \"Зал и кабинет \"&Ипостасные!C61&\" \"&Ипостасные!D61)","v":""}]
[212,null,{"$f":"\"Зал и кабинет \"&Ипостасные!C62&\" ИВО\nЗал и кабинет Изначального Владыки ИВО \"&справочники!K46","v":"Зал и кабинет Аватар, Ипостась Синтеза ИВ Служения Изначально Вышестоящего Отца Управления Синтеза Арсения, Ипостась  Регионального Совета МГК ИВО\nЗал и кабинет Изначального Владыки ИВО Арсения"},{"$f":"IF(Ипостасные!D62=\"\",\"\", \"Зал и кабинет \"&Ипостасные!C62&\" \"&Ипостасные!D62)","v":""}]
[211,null,{"$f":"\"Зал и кабинет \"&Ипостасные!C63&\" ИВО\nЗал и кабинет Изначального Владыки ИВО \"&справочники!K47","v":"Зал и кабинет Аватар, Ипостась Синтеза ИВ Изначальной Метагалактичности Изначально Вышестоящего Отца Управления Синтеза Огюста, Региональный  Ревизор МГК ИВО\nЗал и кабинет Изначального Владыки ИВО Огюста"},{"$f":"IF(Ипостасные!D63=\"\",\"\", \"Зал и кабинет \"&Ипостасные!C63&\" \"&Ипостасные!D63)","v":""}]
[210,null,{"$f":"\"Зал и кабинет \"&Ипостасные!C64&\" ИВО\nЗал и кабинет Изначального Владыки ИВО \"&справочники!K48","v":"Зал и кабинет Аватар, Ипостась Синтеза ИВ Изначальности Изначально Вышестоящего Отца Управления Синтеза Илия, Региональный  Секретарь МГК ИВО\nЗал и кабинет Изначального Владыки ИВО Илия"},{"$f":"IF(Ипостасные!D64=\"\",\"\", \"Зал и кабинет \"&Ипостасные!C64&\" \"&Ипостасные!D64)","v":""}]
[209,null,{"$f":"\"Зал и кабинет \"&Ипостасные!C65&\" ИВО\nЗал и кабинет Изначального Владыки ИВО \"&справочники!K49","v":"Зал и кабинет Аватар, Ипостась Синтеза ИВ Метагалактичности Изначально Вышестоящего Отца Управления Синтеза Геральда, Ипостась Культуры Синтеза ИВО\nЗал и кабинет Изначального Владыки ИВО Геральда"},{"$f":"IF(Ипостасные!D65=\"\",\"\", \"Зал и кабинет \"&Ипостасные!C65&\" \"&Ипостасные!D65)","v":""}]
[208,null,{"$f":"\"Зал и кабинет \"&Ипостасные!C66&\" ИВО\nЗал и кабинет Изначального Владыки ИВО \"&справочники!K50","v":"Зал и кабинет Аватар, Ипостась Синтеза ИВД Служащего Изначально Вышестоящего Отца Управления Синтеза Платона, Ипостась Психодинамического Мастерства ИВО\nЗал и кабинет Изначального Владыки ИВО Платона"},{"$f":"IF(Ипостасные!D66=\"\",\"\", \"Зал и кабинет \"&Ипостасные!C66&\" \"&Ипостасные!D66)","v":""}]
[207,null,{"$f":"\"Зал и кабинет \"&Ипостасные!C67&\" ИВО\nЗал и кабинет Изначального Владыки ИВО \"&справочники!K51","v":"Зал и кабинет Аватар, Ипостась Синтеза ИВ Пассионарности Идеи Изначально Вышестоящего Отца Управления Синтеза Николая, Ипостась Пассионарного Синтеза ИВО\nЗал и кабинет Изначального Владыки ИВО Николая"},{"$f":"IF(Ипостасные!D67=\"\",\"\", \"Зал и кабинет \"&Ипостасные!C67&\" \"&Ипостасные!D67)","v":""}]
[206,null,{"$f":"\"Зал и кабинет \"&Ипостасные!C68&\" ИВО\nЗал и кабинет Изначального Владыки ИВО \"&справочники!K52","v":"Зал и кабинет Аватар, Ипостась Синтеза ИВ Истинности Сути Изначально Вышестоящего Отца Управления Синтеза Игоря, Частный Синтез-Секретарь ИВДИВО ИВО\nЗал и кабинет Изначального Владыки ИВО Игоря"},{"$f":"IF(Ипостасные!D68=\"\",\"\", \"Зал и кабинет \"&Ипостасные!C68&\" \"&Ипостасные!D68)","v":""}]
[205,null,{"$f":"\"Зал и кабинет \"&Ипостасные!C69&\" ИВО\nЗал и кабинет Изначального Владыки ИВО \"&справочники!K53","v":"Зал и кабинет Аватар, Ипостась Синтеза ИВ Окскости Смысла Изначально Вышестоящего Отца Управления Синтеза Яра, Ипостась Синтез-Генезиса ИВО\nЗал и кабинет Изначального Владыки ИВО Яра"},{"$f":"IF(Ипостасные!D69=\"\",\"\", \"Зал и кабинет \"&Ипостасные!C69&\" \"&Ипостасные!D69)","v":""}]
[204,null,{"$f":"\"Зал и кабинет \"&Ипостасные!C70&\" ИВО\nЗал и кабинет Изначального Владыки ИВО \"&справочники!K54","v":"Зал и кабинет Аватар, Ипостась Синтеза ИВ Могущества Мысли Изначально Вышестоящего Отца Управления Синтеза Вадима, Ипостась Статус-Синтеза ИВО\nЗал и кабинет Изначального Владыки ИВО Вадима"},{"$f":"IF(Ипостасные!D70=\"\",\"\", \"Зал и кабинет \"&Ипостасные!C70&\" \"&Ипостасные!D70)","v":""}]
[203,null,{"$f":"\"Зал и кабинет \"&Ипостасные!C71&\" ИВО\nЗал и кабинет Изначального Владыки ИВО \"&справочники!K55","v":"Зал и кабинет Аватар, Ипостась Синтеза ИВ Воссоединённости Чувств Изначально Вышестоящего Отца Управления Синтеза Огнеслава, Ипостась Синтез-Стяжаний ИВО\nЗал и кабинет Изначального Владыки ИВО Огнеслава"},{"$f":"IF(Ипостасные!D71=\"\",\"\", \"Зал и кабинет \"&Ипостасные!C71&\" \"&Ипостасные!D71)","v":""}]
[202,null,{"$f":"\"Зал и кабинет \"&Ипостасные!C72&\" ИВО\nЗал и кабинет Изначального Владыки ИВО \"&справочники!K56","v":"Зал и кабинет Аватар, Ипостась Синтеза ИВ Образа Ощущений Изначально Вышестоящего Отца Управления Синтеза Марка, Праздничный Секретарь ИВДИВО ИВО\nЗал и кабинет Изначального Владыки ИВО Марка"},{"$f":"IF(Ипостасные!D72=\"\",\"\", \"Зал и кабинет \"&Ипостасные!C72&\" \"&Ипостасные!D72)","v":""}]
[201,null,{"$f":"\"Зал и кабинет \"&Ипостасные!C73&\" ИВО\nЗал и кабинет Изначального Владыки ИВО \"&справочники!K57","v":"Зал и кабинет Аватар, Ипостась Синтеза ИВ Изначальной Метагалактики Движения ИВО Управления Синтеза Теона, Ипостась Синтез-Практик ИВО\nЗал и кабинет Изначального Владыки ИВО Теона"},{"$f":"IF(Ипостасные!D73=\"\",\"\", \"Зал и кабинет \"&Ипостасные!C73&\" \"&Ипостасные!D73)","v":""}]
[200,null,{"$f":"\"Зал и кабинет \"&Ипостасные!C74&\" ИВО\nЗал и кабинет Изначального Владыки ИВО \"&справочники!K58","v":"Зал и кабинет Аватар, Ипостась Синтеза ИВД Посвящённого Изначально Вышестоящего Отца Управления Синтеза Трофима, Ипостась Синтез-Посвящений ИВО\nЗал и кабинет Изначального Владыки ИВО Трофима"},{"$f":"IF(Ипостасные!D74=\"\",\"\", \"Зал и кабинет \"&Ипостасные!C74&\" \"&Ипостасные!D74)","v":""}]
[199,null,{"$f":"\"Зал и кабинет \"&Ипостасные!C75&\" ИВО\nЗал и кабинет Изначального Владыки ИВО \"&справочники!K59","v":"Зал и кабинет Аватар, Ипостась Синтеза ИВ Духа Частей Изначально Вышестоящего Отца Управления Синтеза Емельяна, Ипостась Синтез-Инструментов ИВО\nЗал и кабинет Изначального Владыки ИВО Емельяна"},{"$f":"IF(Ипостасные!D75=\"\",\"\", \"Зал и кабинет \"&Ипостасные!C75&\" \"&Ипостасные!D75)","v":""}]
[198,null,{"$f":"\"Зал и кабинет \"&Ипостасные!C76&\" ИВО\nЗал и кабинет Изначального Владыки ИВО \"&справочники!K60","v":"Зал и кабинет Аватар, Ипостась Синтеза ИВ Света Систем Изначально Вышестоящего Отца Управления Синтеза Ефрема, Энергопотенциальный Секретарь ИВДИВО ИВО\nЗал и кабинет Изначального Владыки ИВО Ефрема"},{"$f":"IF(Ипостасные!D76=\"\",\"\", \"Зал и кабинет \"&Ипостасные!C76&\" \"&Ипостасные!D76)","v":""}]
[197,null,{"$f":"\"Зал и кабинет \"&Ипостасные!C77&\" ИВО\nЗал и кабинет Изначального Владыки ИВО \"&справочники!K61","v":"Зал и кабинет Аватар, Ипостась Синтеза ИВ Энергии Аппаратов Изначально Вышестоящего Отца Управления Синтеза Натана, Ипостась Синтез-Сайта ИВДИВО ИВО\nЗал и кабинет Изначального Владыки ИВО Натана"},{"$f":"IF(Ипостасные!D77=\"\",\"\", \"Зал и кабинет \"&Ипостасные!C77&\" \"&Ипостасные!D77)","v":""}]
[196,null,{"$f":"\"Зал и кабинет \"&Ипостасные!C78&\" ИВО\nЗал и кабинет Изначального Владыки ИВО \"&справочники!K62","v":"Зал и кабинет Аватар, Ипостась Синтеза ИВ Субъядерности Частностей Изначально Вышестоящего Отца Управления Синтеза Артёма, Ипостась Синтез-Мышления ИВО\nЗал и кабинет Изначального Владыки ИВО Артёма"},{"$f":"IF(Ипостасные!D78=\"\",\"\", \"Зал и кабинет \"&Ипостасные!C78&\" \"&Ипостасные!D78)","v":""}]
[195,null,{"$f":"\"Зал и кабинет \"&Ипостасные!C79&\" ИВО\nЗал и кабинет Изначального Владыки ИВО \"&справочники!K63","v":"Зал и кабинет Аватар, Ипостась Синтеза ИВ Формы Абсолютности Изначально Вышестоящего Отца Управления Синтеза Игнатия, Ипостась Пресс-секретарь ИВДИВО ИВО\nЗал и кабинет Изначального Владыки ИВО Игнатия"},{"$f":"IF(Ипостасные!D79=\"\",\"\", \"Зал и кабинет \"&Ипостасные!C79&\" \"&Ипостасные!D79)","v":""}]
[194,null,{"$f":"\"Зал и кабинет \"&Ипостасные!C80&\" ИВО\nЗал и кабинет Изначального Владыки ИВО \"&справочники!K64","v":"Зал и кабинет Аватар, Ипостась Синтеза ИВ Содержания Воскрешения ИзначальноВышестоящегоОтца Управления Синтеза Юлиана, Ипостась Дома Отца Генезиса ИВО ИВО\nЗал и кабинет Изначального Владыки ИВО Юлиана"},{"$f":"IF(Ипостасные!D80=\"\",\"\", \"Зал и кабинет \"&Ипостасные!C80&\" \"&Ипостасные!D80)","v":""}]
[193,null,{"$f":"\"Зал и кабинет \"&Ипостасные!C81&\" ИВО\nЗал и кабинет Изначального Владыки ИВО \"&справочники!K65","v":"Зал и кабинет Аватар, Ипостась Синтеза ИВ Поле Пробуждения Изначально Вышестоящего Отца Управления Синтеза Аркадия, Ипостась Дома Отца Генезиса ИВО ИВО\nЗал и кабинет Изначального Владыки ИВО Аркадия"},{"$f":"IF(Ипостасные!D81=\"\",\"\", \"Зал и кабинет \"&Ипостасные!C81&\" \"&Ипостасные!D81)","v":""}]
[192,null,{"$f":"\"Зал и кабинет \"&Ипостасные!C82&\" ИВО\nЗал и кабинет Изначального Владыки ИВО \"&справочники!K66","v":"Зал и кабинет Аватар, Ипостась Синтеза ИВД ИВ Человека Изначально Вышестоящего Отца Управления Синтеза Никиты, Ипостась Дома Отца Генезиса ИВО ИВО\nЗал и кабинет Изначального Владыки ИВО Никиты"},{"$f":"IF(Ипостасные!D82=\"\",\"\", \"Зал и кабинет \"&Ипостасные!C82&\" \"&Ипостасные!D82)","v":""}]
[191,null,{"$f":"\"Зал и кабинет \"&Ипостасные!C83&\" ИВО\nЗал и кабинет Изначального Владыки ИВО \"&справочники!K67","v":"Зал и кабинет Аватар, Ипостась Синтеза Владычества Статусов Изначально Вышестоящего Отца Управления Синтеза Олега, Ипостась Дома Отца Практик ИВО ИВО\nЗал и кабинет Изначального Владыки ИВО Олега"},{"$f":"IF(Ипостасные!D83=\"\",\"\", \"Зал и кабинет \"&Ипостасные!C83&\" \"&Ипостасные!D83)","v":""}]
[190,null,{"$f":"\"Зал и кабинет \"&Ипостасные!C84&\" ИВО\nЗал и кабинет Изначального Владыки ИВО \"&справочники!K68","v":"Зал и кабинет Аватар, Ипостась Синтеза Прав Посвящений Изначально Вышестоящего Отца Управления Синтеза Владимира, Ипостась Дома Отца Практик ИВО ИВО\nЗал и кабинет Изначального Владыки ИВО Владимира"},{"$f":"IF(Ипостасные!D84=\"\",\"\", \"Зал и кабинет \"&Ипостасные!C84&\" \"&Ипостасные!D84)","v":""}]
[189,null,{"$f":"\"Зал и кабинет \"&Ипостасные!C85&\" ИВО\nЗал и кабинет Изначального Владыки ИВО \"&справочники!K69","v":"Зал и кабинет Аватар, Ипостась Синтеза Стратагемии Знаний Изначально Вышестоящего Отца Управления Синтеза Стефана, Ипостась Дома Отца Практик ИВО ИВО\nЗал и кабинет Изначального Владыки ИВО Стефана"},{"$f":"IF(Ипостасные!D85=\"\",\"\", \"Зал и кабинет \"&Ипостасные!C85&\" \"&Ипостасные!D85)","v":""}]
[188,null,{"$f":"\"Зал и кабинет \"&Ипостасные!C86&\" ИВО\nЗал и кабинет Изначального Владыки ИВО \"&справочники!K70","v":"Зал и кабинет Аватар, Ипостась Синтеза Мочьности Наблюдателя Изначально Вышестоящего Отца Управления Синтеза Горислава, Ипостась Дома Отца Человечности ИВО ИВО\nЗал и кабинет Изначального Владыки ИВО Горислава"},{"$f":"IF(Ипостасные!D86=\"\",\"\", \"Зал и кабинет \"&Ипостасные!C86&\" \"&Ипостасные!D86)","v":""}]
[187,null,{"$f":"\"Зал и кабинет \"&Ипостасные!C87&\" ИВО\nЗал и кабинет Изначального Владыки ИВО \"&справочники!K71","v":"Зал и кабинет Аватар, Ипостась Синтеза Голоса Полномочий Изначально Вышестоящего Отца Управления Синтеза Никона, Ипостась Дома Отца Человечности ИВО ИВО\nЗал и кабинет Изначального Владыки ИВО Никона"},{"$f":"IF(Ипостасные!D87=\"\",\"\", \"Зал и кабинет \"&Ипостасные!C87&\" \"&Ипостасные!D87)","v":""}]
[186,null,{"$f":"\"Зал и кабинет \"&Ипостасные!C88&\" ИВО\nЗал и кабинет Изначального Владыки ИВО \"&справочники!K72","v":"Зал и кабинет Аватар, Ипостась Синтеза Интуиции Генезиса Изначально Вышестоящего Отца Управления Синтеза Эрика, Ипостась Дома Отца Человечности ИВО ИВО\nЗал и кабинет Изначального Владыки ИВО Эрика"},{"$f":"IF(Ипостасные!D88=\"\",\"\", \"Зал и кабинет \"&Ипостасные!C88&\" \"&Ипостасные!D88)","v":""}]
[185,null,{"$f":"\"Зал и кабинет \"&Ипостасные!C89&\" ИВО\nЗал и кабинет Изначального Владыки ИВО \"&справочники!K73","v":"Зал и кабинет Аватар, Ипостась Синтеза Парадигмы Отца Изначально Вышестоящего Отца Управления Синтеза Олафа, Ипостась Дома Отца Служения ИВО ИВО\nЗал и кабинет Изначального Владыки ИВО Олафа"},{"$f":"IF(Ипостасные!D89=\"\",\"\", \"Зал и кабинет \"&Ипостасные!C89&\" \"&Ипостасные!D89)","v":""}]
[184,null,{"$f":"\"Зал и кабинет \"&Ипостасные!C90&\" ИВО\nЗал и кабинет Изначального Владыки ИВО \"&справочники!K74","v":"Зал и кабинет Аватар, Ипостась Синтеза ИВД Человека Изначально Вышестоящего Отца Управления Синтеза Вацлава, Ипостась Дома Отца Служения ИВО ИВО\nЗал и кабинет Изначального Владыки ИВО Вацлава"},{"$f":"IF(Ипостасные!D90=\"\",\"\", \"Зал и кабинет \"&Ипостасные!C90&\" \"&Ипостасные!D90)","v":""}]
[183,null,{"$f":"\"Зал и кабинет \"&Ипостасные!C91&\" ИВО\nЗал и кабинет Изначального Владыки ИВО \"&справочники!K75","v":"Зал и кабинет Аватар, Ипостась Синтеза Столпа Изначально Вышестоящего Отца Управления Синтеза Левия, Ипостась Дома Отца Служения ИВО ИВО\nЗал и кабинет Изначального Владыки ИВО Левия"},{"$f":"IF(Ипостасные!D91=\"\",\"\", \"Зал и кабинет \"&Ипостасные!C91&\" \"&Ипостасные!D91)","v":""}]
[182,null,{"$f":"\"Зал и кабинет \"&Ипостасные!C92&\" ИВО\nЗал и кабинет Изначального Владыки ИВО \"&справочники!K76","v":"Зал и кабинет Аватар, Ипостась Синтеза Сутенности Изначально Вышестоящего Отца Управления Синтеза Руслана, Ипостась Дома Отца Взрастания ИВО ИВО\nЗал и кабинет Изначального Владыки ИВО Руслана"},{"$f":"IF(Ипостасные!D92=\"\",\"\", \"Зал и кабинет \"&Ипостасные!C92&\" \"&Ипостасные!D92)","v":""}]
[181,null,{"$f":"\"Зал и кабинет \"&Ипостасные!C93&\" ИВО\nЗал и кабинет Изначального Владыки ИВО \"&справочники!K77","v":"Зал и кабинет Аватар, Ипостась Синтеза ИВ Пассионарности Изначально Вышестоящего Отца Управления Синтеза Генриха, Ипостась Дома Отца Взрастания ИВО ИВО\nЗал и кабинет Изначального Владыки ИВО Генриха"},{"$f":"IF(Ипостасные!D93=\"\",\"\", \"Зал и кабинет \"&Ипостасные!C93&\" \"&Ипостасные!D93)","v":""}]
[180,null,{"$f":"\"Зал и кабинет \"&Ипостасные!C94&\" ИВО\nЗал и кабинет Изначального Владыки ИВО \"&справочники!K78","v":"Зал и кабинет Аватар, Ипостась Синтеза Чаши ОМ Изначально Вышестоящего Отца Управления Синтеза Владлена, Ипостась Дома Отца Взрастания ИВО ИВО\nЗал и кабинет Изначального Владыки ИВО Владлена"},{"$f":"IF(Ипостасные!D94=\"\",\"\", \"Зал и кабинет \"&Ипостасные!C94&\" \"&Ипостасные!D94)","v":""}]
[179,null,{"$f":"\"Зал и кабинет \"&Ипостасные!C95&\" ИВО\nЗал и кабинет Изначального Владыки ИВО \"&справочники!K79","v":"Зал и кабинет Аватар, Ипостась Синтеза Куба Созидания Изначально Вышестоящего Отца Управления Синтеза Борислава, Ипостась Дома Отца Воскрешения ИВО ИВО\nЗал и кабинет Изначального Владыки ИВО Борислава"},{"$f":"IF(Ипостасные!D95=\"\",\"\", \"Зал и кабинет \"&Ипостасные!C95&\" \"&Ипостасные!D95)","v":""}]
[178,null,{"$f":"\"Зал и кабинет \"&Ипостасные!C96&\" ИВО\nЗал и кабинет Изначального Владыки ИВО \"&справочники!K80","v":"Зал и кабинет Аватар, Ипостась Синтеза Потенциала Изначально Вышестоящего Отца Управления Синтеза Нестора, Ипостась Дома Отца Воскрешения ИВО ИВО\nЗал и кабинет Изначального Владыки ИВО Нестора"},{"$f":"IF(Ипостасные!D96=\"\",\"\", \"Зал и кабинет \"&Ипостасные!C96&\" \"&Ипостасные!D96)","v":""}]
[177,null,{"$f":"\"Зал и кабинет \"&Ипостасные!C97&\" ИВО\nЗал и кабинет Изначального Владыки ИВО \"&справочники!K81","v":"Зал и кабинет Аватар, Ипостась Синтеза Вечности Отца Изначально Вышестоящего Отца Управления Синтеза Аристарха, Ипостась Дома Отца Воскрешения ИВО ИВО\nЗал и кабинет Изначального Владыки ИВО Аристарха"},{"$f":"IF(Ипостасные!D97=\"\",\"\", \"Зал и кабинет \"&Ипостасные!C97&\" \"&Ипостасные!D97)","v":""}]
[176,null,{"$f":"\"Зал и кабинет \"&Ипостасные!C98&\" ИВО\nЗал и кабинет Изначального Владыки ИВО \"&справочники!K82","v":"Зал и кабинет Аватар, Ипостась Синтеза ИВД Сына Изначально Вышестоящего Отца Управления Синтеза Альфреда, Ипостась Дома Отца Пробуждения ИВО ИВО\nЗал и кабинет Изначального Владыки ИВО Альфреда"},{"$f":"IF(Ипостасные!D98=\"\",\"\", \"Зал и кабинет \"&Ипостасные!C98&\" \"&Ипостасные!D98)","v":""}]
[175,null,{"$f":"\"Зал и кабинет \"&Ипостасные!C99&\" ИВО\nЗал и кабинет Изначального Владыки ИВО \"&справочники!K83","v":"Зал и кабинет Аватар, Ипостась Синтеза Веры Изначально Вышестоящего Отца Управления Синтеза Егора, Ипостась Дома Отца Пробуждения ИВО ИВО\nЗал и кабинет Изначального Владыки ИВО Егора"},{"$f":"IF(Ипостасные!D99=\"\",\"\", \"Зал и кабинет \"&Ипостасные!C99&\" \"&Ипостасные!D99)","v":""}]
[174,null,{"$f":"\"Зал и кабинет \"&Ипостасные!C100&\" ИВО\nЗал и кабинет Изначального Владыки ИВО \"&справочники!K84","v":"Зал и кабинет Аватар, Ипостась Синтеза Рацио Изначально Вышестоящего Отца Управления Синтеза Витольда, Ипостась Дома Отца Пробуждения ИВО ИВО\nЗал и кабинет Изначального Владыки ИВО Витольда"},{"$f":"IF(Ипостасные!D100=\"\",\"\", \"Зал и кабинет \"&Ипостасные!C100&\" \"&Ипостасные!D100)","v":""}]
[173,null,{"$f":"\"Зал и кабинет \"&Ипостасные!C101&\" ИВО\nЗал и кабинет Изначального Владыки ИВО \"&справочники!K85","v":"Зал и кабинет Аватар, Ипостась Синтеза Памяти Изначально Вышестоящего Отца Управления Синтеза Стократа, Ипостась Дома Отца Ипостаси ИВО ИВО\nЗал и кабинет Изначального Владыки ИВО Стократа"},{"$f":"IF(Ипостасные!D101=\"\",\"\", \"Зал и кабинет \"&Ипостасные!C101&\" \"&Ипостасные!D101)","v":""}]
[172,null,{"$f":"\"Зал и кабинет \"&Ипостасные!C102&\" ИВО\nЗал и кабинет Изначального Владыки ИВО \"&справочники!K86","v":"Зал и кабинет Аватар, Ипостась Синтеза Прозрения Изначально Вышестоящего Отца Управления Синтеза Глеба, Ипостась Дома Отца Ипостаси ИВО ИВО\nЗал и кабинет Изначального Владыки ИВО Глеба"},{"$f":"IF(Ипостасные!D102=\"\",\"\", \"Зал и кабинет \"&Ипостасные!C102&\" \"&Ипостасные!D102)","v":""}]
[171,null,{"$f":"\"Зал и кабинет \"&Ипостасные!C103&\" ИВО\nЗал и кабинет Изначального Владыки ИВО \"&справочники!K87","v":"Зал и кабинет Аватар, Ипостась Синтеза Униграммы Изначально Вышестоящего Отца Управления Синтеза Клавдия, Ипостась Дома Отца Ипостаси ИВО ИВО\nЗал и кабинет Изначального Владыки ИВО Клавдия"},{"$f":"IF(Ипостасные!D103=\"\",\"\", \"Зал и кабинет \"&Ипостасные!C103&\" \"&Ипостасные!D103)","v":""}]
[170,null,{"$f":"\"Зал и кабинет \"&Ипостасные!C104&\" ИВО\nЗал и кабинет Изначального Владыки ИВО \"&справочники!K88","v":"Зал и кабинет Аватар, Ипостась Синтеза Мерности Изначально Вышестоящего Отца Управления Синтеза Теониса, Ипостась Дома Отца Пассионарности ИВО ИВО\nЗал и кабинет Изначального Владыки ИВО Теониса"},{"$f":"IF(Ипостасные!D104=\"\",\"\", \"Зал и кабинет \"&Ипостасные!C104&\" \"&Ипостасные!D104)","v":""}]
[169,null,{"$f":"\"Зал и кабинет \"&Ипостасные!C105&\" ИВО\nЗал и кабинет Изначального Владыки ИВО \"&справочники!K89","v":"Зал и кабинет Аватар, Ипостась Синтеза Заряженности Изначально Вышестоящего Отца Управления Синтеза Донана, Ипостась Дома Отца Пассионарности ИВО ИВО\nЗал и кабинет Изначального Владыки ИВО Донана"},{"$f":"IF(Ипостасные!D105=\"\",\"\", \"Зал и кабинет \"&Ипостасные!C105&\" \"&Ипостасные!D105)","v":""}]
[168,null,{"$f":"\"Зал и кабинет \"&Ипостасные!C106&\" ИВО\nЗал и кабинет Изначального Владыки ИВО \"&справочники!K90","v":"Зал и кабинет Аватар, Ипостась Синтеза ИВД Дочери Изначально Вышестоящего Отца Управления Синтеза Альберта, Ипостась Дома Отца Пассионарности ИВО ИВО\nЗал и кабинет Изначального Владыки ИВО Альберта"},{"$f":"IF(Ипостасные!D106=\"\",\"\", \"Зал и кабинет \"&Ипостасные!C106&\" \"&Ипостасные!D106)","v":""}]
[167,null,{"$f":"\"Зал и кабинет \"&Ипостасные!C107&\" ИВО\nЗал и кабинет Изначального Владыки ИВО \"&справочники!K91","v":"Зал и кабинет Аватар, Ипостась Синтеза Образ-типа Изначально Вышестоящего Отца Управления Синтеза Степана, Ипостась Дома Отца Истинности ИВО ИВО\nЗал и кабинет Изначального Владыки ИВО Степана"},{"$f":"IF(Ипостасные!D107=\"\",\"\", \"Зал и кабинет \"&Ипостасные!C107&\" \"&Ипостасные!D107)","v":""}]
[166,null,{"$f":"\"Зал и кабинет \"&Ипостасные!C108&\" ИВО\nЗал и кабинет Изначального Владыки ИВО \"&справочники!K92","v":"Зал и кабинет Аватар, Ипостась Синтеза Сообразительности Изначально Вышестоящего Отца Управления Синтеза Арсана, Ипостась Дома Отца Истинности ИВО ИВО\nЗал и кабинет Изначального Владыки ИВО Арсана"},{"$f":"IF(Ипостасные!D108=\"\",\"\", \"Зал и кабинет \"&Ипостасные!C108&\" \"&Ипостасные!D108)","v":""}]
[165,null,{"$f":"\"Зал и кабинет \"&Ипостасные!C109&\" ИВО\nЗал и кабинет Изначального Владыки ИВО \"&справочники!K93","v":"Зал и кабинет Аватар, Ипостась Синтеза Осмысленности Изначально Вышестоящего Отца Управления Синтеза Остапа, Ипостась Дома Отца Истинности ИВО ИВО\nЗал и кабинет Изначального Владыки ИВО Остапа"},{"$f":"IF(Ипостасные!D109=\"\",\"\", \"Зал и кабинет \"&Ипостасные!C109&\" \"&Ипостасные!D109)","v":""}]
[164,null,{"$f":"\"Зал и кабинет \"&Ипостасные!C110&\" ИВО\nЗал и кабинет Изначального Владыки ИВО \"&справочники!K94","v":"Зал и кабинет Аватар, Ипостась Синтеза Логики Изначально Вышестоящего Отца Управления Синтеза Романа, Ипостась Дома Отца Окскости ИВО ИВО\nЗал и кабинет Изначального Владыки ИВО Романа"},{"$f":"IF(Ипостасные!D110=\"\",\"\", \"Зал и кабинет \"&Ипостасные!C110&\" \"&Ипостасные!D110)","v":""}]
[163,null,{"$f":"\"Зал и кабинет \"&Ипостасные!C111&\" ИВО\nЗал и кабинет Изначального Владыки ИВО \"&справочники!K95","v":"Зал и кабинет Аватар, Ипостась Синтеза Чувствознания Изначально Вышестоящего Отца Управления Синтеза Клима, Ипостась Дома Отца Окскости ИВО ИВО\nЗал и кабинет Изначального Владыки ИВО Клима"},{"$f":"IF(Ипостасные!D111=\"\",\"\", \"Зал и кабинет \"&Ипостасные!C111&\" \"&Ипостасные!D111)","v":""}]
[162,null,{"$f":"\"Зал и кабинет \"&Ипостасные!C112&\" ИВО\nЗал и кабинет Изначального Владыки ИВО \"&справочники!K96","v":"Зал и кабинет Аватар, Ипостась Синтеза Проницания Изначально Вышестоящего Отца Управления Синтеза Петра, Ипостась Дома Отца Окскости ИВО ИВО\nЗал и кабинет Изначального Владыки ИВО Петра"},{"$f":"IF(Ипостасные!D112=\"\",\"\", \"Зал и кабинет \"&Ипостасные!C112&\" \"&Ипостасные!D112)","v":""}]
[161,null,{"$f":"\"Зал и кабинет \"&Ипостасные!C113&\" ИВО\nЗал и кабинет Изначального Владыки ИВО \"&справочники!K97","v":"Зал и кабинет Аватар, Ипостась Синтеза Активности Изначально Вышестоящего Отца Управления Синтеза Макея, Ипостась Дома Отца Могущества ИВО ИВО\nЗал и кабинет Изначального Владыки ИВО Макея"},{"$f":"IF(Ипостасные!D113=\"\",\"\", \"Зал и кабинет \"&Ипостасные!C113&\" \"&Ипостасные!D113)","v":""}]
[160,null,{"$f":"\"Зал и кабинет \"&Ипостасные!C114&\" ИВО\nЗал и кабинет Изначального Владыки ИВО \"&справочники!K98","v":"Зал и кабинет Аватар, Ипостась Синтеза ИВД Человека ИМг Изначально Вышестоящего Отца Управления Синтеза Аниса, Ипостась Дома Отца Могущества ИВО ИВО\nЗал и кабинет Изначального Владыки ИВО Аниса"},{"$f":"IF(Ипостасные!D114=\"\",\"\", \"Зал и кабинет \"&Ипостасные!C114&\" \"&Ипостасные!D114)","v":""}]
[159,null,{"$f":"\"Зал и кабинет \"&Ипостасные!C115&\" ИВО\nЗал и кабинет Изначального Владыки ИВО \"&справочники!K99","v":"Зал и кабинет Аватар, Ипостась Синтеза Ипостасного Тела Изначально Вышестоящего Отца Управления Синтеза Ара, Ипостась Дома Отца Могущества ИВО ИВО\nЗал и кабинет Изначального Владыки ИВО Ара"},{"$f":"IF(Ипостасные!D115=\"\",\"\", \"Зал и кабинет \"&Ипостасные!C115&\" \"&Ипостасные!D115)","v":""}]
[158,null,{"$f":"\"Зал и кабинет \"&Ипостасные!C116&\" ИВО\nЗал и кабинет Изначального Владыки ИВО \"&справочники!K100","v":"Зал и кабинет Аватар, Ипостась Синтеза Истины Изначально Вышестоящего Отца Управления Синтеза Дорадия, Ипостась Дома Отца Изначальности ИВО ИВО\nЗал и кабинет Изначального Владыки ИВО Дорадия"},{"$f":"IF(Ипостасные!D116=\"\",\"\", \"Зал и кабинет \"&Ипостасные!C116&\" \"&Ипостасные!D116)","v":""}]
[157,null,{"$f":"\"Зал и кабинет \"&Ипостасные!C117&\" ИВО\nЗал и кабинет Изначального Владыки ИВО \"&справочники!K101","v":"Зал и кабинет Аватар, Ипостась Синтеза Око Изначально Вышестоящего Отца Управления Синтеза Дора, Ипостась Дома Отца Изначальности ИВО ИВО\nЗал и кабинет Изначального Владыки ИВО Дор"},{"$f":"IF(Ипостасные!D117=\"\",\"\", \"Зал и кабинет \"&Ипостасные!C117&\" \"&Ипостасные!D117)","v":""}]
[156,null,{"$f":"\"Зал и кабинет \"&Ипостасные!C118&\" ИВО\nЗал и кабинет Изначального Владыки ИВО \"&справочники!K102","v":"Зал и кабинет Аватар, Ипостась Синтеза Хум Изначально Вышестоящего Отца Управления Синтеза Понтелея, Ипостась Дома Отца Изначальности ИВО ИВО\nЗал и кабинет Изначального Владыки ИВО Понтелея"},{"$f":"IF(Ипостасные!D118=\"\",\"\", \"Зал и кабинет \"&Ипостасные!C118&\" \"&Ипостасные!D118)","v":""}]
[155,null,{"$f":"\"Зал и кабинет \"&Ипостасные!C119&\" ИВО\nЗал и кабинет Изначального Владыки ИВО \"&справочники!K103","v":"Зал и кабинет Аватар, Ипостась Синтеза Абсолют Изначально Вышестоящего Отца Управления Синтеза Явира, Ипостась Дома Отца Присутствия ИВО ИВО\nЗал и кабинет Изначального Владыки ИВО Явира"},{"$f":"IF(Ипостасные!D119=\"\",\"\", \"Зал и кабинет \"&Ипостасные!C119&\" \"&Ипостасные!D119)","v":""}]
[154,null,{"$f":"\"Зал и кабинет \"&Ипостасные!C120&\" ИВО\nЗал и кабинет Изначального Владыки ИВО \"&справочники!K104","v":"Зал и кабинет Аватар, Ипостась Синтеза Омега Изначально Вышестоящего Отца Управления Синтеза Триса, Ипостась Дома Отца Присутствия ИВО ИВО\nЗал и кабинет Изначального Владыки ИВО Триса"},{"$f":"IF(Ипостасные!D120=\"\",\"\", \"Зал и кабинет \"&Ипостасные!C120&\" \"&Ипостасные!D120)","v":""}]
[153,null,{"$f":"\"Зал и кабинет \"&Ипостасные!C121&\" ИВО\nЗал и кабинет Изначального Владыки ИВО \"&справочники!K105","v":"Зал и кабинет Аватар, Ипостась Синтеза Монада Изначально Вышестоящего Отца Управления Синтеза Виктора, Ипостась Дома Отца Присутствия ИВО ИВО\nЗал и кабинет Изначального Владыки ИВО Виктора"},{"$f":"IF(Ипостасные!D121=\"\",\"\", \"Зал и кабинет \"&Ипостасные!C121&\" \"&Ипостасные!D121)","v":""}]
[152,null,{"$f":"\"Зал и кабинет \"&Ипостасные!C122&\" ИВО\nЗал и кабинет Изначального Владыки ИВО \"&справочники!K106","v":"Зал и кабинет Аватар, Ипостась Синтеза ИВД Человека Изначальности Изначально Вышестоящего Отца Управления Синтеза Визара, Ипостась Дома Отца ИМг ИВО ИВО\nЗал и кабинет Изначального Владыки ИВО Визара"},{"$f":"IF(Ипостасные!D122=\"\",\"\", \"Зал и кабинет \"&Ипостасные!C122&\" \"&Ипостасные!D122)","v":""}]
[151,null,{"$f":"\"Зал и кабинет \"&Ипостасные!C123&\" ИВО\nЗал и кабинет Изначального Владыки ИВО \"&справочники!K107","v":"Зал и кабинет Аватар, Ипостась Синтеза Физического тела Изначально Вышестоящего Отца Управления Синтеза Ерёмы, Ипостась Дома Отца ИМг ИВО ИВО\nЗал и кабинет Изначального Владыки ИВО Ерёмы"},{"$f":"IF(Ипостасные!D123=\"\",\"\", \"Зал и кабинет \"&Ипостасные!C123&\" \"&Ипостасные!D123)","v":""}]
[150,null,{"$f":"\"Зал и кабинет \"&Ипостасные!C124&\" ИВО\nЗал и кабинет Изначального Владыки ИВО \"&справочники!K108","v":"Зал и кабинет Аватар, Ипостась Синтеза Разума Изначально Вышестоящего Отца Управления Синтеза Ираклия, Ипостась Дома Отца ИМг ИВО ИВО\nЗал и кабинет Изначального Владыки ИВО Ираклия"},{"$f":"IF(Ипостасные!D124=\"\",\"\", \"Зал и кабинет \"&Ипостасные!C124&\" \"&Ипостасные!D124)","v":""}]
[149,null,{"$f":"\"Зал и кабинет \"&Ипостасные!C125&\" ИВО\nЗал и кабинет Изначального Владыки ИВО \"&справочники!K109","v":"Зал и кабинет Аватар, Ипостась Синтеза Сердца Изначально Вышестоящего Отца Управления Синтеза Елизара, Ипостась Дома Отца Метагалактики ИВО ИВО\nЗал и кабинет Изначального Владыки ИВО Елизара"},{"$f":"IF(Ипостасные!D125=\"\",\"\", \"Зал и кабинет \"&Ипостасные!C125&\" \"&Ипостасные!D125)","v":""}]
[148,null,{"$f":"\"Зал и кабинет \"&Ипостасные!C126&\" ИВО\nЗал и кабинет Изначального Владыки ИВО \"&справочники!K110","v":"Зал и кабинет Аватар, Ипостась Синтеза Мышления Изначально Вышестоящего Отца Управления Синтеза Градимира, Ипостась Дома Отца Метагалактики ИВО ИВО\nЗал и кабинет Изначального Владыки ИВО Градимира"},{"$f":"IF(Ипостасные!D126=\"\",\"\", \"Зал и кабинет \"&Ипостасные!C126&\" \"&Ипостасные!D126)","v":""}]
[147,null,{"$f":"\"Зал и кабинет \"&Ипостасные!C127&\" ИВО\nЗал и кабинет Изначального Владыки ИВО \"&справочники!K111","v":"Зал и кабинет Аватар, Ипостась Синтеза Головерсума Изначально Вышестоящего Отца Управления Синтеза Рустама, Ипостась Дома Отца Метагалактики ИВО ИВО\nЗал и кабинет Изначального Владыки ИВО Рустама"},{"$f":"IF(Ипостасные!D127=\"\",\"\", \"Зал и кабинет \"&Ипостасные!C127&\" \"&Ипостасные!D127)","v":""}]
[146,null,{"$f":"\"Зал и кабинет \"&Ипостасные!C128&\" ИВО\nЗал и кабинет Изначального Владыки ИВО \"&справочники!K112","v":"Зал и кабинет Аватар, Ипостась Синтеза Восприятия Изначально Вышестоящего Отца Управления Синтеза Октана, Ипостась Дома Отца Планеты ИВО ИВО\nЗал и кабинет Изначального Владыки ИВО Октана"},{"$f":"IF(Ипостасные!D128=\"\",\"\", \"Зал и кабинет \"&Ипостасные!C128&\" \"&Ипостасные!D128)","v":""}]
[145,null,{"$f":"\"Зал и кабинет \"&Ипостасные!C129&\" ИВО\nЗал и кабинет Изначального Владыки ИВО \"&справочники!K113","v":"Зал и кабинет Аватар, Ипостась Синтеза Пламени Отца Изначально Вышестоящего Отца Управления Синтеза Силуана, Ипостась Дома Отца Планеты ИВО ИВО\nЗал и кабинет Изначального Владыки ИВО Силуана"},{"$f":"IF(Ипостасные!D129=\"\",\"\", \"Зал и кабинет \"&Ипостасные!C129&\" \"&Ипостасные!D129)","v":""}]
[144,null,{"$f":"\"Зал и кабинет \"&Ипостасные!C130&\" ИВО\nЗал и кабинет Изначального Владыки ИВО \"&справочники!K114","v":"Зал и кабинет Аватар, Ипостась Синтеза ИВД Человека Мг Изначально Вышестоящего Отца Управления Синтеза Лукьяна, Ипостась Дома Отца Планеты ИВО ИВО\nЗал и кабинет Изначального Владыки ИВО Лукьяна"},{"$f":"IF(Ипостасные!D130=\"\",\"\", \"Зал и кабинет \"&Ипостасные!C130&\" \"&Ипостасные!D130)","v":""}]
[143,null,{"$f":"\"Зал и кабинет \"&Ипостасные!C131&\" ИВО\nЗал и кабинет Изначального Владыки ИВО \"&справочники!K115","v":"Зал и кабинет Аватар, Ипостась Синтеза Синтезтела Изначально Вышестоящего Отца Управления Синтеза Люсьена, Ипостась Дома Отца Буддичности Человека ИВО ИВО\nЗал и кабинет Изначального Владыки ИВО Люсьена"},{"$f":"IF(Ипостасные!D131=\"\",\"\", \"Зал и кабинет \"&Ипостасные!C131&\" \"&Ипостасные!D131)","v":""}]
[142,null,{"$f":"\"Зал и кабинет \"&Ипостасные!C132&\" ИВО\nЗал и кабинет Изначального Владыки ИВО \"&справочники!K116","v":"Зал и кабинет Аватар, Ипостась Синтеза Сознания Изначально Вышестоящего Отца Управления Синтеза Андриана, Ипостась Дома Отца Буддичности Человека ИВО ИВО\nЗал и кабинет Изначального Владыки ИВО Андриана"},{"$f":"IF(Ипостасные!D132=\"\",\"\", \"Зал и кабинет \"&Ипостасные!C132&\" \"&Ипостасные!D132)","v":""}]
[141,null,{"$f":"\"Зал и кабинет \"&Ипостасные!C133&\" ИВО\nЗал и кабинет Изначального Владыки ИВО \"&справочники!K117","v":"Зал и кабинет Аватар, Ипостась Синтеза Грааля Изначально Вышестоящего Отца Управления Синтеза Прокофия, Ипостась Дома Отца Буддичности Человека ИВО ИВО\nЗал и кабинет Изначального Владыки ИВО Прокофия"},{"$f":"IF(Ипостасные!D133=\"\",\"\", \"Зал и кабинет \"&Ипостасные!C133&\" \"&Ипостасные!D133)","v":""}]
[140,null,{"$f":"\"Зал и кабинет \"&Ипостасные!C134&\" ИВО\nЗал и кабинет Изначального Владыки ИВО \"&справочники!K118","v":"Зал и кабинет Аватар, Ипостась Синтеза Синтезобраза ИзначальноВышестоящегоОтца Управления Синтеза Зарка, Ипостась Дома Отца Всеединой Супергалактики ИВО ИВО\nЗал и кабинет Изначального Владыки ИВО Зарка"},{"$f":"IF(Ипостасные!D134=\"\",\"\", \"Зал и кабинет \"&Ипостасные!C134&\" \"&Ипостасные!D134)","v":""}]
[139,null,{"$f":"\"Зал и кабинет \"&Ипостасные!C135&\" ИВО\nЗал и кабинет Изначального Владыки ИВО \"&справочники!K119","v":"Зал и кабинет Аватар, Ипостась Синтеза Провидения ИзначальноВышестоящегоОтца УправленияСинтеза Станиса, Ипостась Дома Отца Всеединой Супергалактики ИВО ИВО\nЗал и кабинет Изначального Владыки ИВО Станиса"},{"$f":"IF(Ипостасные!D135=\"\",\"\", \"Зал и кабинет \"&Ипостасные!C135&\" \"&Ипостасные!D135)","v":""}]
[138,null,{"$f":"\"Зал и кабинет \"&Ипостасные!C136&\" ИВО\nЗал и кабинет Изначального Владыки ИВО \"&справочники!K120","v":"Зал и кабинет Аватар, Ипостась Синтеза Нить Синтеза Изначально Вышестоящего Отца Управления Синтеза Панкрата, Ипостась Дома Отца Всеединой Супергалактики ИВО ИВО\nЗал и кабинет Изначального Владыки ИВО Панкрата"},{"$f":"IF(Ипостасные!D136=\"\",\"\", \"Зал и кабинет \"&Ипостасные!C136&\" \"&Ипостасные!D136)","v":""}]
[137,null,{"$f":"\"Зал и кабинет \"&Ипостасные!C137&\" ИВО\nЗал и кабинет Изначального Владыки ИВО \"&справочники!K121","v":"Зал и кабинет Аватар, Ипостась Синтеза Мощи Отца Изначально Вышестоящего Отца Управления Синтеза Старка, Ипостась Дома Отца Единой Галактики ИВО ИВО\nЗал и кабинет Изначального Владыки ИВО Старка"},{"$f":"IF(Ипостасные!D137=\"\",\"\", \"Зал и кабинет \"&Ипостасные!C137&\" \"&Ипостасные!D137)","v":""}]
[136,null,{"$f":"\"Зал и кабинет \"&Ипостасные!C138&\" ИВО\nЗал и кабинет Изначального Владыки ИВО \"&справочники!K122","v":"Зал и кабинет Аватар, Ипостась Синтеза ИВД Человека Планеты Изначально Вышестоящего Отца Управления Синтеза Дорофея,Ипостась Дома Отца Единой Галактики ИВО ИВО\nЗал и кабинет Изначального Владыки ИВО Дорофея"},{"$f":"IF(Ипостасные!D138=\"\",\"\", \"Зал и кабинет \"&Ипостасные!C138&\" \"&Ипостасные!D138)","v":""}]
[135,null,{"$f":"\"Зал и кабинет \"&Ипостасные!C139&\" ИВО\nЗал и кабинет Изначального Владыки ИВО \"&справочники!K123","v":"Зал и кабинет Аватар, Ипостась Синтеза Трансвизора Изначально Вышестоящего Отца Управления Синтеза Якова, Ипостась Дома Отца Единой Галактики ИВО ИВО\nЗал и кабинет Изначального Владыки ИВО Якова"},{"$f":"IF(Ипостасные!D139=\"\",\"\", \"Зал и кабинет \"&Ипостасные!C139&\" \"&Ипостасные!D139)","v":""}]
[134,null,{"$f":"\"Зал и кабинет \"&Ипостасные!C140&\" ИВО\nЗал и кабинет Изначального Владыки ИВО \"&справочники!K124","v":"Зал и кабинет Аватар, Ипостась Синтеза Интеллекта Изначально Вышестоящего Отца Управления Синтеза Ульяна, Ипостась Дома Отца Универсума Солнца ИВО ИВО\nЗал и кабинет Изначального Владыки ИВО Ульяна"},{"$f":"IF(Ипостасные!D140=\"\",\"\", \"Зал и кабинет \"&Ипостасные!C140&\" \"&Ипостасные!D140)","v":""}]
[133,null,{"$f":"\"Зал и кабинет \"&Ипостасные!C141&\" ИВО\nЗал и кабинет Изначального Владыки ИВО \"&справочники!K125","v":"Зал и кабинет Аватар, Ипостась Синтеза Престола Изначально Вышестоящего Отца Управления Синтеза Германа, Ипостась Дома Отца Универсума Солнца ИВО ИВО\nЗал и кабинет Изначального Владыки ИВО Германа"},{"$f":"IF(Ипостасные!D141=\"\",\"\", \"Зал и кабинет \"&Ипостасные!C141&\" \"&Ипостасные!D141)","v":""}]
[132,null,{"$f":"\"Зал и кабинет \"&Ипостасные!C142&\" ИВО\nЗал и кабинет Изначального Владыки ИВО \"&справочники!K126","v":"Зал и кабинет Аватар, Ипостась Синтеза Ума Изначально Вышестоящего Отца Управления Синтеза Радомира, Ипостась Дома Отца Универсума Солнца ИВО ИВО\nЗал и кабинет Изначального Владыки ИВО Радомира"},{"$f":"IF(Ипостасные!D142=\"\",\"\", \"Зал и кабинет \"&Ипостасные!C142&\" \"&Ипостасные!D142)","v":""}]
[131,null,{"$f":"\"Зал и кабинет \"&Ипостасные!C143&\" ИВО\nЗал и кабинет Изначального Владыки ИВО \"&справочники!K127","v":"Зал и кабинет Аватар, Ипостась Синтеза Души Изначально Вышестоящего Отца Управления Синтеза Октавия, Ипостась Дома Отца Звёздной Вселенной ИВО ИВО\nЗал и кабинет Изначального Владыки ИВО Октавия"},{"$f":"IF(Ипостасные!D143=\"\",\"\", \"Зал и кабинет \"&Ипостасные!C143&\" \"&Ипостасные!D143)","v":""}]
[130,null,{"$f":"\"Зал и кабинет \"&Ипостасные!C144&\" ИВО\nЗал и кабинет Изначального Владыки ИВО \"&справочники!K128","v":"Зал и кабинет Аватар, Ипостась Синтеза Слова Отца Изначально Вышестоящего Отца Управления Синтеза Кима, Ипостась Дома Отца Звёздной Вселенной ИВО ИВО\nЗал и кабинет Изначального Владыки ИВО Кима"},{"$f":"IF(Ипостасные!D144=\"\",\"\", \"Зал и кабинет \"&Ипостасные!C144&\" \"&Ипостасные!D144)","v":""}]
[129,null,{"$f":"\"Зал и кабинет \"&Ипостасные!C145&\" ИВО\nЗал и кабинет Изначального Владыки ИВО \"&справочники!K129","v":"Зал и кабинет Аватар, Ипостась Синтеза Образа Отца Изначально Вышестоящего Отца Управления Синтеза Бонифация, Ипостась Дома Отца Звёздной Вселенной ИВО ИВО\nЗал и кабинет Изначального Владыки ИВО Бонифация"},{"$f":"IF(Ипостасные!D145=\"\",\"\", \"Зал и кабинет \"&Ипостасные!C145&\" \"&Ипостасные!D145)","v":""}]
[128,null,{"$f":"\"Зал и кабинет \"&Ипостасные!C147&\" ИВО\nЗал и кабинет Изначального Владыки ИВО \"&справочники!K130","v":"Зал и кабинет Ипостась Синтеза 383-Мерностного Синтезтела Изначально Вышестоящего Отца Изначально Вышестоящего Отца, Управления Синтеза Фаинь ИВО\nЗал и кабинет Изначального Владыки ИВО Фаинь"},{"$f":"IF(Ипостасные!D147=\"\",\"\", \"Зал и кабинет \"&Ипостасные!C147&\" \"&Ипостасные!D147)","v":""}]
[127,null,{"$f":"\"Зал и кабинет \"&Ипостасные!C148&\" ИВО\nЗал и кабинет Изначального Владыки ИВО \"&справочники!K131","v":"Зал и кабинет Ипостась Синтеза 382-Мерностного Синтезтела Изначально Вышестоящего Владыки Изначально Вышестоящего Отца, Управления Синтеза Славии ИВО\nЗал и кабинет Изначального Владыки ИВО Славии"},{"$f":"IF(Ипостасные!D148=\"\",\"\", \"Зал и кабинет \"&Ипостасные!C148&\" \"&Ипостасные!D148)","v":""}]
[126,null,{"$f":"\"Зал и кабинет \"&Ипостасные!C149&\" ИВО\nЗал и кабинет Изначального Владыки ИВО \"&справочники!K132","v":"Зал и кабинет Ипостась Синтеза 381-Мерностного Синтезтела Изначально Вышестоящего Учителя Изначально Вышестоящего Отца, Управления Синтеза Свет ИВО\nЗал и кабинет Изначального Владыки ИВО Свет"},{"$f":"IF(Ипостасные!D149=\"\",\"\", \"Зал и кабинет \"&Ипостасные!C149&\" \"&Ипостасные!D149)","v":""}]
[125,null,{"$f":"\"Зал и кабинет \"&Ипостасные!C150&\" ИВО\nЗал и кабинет Изначального Владыки ИВО \"&справочники!K133","v":"Зал и кабинет Ипостась Синтеза 380-Мерностного Синтезтела Изначально Вышестоящего Логоса Изначально Вышестоящего Отца, Управления Синтеза Марины ИВО\nЗал и кабинет Изначального Владыки ИВО Марины"},{"$f":"IF(Ипостасные!D150=\"\",\"\", \"Зал и кабинет \"&Ипостасные!C150&\" \"&Ипостасные!D150)","v":""}]
[124,null,{"$f":"\"Зал и кабинет \"&Ипостасные!C151&\" ИВО\nЗал и кабинет Изначального Владыки ИВО \"&справочники!K134","v":"Зал и кабинет Ипостась Синтеза 379-Мерностного Синтезтела Изначально Вышестоящего Аватара Изначально Вышестоящего Отца, Управления Синтеза Альбины ИВО\nЗал и кабинет Изначального Владыки ИВО Альбины"},{"$f":"IF(Ипостасные!D151=\"\",\"\", \"Зал и кабинет \"&Ипостасные!C151&\" \"&Ипостасные!D151)","v":""}]
[123,null,{"$f":"\"Зал и кабинет \"&Ипостасные!C152&\" ИВО\nЗал и кабинет Изначального Владыки ИВО \"&справочники!K135","v":"Зал и кабинет Ипостась Синтеза 378-Мерностного Синтезтела Изначально Вышестоящей Ипостаси Изначально Вышестоящего Отца, Управления Синтеза Вероники ИВО\nЗал и кабинет Изначального Владыки ИВО Вероники"},{"$f":"IF(Ипостасные!D152=\"\",\"\", \"Зал и кабинет \"&Ипостасные!C152&\" \"&Ипостасные!D152)","v":""}]
[122,null,{"$f":"\"Зал и кабинет \"&Ипостасные!C153&\" ИВО\nЗал и кабинет Изначального Владыки ИВО \"&справочники!K136","v":"Зал и кабинет Ипостась Синтеза 377-Мерностного Синтезтела Изначально Вышестоящего Служащего Изначально Вышестоящего Отца, Управления Синтеза Сианы ИВО\nЗал и кабинет Изначального Владыки ИВО Сианы"},{"$f":"IF(Ипостасные!D153=\"\",\"\", \"Зал и кабинет \"&Ипостасные!C153&\" \"&Ипостасные!D153)","v":""}]
[121,null,{"$f":"\"Зал и кабинет \"&Ипостасные!C154&\" ИВО\nЗал и кабинет Изначального Владыки ИВО \"&справочники!K137","v":"Зал и кабинет Ипостась Синтеза 376-Мерностного Синтезтела Изначально Вышестоящего Посвящённого Изначально Вышестоящего Отца, Управления Синтеза Оны ИВО\nЗал и кабинет Изначального Владыки ИВО Оны"},{"$f":"IF(Ипостасные!D154=\"\",\"\", \"Зал и кабинет \"&Ипостасные!C154&\" \"&Ипостасные!D154)","v":""}]
[120,null,{"$f":"\"Зал и кабинет \"&Ипостасные!C155&\" ИВО\nЗал и кабинет Изначального Владыки ИВО \"&справочники!K138","v":"Зал и кабинет Ипостась Синтеза 375-Мерностного Синтезтела Изначально Вышестоящего Полномочного Изначально Вышестоящего Отца, Управления Синтеза Стефании ИВО\nЗал и кабинет Изначального Владыки ИВО Стефании"},{"$f":"IF(Ипостасные!D155=\"\",\"\", \"Зал и кабинет \"&Ипостасные!C155&\" \"&Ипостасные!D155)","v":""}]
[119,null,{"$f":"\"Зал и кабинет \"&Ипостасные!C156&\" ИВО\nЗал и кабинет Изначального Владыки ИВО \"&справочники!K139","v":"Зал и кабинет Ипостась Синтеза 374-Мерностного Синтезтела Изначально Вышестоящего Ману Изначально Вышестоящего Отца, Управления Синтеза Святы ИВО\nЗал и кабинет Изначального Владыки ИВО Святы"},{"$f":"IF(Ипостасные!D156=\"\",\"\", \"Зал и кабинет \"&Ипостасные!C156&\" \"&Ипостасные!D156)","v":""}]
[118,null,{"$f":"\"Зал и кабинет \"&Ипостасные!C157&\" ИВО\nЗал и кабинет Изначального Владыки ИВО \"&справочники!K140","v":"Зал и кабинет Ипостась Синтеза 373-Мерностного Синтезтела Изначально Вышестоящего Теурга Изначально Вышестоящего Отца, Управления Синтеза Баяны ИВО\nЗал и кабинет Изначального Владыки ИВО Баяны"},{"$f":"IF(Ипостасные!D157=\"\",\"\", \"Зал и кабинет \"&Ипостасные!C157&\" \"&Ипостасные!D157)","v":""}]
[117,null,{"$f":"\"Зал и кабинет \"&Ипостасные!C158&\" ИВО\nЗал и кабинет Изначального Владыки ИВО \"&справочники!K141","v":"Зал и кабинет Ипостась Синтеза 372-Мерностного Синтезтела Изначально Вышестоящего Творца Изначально Вышестоящего Отца, Управления Синтеза Екатерины ИВО\nЗал и кабинет Изначального Владыки ИВО Екатерины"},{"$f":"IF(Ипостасные!D158=\"\",\"\", \"Зал и кабинет \"&Ипостасные!C158&\" \"&Ипостасные!D158)","v":""}]
[116,null,{"$f":"\"Зал и кабинет \"&Ипостасные!C159&\" ИВО\nЗал и кабинет Изначального Владыки ИВО \"&справочники!K142","v":"Зал и кабинет Ипостась Синтеза 371-Мерностного Синтезтела Изначально Вышестоящего Аспекта Изначально Вышестоящего Отца, Управления Синтеза Сивиллы ИВО\nЗал и кабинет Изначального Владыки ИВО Сивиллы"},{"$f":"IF(Ипостасные!D159=\"\",\"\", \"Зал и кабинет \"&Ипостасные!C159&\" \"&Ипостасные!D159)","v":""}]
[115,null,{"$f":"\"Зал и кабинет \"&Ипостасные!C160&\" ИВО\nЗал и кабинет Изначального Владыки ИВО \"&справочники!K143","v":"Зал и кабинет Ипостась Синтеза 370-Мерностного Синтезтела Изначально Вышестоящего Майтрейи Изначально Вышестоящего Отца, Управления Синтеза Тамилы ИВО\nЗал и кабинет Изначального Владыки ИВО Тамилы"},{"$f":"IF(Ипостасные!D160=\"\",\"\", \"Зал и кабинет \"&Ипостасные!C160&\" \"&Ипостасные!D160)","v":""}]
[114,null,{"$f":"\"Зал и кабинет \"&Ипостасные!C161&\" ИВО\nЗал и кабинет Изначального Владыки ИВО \"&справочники!K144","v":"Зал и кабинет Ипостась Синтеза 369-Мерностного Синтезтела Изначально Вышестоящего Христа Изначально Вышестоящего Отца, Управления Синтеза Ники ИВО\nЗал и кабинет Изначального Владыки ИВО Ники"},{"$f":"IF(Ипостасные!D161=\"\",\"\", \"Зал и кабинет \"&Ипостасные!C161&\" \"&Ипостасные!D161)","v":""}]
[113,null,{"$f":"\"Зал и кабинет \"&Ипостасные!C162&\" ИВО\nЗал и кабинет Изначального Владыки ИВО \"&справочники!K145","v":"Зал и кабинет Ипостась Синтеза 368-Мерностного Синтезтела Изначально Вышестоящего Будды Изначально Вышестоящего Отца, Управления Синтеза Велетте ИВО\nЗал и кабинет Изначального Владыки ИВО Велетте"},{"$f":"IF(Ипостасные!D162=\"\",\"\", \"Зал и кабинет \"&Ипостасные!C162&\" \"&Ипостасные!D162)","v":""}]
[112,null,{"$f":"\"Зал и кабинет \"&Ипостасные!C163&\" ИВО\nЗал и кабинет Изначального Владыки ИВО \"&справочники!K146","v":"Зал и кабинет Ипостась Синтеза 367-Мерностного Синтезтела Изначально Вышестоящего ИВ Человека ИВышестоящего Отца, Управления Синтеза Эмилии ИВО\nЗал и кабинет Изначального Владыки ИВО Эмилии"},{"$f":"IF(Ипостасные!D163=\"\",\"\", \"Зал и кабинет \"&Ипостасные!C163&\" \"&Ипостасные!D163)","v":""}]
[111,null,{"$f":"\"Зал и кабинет \"&Ипостасные!C164&\" ИВО\nЗал и кабинет Изначального Владыки ИВО \"&справочники!K147","v":"Зал и кабинет Ипостась Синтеза 366-Мерностного Синтезтела Изначально Вышестоящего Человека Изначально Вышестоящего Отца, Управления Синтеза Елены ИВО\nЗал и кабинет Изначального Владыки ИВО Елены"},{"$f":"IF(Ипостасные!D164=\"\",\"\", \"Зал и кабинет \"&Ипостасные!C164&\" \"&Ипостасные!D164)","v":""}]
[110,null,{"$f":"\"Зал и кабинет \"&Ипостасные!C165&\" ИВО\nЗал и кабинет Изначального Владыки ИВО \"&справочники!K148","v":"Зал и кабинет Ипостась Синтеза 365-Мерностного Синтезтела Изначально Вышестоящего Сына Изначально Вышестоящего Отца, Управления Синтеза Валерии ИВО\nЗал и кабинет Изначального Владыки ИВО Валерии"},{"$f":"IF(Ипостасные!D165=\"\",\"\", \"Зал и кабинет \"&Ипостасные!C165&\" \"&Ипостасные!D165)","v":""}]
[109,null,{"$f":"\"Зал и кабинет \"&Ипостасные!C166&\" ИВО\nЗал и кабинет Изначального Владыки ИВО \"&справочники!K149","v":"Зал и кабинет Ипостась Синтеза 364-Мерностного Синтезтела Изначально Вышестоящей Дочери Изначально Вышестоящего Отца, Управления Синтеза Олеси ИВО\nЗал и кабинет Изначального Владыки ИВО Олеси"},{"$f":"IF(Ипостасные!D166=\"\",\"\", \"Зал и кабинет \"&Ипостасные!C166&\" \"&Ипостасные!D166)","v":""}]
[108,null,{"$f":"\"Зал и кабинет \"&Ипостасные!C167&\" ИВО\nЗал и кабинет Изначального Владыки ИВО \"&справочники!K150","v":"Зал и кабинет Ипостась Синтеза 363-Мерностного Синтезтела Изначально Вышестоящего Человека ИМетагалактики ИВО, Управления Синтеза Антуанетты ИВО\nЗал и кабинет Изначального Владыки ИВО Антуанэтты"},{"$f":"IF(Ипостасные!D167=\"\",\"\", \"Зал и кабинет \"&Ипостасные!C167&\" \"&Ипостасные!D167)","v":""}]
[107,null,{"$f":"\"Зал и кабинет \"&Ипостасные!C168&\" ИВО\nЗал и кабинет Изначального Владыки ИВО \"&справочники!K151","v":"Зал и кабинет Ипостась Синтеза 362-Мерностного Синтезтела Изначально Вышестоящего Человека Изначальности ИВОтца, Управления Синтеза Юлианы ИВО\nЗал и кабинет Изначального Владыки ИВО Юлианы"},{"$f":"IF(Ипостасные!D168=\"\",\"\", \"Зал и кабинет \"&Ипостасные!C168&\" \"&Ипостасные!D168)","v":""}]
[106,null,{"$f":"\"Зал и кабинет \"&Ипостасные!C169&\" ИВО\nЗал и кабинет Изначального Владыки ИВО \"&справочники!K152","v":"Зал и кабинет Ипостась Синтеза 361-Мерностного Синтезтела Изначально Вышестоящего Человека Метагалактики ИВОтца, Управления Синтеза Синтии ИВО\nЗал и кабинет Изначального Владыки ИВО Синтии"},{"$f":"IF(Ипостасные!D169=\"\",\"\", \"Зал и кабинет \"&Ипостасные!C169&\" \"&Ипостасные!D169)","v":""}]
[105,null,{"$f":"\"Зал и кабинет \"&Ипостасные!C170&\" ИВО\nЗал и кабинет Изначального Владыки ИВО \"&справочники!K153","v":"Зал и кабинет Ипостась Синтеза 360-Мерностного Синтезтела Изначально Вышестоящей Матери Изначально Вышестоящего Отца, Управления Синтеза Виктории ИВО\nЗал и кабинет Изначального Владыки ИВО Виктории"},{"$f":"IF(Ипостасные!D170=\"\",\"\", \"Зал и кабинет \"&Ипостасные!C170&\" \"&Ипостасные!D170)","v":""}]
[104,null,{"$f":"\"Зал и кабинет \"&Ипостасные!C171&\" ИВО\nЗал и кабинет Изначального Владыки ИВО \"&справочники!K154","v":"Зал и кабинет Ипостась Синтеза 359-Мерностного Синтезтела Изначально Вышестоящего Праведника ИВышестоящего Отца, Управления Синтеза Дариды ИВО\nЗал и кабинет Изначального Владыки ИВО Дариды"},{"$f":"IF(Ипостасные!D171=\"\",\"\", \"Зал и кабинет \"&Ипостасные!C171&\" \"&Ипостасные!D171)","v":""}]
[103,null,{"$f":"\"Зал и кабинет \"&Ипостасные!C172&\" ИВО\nЗал и кабинет Изначального Владыки ИВО \"&справочники!K155","v":"Зал и кабинет Ипостась Синтеза 358-Мерностного Синтезтела Изначально Вышестоящего Неизречённого ИВышестоящего Отца, Управления Синтеза Алины ИВО\nЗал и кабинет Изначального Владыки ИВО Алины"},{"$f":"IF(Ипостасные!D172=\"\",\"\", \"Зал и кабинет \"&Ипостасные!C172&\" \"&Ипостасные!D172)","v":""}]
[102,null,{"$f":"\"Зал и кабинет \"&Ипостасные!C173&\" ИВО\nЗал и кабинет Изначального Владыки ИВО \"&справочники!K156","v":"Зал и кабинет Ипостась Синтеза 357-Мерностного Синтезтела Изначально Вышестоящего Всемогущего ИВышестоящего Отца, Управления Синтеза Софьи ИВО\nЗал и кабинет Изначального Владыки ИВО Софьи"},{"$f":"IF(Ипостасные!D173=\"\",\"\", \"Зал и кабинет \"&Ипостасные!C173&\" \"&Ипостасные!D173)","v":""}]
[101,null,{"$f":"\"Зал и кабинет \"&Ипостасные!C174&\" ИВО\nЗал и кабинет Изначального Владыки ИВО \"&справочники!K157","v":"Зал и кабинет Ипостась Синтеза 356-Мерностного Синтезтела Изначально Вышестоящего Предвечного ИВышестоящего Отца, Управления Синтеза Агафьи ИВО\nЗал и кабинет Изначального Владыки ИВО Агафьи"},{"$f":"IF(Ипостасные!D174=\"\",\"\", \"Зал и кабинет \"&Ипостасные!C174&\" \"&Ипостасные!D174)","v":""}]
[100,null,{"$f":"\"Зал и кабинет \"&Ипостасные!C175&\" ИВО\nЗал и кабинет Изначального Владыки ИВО \"&справочники!K158","v":"Зал и кабинет Ипостась Синтеза 355-Мерностного Синтезтела Изначально Вышестоящего Предначального ИВышестоящего Отца, Управления Синтеза Дарьи ИВО\nЗал и кабинет Изначального Владыки ИВО Дарьи"},{"$f":"IF(Ипостасные!D175=\"\",\"\", \"Зал и кабинет \"&Ипостасные!C175&\" \"&Ипостасные!D175)","v":""}]
[99,null,{"$f":"\"Зал и кабинет \"&Ипостасные!C176&\" ИВО\nЗал и кабинет Изначального Владыки ИВО \"&справочники!K159","v":"Зал и кабинет Ипостась Синтеза 354-Мерностного Синтезтела Изначально Вышестоящего Вседержителя ИВышестоящего Отца, Управления Синтеза Иланы ИВО\nЗал и кабинет Изначального Владыки ИВО Иланы"},{"$f":"IF(Ипостасные!D176=\"\",\"\", \"Зал и кабинет \"&Ипостасные!C176&\" \"&Ипостасные!D176)","v":""}]
[98,null,{"$f":"\"Зал и кабинет \"&Ипостасные!C177&\" ИВО\nЗал и кабинет Изначального Владыки ИВО \"&справочники!K160","v":"Зал и кабинет Ипостась Синтеза 353-Мерностного Синтезтела Изначально Вышестоящего Всевышнего Изначально Вышестоящего Отца, Управления Синтеза Яны ИВО\nЗал и кабинет Изначального Владыки ИВО Яны"},{"$f":"IF(Ипостасные!D177=\"\",\"\", \"Зал и кабинет \"&Ипостасные!C177&\" \"&Ипостасные!D177)","v":""}]
[97,null,{"$f":"\"Зал и кабинет \"&Ипостасные!C178&\" ИВО\nЗал и кабинет Изначального Владыки ИВО \"&справочники!K161","v":"Зал и кабинет Ипостась Синтеза 352-Мерностного Синтезтела Изначально Вышестоящего Человека Планеты Изначально Вышестоящего Отца, Управления Синтеза Давлаты ИВО\nЗал и кабинет Изначального Владыки ИВО Давлаты"},{"$f":"IF(Ипостасные!D178=\"\",\"\", \"Зал и кабинет \"&Ипостасные!C178&\" \"&Ипостасные!D178)","v":""}]
[96,null,{"$f":"\"Зал и кабинет \"&Ипостасные!C179&\" ИВО\nЗал и кабинет Изначального Владыки ИВО \"&справочники!K162","v":"Зал и кабинет Ипостась Синтеза 351-Мерностного Синтезтела Отца Изначальной Метагалактики Изначально Вышестоящего Отца, Управления Синтеза Ирины ИВО\nЗал и кабинет Изначального Владыки ИВО Ирины"},{"$f":"IF(Ипостасные!D179=\"\",\"\", \"Зал и кабинет \"&Ипостасные!C179&\" \"&Ипостасные!D179)","v":""}]
[95,null,{"$f":"\"Зал и кабинет \"&Ипостасные!C180&\" ИВО\nЗал и кабинет Изначального Владыки ИВО \"&справочники!K163","v":"Зал и кабинет Ипостась Синтеза 350-Мерностного Синтезтела Владыки Изначальной Метагалактики Изначально Вышестоящего Отца, Управления Синтеза Лины ИВО\nЗал и кабинет Изначального Владыки ИВО Лины"},{"$f":"IF(Ипостасные!D180=\"\",\"\", \"Зал и кабинет \"&Ипостасные!C180&\" \"&Ипостасные!D180)","v":""}]
[94,null,{"$f":"\"Зал и кабинет \"&Ипостасные!C181&\" ИВО\nЗал и кабинет Изначального Владыки ИВО \"&справочники!K164","v":"Зал и кабинет Ипостась Синтеза 349-Мерностного Синтезтела Учителя Изначальной Метагалактики Изначально Вышестоящего Отца, Управления Синтеза Анастасии ИВО\nЗал и кабинет Изначального Владыки ИВО Анастасии"},{"$f":"IF(Ипостасные!D181=\"\",\"\", \"Зал и кабинет \"&Ипостасные!C181&\" \"&Ипостасные!D181)","v":""}]
[93,null,{"$f":"\"Зал и кабинет \"&Ипостасные!C182&\" ИВО\nЗал и кабинет Изначального Владыки ИВО \"&справочники!K165","v":"Зал и кабинет Ипостась Синтеза 348-Мерностного Синтезтела Логоса Изначальной Метагалактики Изначально Вышестоящего Отца, Управления Синтеза Омы ИВО\nЗал и кабинет Изначального Владыки ИВО Омы"},{"$f":"IF(Ипостасные!D182=\"\",\"\", \"Зал и кабинет \"&Ипостасные!C182&\" \"&Ипостасные!D182)","v":""}]
[92,null,{"$f":"\"Зал и кабинет \"&Ипостасные!C183&\" ИВО\nЗал и кабинет Изначального Владыки ИВО \"&справочники!K166","v":"Зал и кабинет Ипостась Синтеза 347-Мерностного Синтезтела Аватара Изначальной Метагалактики Изначально Вышестоящего Отца, Управления Синтеза Сольвейг ИВО\nЗал и кабинет Изначального Владыки ИВО Сольвейг"},{"$f":"IF(Ипостасные!D183=\"\",\"\", \"Зал и кабинет \"&Ипостасные!C183&\" \"&Ипостасные!D183)","v":""}]
[91,null,{"$f":"\"Зал и кабинет \"&Ипостасные!C184&\" ИВО\nЗал и кабинет Изначального Владыки ИВО \"&справочники!K167","v":"Зал и кабинет Ипостась Синтеза 346-Мерностного Синтезтела Ипостаси Изначальной Метагалактики Изначально Вышестоящего Отца, Управления Синтеза Октавии ИВО\nЗал и кабинет Изначального Владыки ИВО Октавии"},{"$f":"IF(Ипостасные!D184=\"\",\"\", \"Зал и кабинет \"&Ипостасные!C184&\" \"&Ипостасные!D184)","v":""}]
[90,null,{"$f":"\"Зал и кабинет \"&Ипостасные!C185&\" ИВО\nЗал и кабинет Изначального Владыки ИВО \"&справочники!K168","v":"Зал и кабинет Ипостась Синтеза 345-Мерностного Синтезтела Служащего Изначальной Метагалактики Изначально Вышестоящего Отца, Управления Синтеза Кристины ИВО\nЗал и кабинет Изначального Владыки ИВО Кристины"},{"$f":"IF(Ипостасные!D185=\"\",\"\", \"Зал и кабинет \"&Ипостасные!C185&\" \"&Ипостасные!D185)","v":""}]
[89,null,{"$f":"\"Зал и кабинет \"&Ипостасные!C186&\" ИВО\nЗал и кабинет Изначального Владыки ИВО \"&справочники!K169","v":"Зал и кабинет Ипостась Синтеза 344-Мерностного Синтезтела Посвящённого Изначальной Метагалактики Изначально Вышестоящего Отца, Управления Синтеза Версавии ИВО\nЗал и кабинет Изначального Владыки ИВО Версавии"},{"$f":"IF(Ипостасные!D186=\"\",\"\", \"Зал и кабинет \"&Ипостасные!C186&\" \"&Ипостасные!D186)","v":""}]
[88,null,{"$f":"\"Зал и кабинет \"&Ипостасные!C187&\" ИВО\nЗал и кабинет Изначального Владыки ИВО \"&справочники!K170","v":"Зал и кабинет Ипостась Синтеза 343-Мерностного Синтезтела Полномочного Изначальной Метагалактики Изначально Вышестоящего Отца, Управления Синтеза Ксении ИВО\nЗал и кабинет Изначального Владыки ИВО Ксении"},{"$f":"IF(Ипостасные!D187=\"\",\"\", \"Зал и кабинет \"&Ипостасные!C187&\" \"&Ипостасные!D187)","v":""}]
[87,null,{"$f":"\"Зал и кабинет \"&Ипостасные!C188&\" ИВО\nЗал и кабинет Изначального Владыки ИВО \"&справочники!K171","v":"Зал и кабинет Ипостась Синтеза 342-Мерностного Синтезтела Ману Изначальной Метагалактики Изначально Вышестоящего Отца, Управления Синтеза Эммы ИВО\nЗал и кабинет Изначального Владыки ИВО Эммы"},{"$f":"IF(Ипостасные!D188=\"\",\"\", \"Зал и кабинет \"&Ипостасные!C188&\" \"&Ипостасные!D188)","v":""}]
[86,null,{"$f":"\"Зал и кабинет \"&Ипостасные!C189&\" ИВО\nЗал и кабинет Изначального Владыки ИВО \"&справочники!K172","v":"Зал и кабинет Ипостась Синтеза 341-Мерностного Синтезтела Теурга Изначальной Метагалактики Изначально Вышестоящего Отца, Управления Синтеза Стафии ИВО\nЗал и кабинет Изначального Владыки ИВО Стафии"},{"$f":"IF(Ипостасные!D189=\"\",\"\", \"Зал и кабинет \"&Ипостасные!C189&\" \"&Ипостасные!D189)","v":""}]
[85,null,{"$f":"\"Зал и кабинет \"&Ипостасные!C190&\" ИВО\nЗал и кабинет Изначального Владыки ИВО \"&справочники!K173","v":"Зал и кабинет Ипостась Синтеза 340-Мерностного Синтезтела Творца Изначальной Метагалактики Изначально Вышестоящего Отца, Управления Синтеза Оксаны ИВО\nЗал и кабинет Изначального Владыки ИВО Оксаны"},{"$f":"IF(Ипостасные!D190=\"\",\"\", \"Зал и кабинет \"&Ипостасные!C190&\" \"&Ипостасные!D190)","v":""}]
[84,null,{"$f":"\"Зал и кабинет \"&Ипостасные!C191&\" ИВО\nЗал и кабинет Изначального Владыки ИВО \"&справочники!K174","v":"Зал и кабинет Ипостась Синтеза 339-Мерностного Синтезтела Аспекта Изначальной Метагалактики Изначально Вышестоящего Отца, Управления Синтеза Ульяны ИВО\nЗал и кабинет Изначального Владыки ИВО Ульяны"},{"$f":"IF(Ипостасные!D191=\"\",\"\", \"Зал и кабинет \"&Ипостасные!C191&\" \"&Ипостасные!D191)","v":""}]
[83,null,{"$f":"\"Зал и кабинет \"&Ипостасные!C192&\" ИВО\nЗал и кабинет Изначального Владыки ИВО \"&справочники!K175","v":"Зал и кабинет Ипостась Синтеза 338-Мерностного Синтезтела Майтрейю Изначальной Метагалактики ИВышестоящего Отца, Управления Синтеза Беатрисс ИВО\nЗал и кабинет Изначального Владыки ИВО Беатрисс"},{"$f":"IF(Ипостасные!D192=\"\",\"\", \"Зал и кабинет \"&Ипостасные!C192&\" \"&Ипостасные!D192)","v":""}]
[82,null,{"$f":"\"Зал и кабинет \"&Ипостасные!C193&\" ИВО\nЗал и кабинет Изначального Владыки ИВО \"&справочники!K176","v":"Зал и кабинет Ипостась Синтеза 337-Мерностного Синтезтела Христа Изначальной Метагалактики Изначально Вышестоящего Отца, Управления Синтеза Оливии ИВО\nЗал и кабинет Изначального Владыки ИВО Оливии"},{"$f":"IF(Ипостасные!D193=\"\",\"\", \"Зал и кабинет \"&Ипостасные!C193&\" \"&Ипостасные!D193)","v":""}]
[81,null,{"$f":"\"Зал и кабинет \"&Ипостасные!C194&\" ИВО\nЗал и кабинет Изначального Владыки ИВО \"&справочники!K177","v":"Зал и кабинет Ипостась Синтеза 336-Мерностного Синтезтела Будду Изначальной Метагалактики Изначально Вышестоящего Отца, Управления Синтеза Аллы ИВО\nЗал и кабинет Изначального Владыки ИВО Аллы"},{"$f":"IF(Ипостасные!D194=\"\",\"\", \"Зал и кабинет \"&Ипостасные!C194&\" \"&Ипостасные!D194)","v":""}]
[80,null,{"$f":"\"Зал и кабинет \"&Ипостасные!C195&\" ИВО\nЗал и кабинет Изначального Владыки ИВО \"&справочники!K178","v":"Зал и кабинет Ипостась Синтеза 335-Мерностного Синтезтела ИВ Человека ИВышестоящего Отца Изначальной Метагалактики, Управления Синтеза Натали ИВО\nЗал и кабинет Изначального Владыки ИВО Натали"},{"$f":"IF(Ипостасные!D195=\"\",\"\", \"Зал и кабинет \"&Ипостасные!C195&\" \"&Ипостасные!D195)","v":""}]
[79,null,{"$f":"\"Зал и кабинет \"&Ипостасные!C196&\" ИВО\nЗал и кабинет Изначального Владыки ИВО \"&справочники!K179","v":"Зал и кабинет Ипостась Синтеза 334-Мерностного Синтезтела Человека Изначально Вышестоящего Отца Изначальной Метагалактики, Управления Синтеза Эвы ИВО\nЗал и кабинет Изначального Владыки ИВО Эвы"},{"$f":"IF(Ипостасные!D196=\"\",\"\", \"Зал и кабинет \"&Ипостасные!C196&\" \"&Ипостасные!D196)","v":""}]
[78,null,{"$f":"\"Зал и кабинет \"&Ипостасные!C197&\" ИВО\nЗал и кабинет Изначального Владыки ИВО \"&справочники!K180","v":"Зал и кабинет Ипостась Синтеза 333-Мерностного Синтезтела Сына Изначальной Метагалактики Изначально Вышестоящего Отца, Управления Синтеза Ланы ИВО\nЗал и кабинет Изначального Владыки ИВО Ланы"},{"$f":"IF(Ипостасные!D197=\"\",\"\", \"Зал и кабинет \"&Ипостасные!C197&\" \"&Ипостасные!D197)","v":""}]
[77,null,{"$f":"\"Зал и кабинет \"&Ипостасные!C198&\" ИВО\nЗал и кабинет Изначального Владыки ИВО \"&справочники!K181","v":"Зал и кабинет Ипостась Синтеза 332-Мерностного Синтезтела Дочери Изначальной Метагалактики Изначально Вышестоящего Отца, Управления Синтеза Одель ИВО\nЗал и кабинет Изначального Владыки ИВО Одель"},{"$f":"IF(Ипостасные!D198=\"\",\"\", \"Зал и кабинет \"&Ипостасные!C198&\" \"&Ипостасные!D198)","v":""}]
[76,null,{"$f":"\"Зал и кабинет \"&Ипостасные!C199&\" ИВО\nЗал и кабинет Изначального Владыки ИВО \"&справочники!K182","v":"Зал и кабинет Ипостась Синтеза 331-Мерностного Синтезтела Человека Изначальной Метагалактики Изначально Вышестоящего Отца, Управления Синтеза Тамары ИВО\nЗал и кабинет Изначального Владыки ИВО Тамары"},{"$f":"IF(Ипостасные!D199=\"\",\"\", \"Зал и кабинет \"&Ипостасные!C199&\" \"&Ипостасные!D199)","v":""}]
[75,null,{"$f":"\"Зал и кабинет \"&Ипостасные!C200&\" ИВО\nЗал и кабинет Изначального Владыки ИВО \"&справочники!K183","v":"Зал и кабинет Ипостась Синтеза 330-Мерностного Синтезтела Человека Изначальности Изначальной Метагалактики Изначально Вышестоящего Отца, Управления Синтеза Нины ИВО\nЗал и кабинет Изначального Владыки ИВО Нины"},{"$f":"IF(Ипостасные!D200=\"\",\"\", \"Зал и кабинет \"&Ипостасные!C200&\" \"&Ипостасные!D200)","v":""}]
[74,null,{"$f":"\"Зал и кабинет \"&Ипостасные!C201&\" ИВО\nЗал и кабинет Изначального Владыки ИВО \"&справочники!K184","v":"Зал и кабинет Ипостась Синтеза 329-Мерностного Синтезтела Человека Метагалактики Изначальной Метагалактики Изначально Вышестоящего Отца, Управления Синтеза Орфеи ИВО\nЗал и кабинет Изначального Владыки ИВО Орфеи"},{"$f":"IF(Ипостасные!D201=\"\",\"\", \"Зал и кабинет \"&Ипостасные!C201&\" \"&Ипостасные!D201)","v":""}]
[73,null,{"$f":"\"Зал и кабинет \"&Ипостасные!C202&\" ИВО\nЗал и кабинет Изначального Владыки ИВО \"&справочники!K185","v":"Зал и кабинет Ипостась Синтеза 328-Мерностного Синтезтела Матери Изначальной Метагалактики Изначально Вышестоящего Отца, Управления Синтеза Вергилии ИВО\nЗал и кабинет Изначального Владыки ИВО Вергилии"},{"$f":"IF(Ипостасные!D202=\"\",\"\", \"Зал и кабинет \"&Ипостасные!C202&\" \"&Ипостасные!D202)","v":""}]
[72,null,{"$f":"\"Зал и кабинет \"&Ипостасные!C203&\" ИВО\nЗал и кабинет Изначального Владыки ИВО \"&справочники!K186","v":"Зал и кабинет Ипостась Синтеза 327-Мерностного Синтезтела Праведника Изначальной Метагалактики Изначально Вышестоящего Отца, Управления Синтеза Василисы ИВО\nЗал и кабинет Изначального Владыки ИВО Василисы"},{"$f":"IF(Ипостасные!D203=\"\",\"\", \"Зал и кабинет \"&Ипостасные!C203&\" \"&Ипостасные!D203)","v":""}]
[71,null,{"$f":"\"Зал и кабинет \"&Ипостасные!C204&\" ИВО\nЗал и кабинет Изначального Владыки ИВО \"&справочники!K187","v":"Зал и кабинет Ипостась Синтеза 326-Мерностного Синтезтела Неизречённого Изначальной Метагалактики Изначально Вышестоящего Отца, Управления Синтеза Варвары ИВО\nЗал и кабинет Изначального Владыки ИВО Варвары"},{"$f":"IF(Ипостасные!D204=\"\",\"\", \"Зал и кабинет \"&Ипостасные!C204&\" \"&Ипостасные!D204)","v":""}]
[70,null,{"$f":"\"Зал и кабинет \"&Ипостасные!C205&\" ИВО\nЗал и кабинет Изначального Владыки ИВО \"&справочники!K188","v":"Зал и кабинет Ипостась Синтеза 325-Мерностного Синтезтела Всемогущего Изначальной Метагалактики Изначально Вышестоящего Отца, Управления Синтеза Арины ИВО\nЗал и кабинет Изначального Владыки ИВО Арины"},{"$f":"IF(Ипостасные!D205=\"\",\"\", \"Зал и кабинет \"&Ипостасные!C205&\" \"&Ипостасные!D205)","v":""}]
[69,null,{"$f":"\"Зал и кабинет \"&Ипостасные!C206&\" ИВО\nЗал и кабинет Изначального Владыки ИВО \"&справочники!K189","v":"Зал и кабинет Ипостась Синтеза 324-Мерностного Синтезтела Предвечного Изначальной Метагалактики Изначально Вышестоящего Отца, Управления Синтеза Амалии ИВО\nЗал и кабинет Изначального Владыки ИВО Амалии"},{"$f":"IF(Ипостасные!D206=\"\",\"\", \"Зал и кабинет \"&Ипостасные!C206&\" \"&Ипостасные!D206)","v":""}]
[68,null,{"$f":"\"Зал и кабинет \"&Ипостасные!C207&\" ИВО\nЗал и кабинет Изначального Владыки ИВО \"&справочники!K190","v":"Зал и кабинет Ипостась Синтеза 323-Мерностного Синтезтела Предначального Изначальной Метагалактики Изначально Вышестоящего Отца, Управления Синтеза Елизаветы ИВО\nЗал и кабинет Изначального Владыки ИВО Елизаветы"},{"$f":"IF(Ипостасные!D207=\"\",\"\", \"Зал и кабинет \"&Ипостасные!C207&\" \"&Ипостасные!D207)","v":""}]
[67,null,{"$f":"\"Зал и кабинет \"&Ипостасные!C208&\" ИВО\nЗал и кабинет Изначального Владыки ИВО \"&справочники!K191","v":"Зал и кабинет Ипостась Синтеза 322-Мерностного Синтезтела Вседержителя Изначальной Метагалактики Изначально Вышестоящего Отца, Управления Синтеза Веры ИВО\nЗал и кабинет Изначального Владыки ИВО Веры"},{"$f":"IF(Ипостасные!D208=\"\",\"\", \"Зал и кабинет \"&Ипостасные!C208&\" \"&Ипостасные!D208)","v":""}]
[66,null,{"$f":"\"Зал и кабинет \"&Ипостасные!C209&\" ИВО\nЗал и кабинет Изначального Владыки ИВО \"&справочники!K192","v":"Зал и кабинет Ипостась Синтеза 321-Мерностного Синтезтела Всевышнего Изначальной Метагалактики Изначально Вышестоящего Отца, Управления Синтеза Мирославы ИВО\nЗал и кабинет Изначального Владыки ИВО Мирославы"},{"$f":"IF(Ипостасные!D209=\"\",\"\", \"Зал и кабинет \"&Ипостасные!C209&\" \"&Ипостасные!D209)","v":""}]
[65,null,{"$f":"\"Зал и кабинет \"&Ипостасные!C210&\" ИВО\nЗал и кабинет Изначального Владыки ИВО \"&справочники!K193","v":"Зал и кабинет Ипостась Синтеза 320-Мерностного Синтезтела Человека Планеты Изначальной Метагалактики Изначально Вышестоящего Отца, Управления Синтеза Даяны ИВО\nЗал и кабинет Изначального Владыки ИВО Даяны"},{"$f":"IF(Ипостасные!D210=\"\",\"\", \"Зал и кабинет \"&Ипостасные!C210&\" \"&Ипостасные!D210)","v":""}]
[64,null,{"$f":"\"Зал и кабинет \"&Ипостасные!C211&\" ИВО\nЗал и кабинет Изначального Владыки ИВО \"&справочники!K194","v":"Зал и кабинет Ипостась Синтеза 319-Мерностного Синтезтела Отца Изначальности Изначально Вышестоящего Отца, Управления Синтеза Стеллы ИВО\nЗал и кабинет Изначального Владыки ИВО Стеллы"},{"$f":"IF(Ипостасные!D211=\"\",\"\", \"Зал и кабинет \"&Ипостасные!C211&\" \"&Ипостасные!D211)","v":""}]
[63,null,{"$f":"\"Зал и кабинет \"&Ипостасные!C212&\" ИВО\nЗал и кабинет Изначального Владыки ИВО \"&справочники!K195","v":"Зал и кабинет Ипостась Синтеза 318-Мерностного Синтезтела Владыки Изначальности Изначально Вышестоящего Отца, Управления Синтеза Доры ИВО\nЗал и кабинет Изначального Владыки ИВО Доры"},{"$f":"IF(Ипостасные!D212=\"\",\"\", \"Зал и кабинет \"&Ипостасные!C212&\" \"&Ипостасные!D212)","v":""}]
[62,null,{"$f":"\"Зал и кабинет \"&Ипостасные!C213&\" ИВО\nЗал и кабинет Изначального Владыки ИВО \"&справочники!K196","v":"Зал и кабинет Ипостась Синтеза 317-Мерностного Синтезтела Учителя Изначальности Изначально Вышестоящего Отца, Управления Синтеза Клавдии ИВО\nЗал и кабинет Изначального Владыки ИВО Клавдии"},{"$f":"IF(Ипостасные!D213=\"\",\"\", \"Зал и кабинет \"&Ипостасные!C213&\" \"&Ипостасные!D213)","v":""}]
[61,null,{"$f":"\"Зал и кабинет \"&Ипостасные!C214&\" ИВО\nЗал и кабинет Изначального Владыки ИВО \"&справочники!K197","v":"Зал и кабинет Ипостась Синтеза 316-Мерностного Синтезтела Логоса Изначальности Изначально Вышестоящего Отца, Управления Синтеза Лады ИВО\nЗал и кабинет Изначального Владыки ИВО Лады"},{"$f":"IF(Ипостасные!D214=\"\",\"\", \"Зал и кабинет \"&Ипостасные!C214&\" \"&Ипостасные!D214)","v":""}]
[60,null,{"$f":"\"Зал и кабинет \"&Ипостасные!C215&\" ИВО\nЗал и кабинет Изначального Владыки ИВО \"&справочники!K198","v":"Зал и кабинет Ипостась Синтеза 315-Мерностного Синтезтела Аватара Изначальности Изначально Вышестоящего Отца, Управления Синтеза Ветты ИВО\nЗал и кабинет Изначального Владыки ИВО Ветты"},{"$f":"IF(Ипостасные!D215=\"\",\"\", \"Зал и кабинет \"&Ипостасные!C215&\" \"&Ипостасные!D215)","v":""}]
[59,null,{"$f":"\"Зал и кабинет \"&Ипостасные!C216&\" ИВО\nЗал и кабинет Изначального Владыки ИВО \"&справочники!K199","v":"Зал и кабинет Ипостась Синтеза 314-Мерностного Синтезтела Ипостаси Изначальности Изначально Вышестоящего Отца, Управления Синтеза Власты ИВО\nЗал и кабинет Изначального Владыки ИВО Власты"},{"$f":"IF(Ипостасные!D216=\"\",\"\", \"Зал и кабинет \"&Ипостасные!C216&\" \"&Ипостасные!D216)","v":""}]
[58,null,{"$f":"\"Зал и кабинет \"&Ипостасные!C217&\" ИВО\nЗал и кабинет Изначального Владыки ИВО \"&справочники!K200","v":"Зал и кабинет Ипостась Синтеза 313-Мерностного Синтезтела Служащего Изначальности Изначально Вышестоящего Отца, Управления Синтеза Офелии ИВО\nЗал и кабинет Изначального Владыки ИВО Офелии"},{"$f":"IF(Ипостасные!D217=\"\",\"\", \"Зал и кабинет \"&Ипостасные!C217&\" \"&Ипостасные!D217)","v":""}]
[57,null,{"$f":"\"Зал и кабинет \"&Ипостасные!C218&\" ИВО\nЗал и кабинет Изначального Владыки ИВО \"&справочники!K201","v":"Зал и кабинет Ипостась Синтеза 312-Мерностного Синтезтела Посвящённого Изначальности Изначально Вышестоящего Отца, Управления Синтеза Данаи ИВО\nЗал и кабинет Изначального Владыки ИВО Данаи"},{"$f":"IF(Ипостасные!D218=\"\",\"\", \"Зал и кабинет \"&Ипостасные!C218&\" \"&Ипостасные!D218)","v":""}]
[56,null,{"$f":"\"Зал и кабинет \"&Ипостасные!C219&\" ИВО\nЗал и кабинет Изначального Владыки ИВО \"&справочники!K202","v":"Зал и кабинет Ипостась Синтеза 311-Мерностного Синтезтела Полномочного Изначальности Изначально Вышестоящего Отца, Управления Синтеза Ханны ИВО\nЗал и кабинет Изначального Владыки ИВО Ханны"},{"$f":"IF(Ипостасные!D219=\"\",\"\", \"Зал и кабинет \"&Ипостасные!C219&\" \"&Ипостасные!D219)","v":""}]
[55,null,{"$f":"\"Зал и кабинет \"&Ипостасные!C220&\" ИВО\nЗал и кабинет Изначального Владыки ИВО \"&справочники!K203","v":"Зал и кабинет Ипостась Синтеза 310-Мерностного Синтезтела Ману Изначальности Изначально Вышестоящего Отца, Управления Синтеза Хлои ИВО\nЗал и кабинет Изначального Владыки ИВО Хлои"},{"$f":"IF(Ипостасные!D220=\"\",\"\", \"Зал и кабинет \"&Ипостасные!C220&\" \"&Ипостасные!D220)","v":""}]
[54,null,{"$f":"\"Зал и кабинет \"&Ипостасные!C221&\" ИВО\nЗал и кабинет Изначального Владыки ИВО \"&справочники!K204","v":"Зал и кабинет Ипостась Синтеза 309-Мерностного Синтезтела Теурга Изначальности Изначально Вышестоящего Отца, Управления Синтеза Надежды ИВО\nЗал и кабинет Изначального Владыки ИВО Надежды"},{"$f":"IF(Ипостасные!D221=\"\",\"\", \"Зал и кабинет \"&Ипостасные!C221&\" \"&Ипостасные!D221)","v":""}]
[53,null,{"$f":"\"Зал и кабинет \"&Ипостасные!C222&\" ИВО\nЗал и кабинет Изначального Владыки ИВО \"&справочники!K205","v":"Зал и кабинет Ипостась Синтеза 308-Мерностного Синтезтела Творца Изначальности Изначально Вышестоящего Отца, Управления Синтеза Оллы ИВО\nЗал и кабинет Изначального Владыки ИВО Оллы"},{"$f":"IF(Ипостасные!D222=\"\",\"\", \"Зал и кабинет \"&Ипостасные!C222&\" \"&Ипостасные!D222)","v":""}]
[52,null,{"$f":"\"Зал и кабинет \"&Ипостасные!C223&\" ИВО\nЗал и кабинет Изначального Владыки ИВО \"&справочники!K206","v":"Зал и кабинет Ипостась Синтеза 307-Мерностного Синтезтела Аспекта Изначальности Изначально Вышестоящего Отца, Управления Синтеза Илоны ИВО\nЗал и кабинет Изначального Владыки ИВО Илоны"},{"$f":"IF(Ипостасные!D223=\"\",\"\", \"Зал и кабинет \"&Ипостасные!C223&\" \"&Ипостасные!D223)","v":""}]
[51,null,{"$f":"\"Зал и кабинет \"&Ипостасные!C224&\" ИВО\nЗал и кабинет Изначального Владыки ИВО \"&справочники!K207","v":"Зал и кабинет Ипостась Синтеза 306-Мерностного Синтезтела Майтрейи Изначальности Изначально Вышестоящего Отца, Управления Синтеза Генриетты ИВО\nЗал и кабинет Изначального Владыки ИВО Генриетты"},{"$f":"IF(Ипостасные!D224=\"\",\"\", \"Зал и кабинет \"&Ипостасные!C224&\" \"&Ипостасные!D224)","v":""}]
[50,null,{"$f":"\"Зал и кабинет \"&Ипостасные!C225&\" ИВО\nЗал и кабинет Изначального Владыки ИВО \"&справочники!K208","v":"Зал и кабинет Ипостась Синтеза 305-Мерностного Синтезтела Христа Изначальности Изначально Вышестоящего Отца, Управления Синтеза Марии ИВО\nЗал и кабинет Изначального Владыки ИВО Марии"},{"$f":"IF(Ипостасные!D225=\"\",\"\", \"Зал и кабинет \"&Ипостасные!C225&\" \"&Ипостасные!D225)","v":""}]
[49,null,{"$f":"\"Зал и кабинет \"&Ипостасные!C226&\" ИВО\nЗал и кабинет Изначального Владыки ИВО \"&справочники!K209","v":"Зал и кабинет Ипостась Синтеза 304-Мерностного Синтезтела Будды Изначальности Изначально Вышестоящего Отца, Управления Синтеза Глории ИВО\nЗал и кабинет Изначального Владыки ИВО Глории"},{"$f":"IF(Ипостасные!D226=\"\",\"\", \"Зал и кабинет \"&Ипостасные!C226&\" \"&Ипостасные!D226)","v":""}]
[48,null,{"$f":"\"Зал и кабинет \"&Ипостасные!C227&\" ИВО\nЗал и кабинет Изначального Владыки ИВО \"&справочники!K210","v":"Зал и кабинет Ипостась Синтеза 303-Мерностного Синтезтела ИВЧеловека Изначально Вышестоящего Отца Изначальности, Управления Синтеза Констанции ИВО\nЗал и кабинет Изначального Владыки ИВО Констанции"},{"$f":"IF(Ипостасные!D227=\"\",\"\", \"Зал и кабинет \"&Ипостасные!C227&\" \"&Ипостасные!D227)","v":""}]
[47,null,{"$f":"\"Зал и кабинет \"&Ипостасные!C228&\" ИВО\nЗал и кабинет Изначального Владыки ИВО \"&справочники!K211","v":"Зал и кабинет Ипостась Синтеза 302-Мерностного Синтезтела Человека Изначально Вышестоящего Отца Изначальности, Управления Синтеза Стэвии ИВО\nЗал и кабинет Изначального Владыки ИВО Стэвии"},{"$f":"IF(Ипостасные!D228=\"\",\"\", \"Зал и кабинет \"&Ипостасные!C228&\" \"&Ипостасные!D228)","v":""}]
[46,null,{"$f":"\"Зал и кабинет \"&Ипостасные!C229&\" ИВО\nЗал и кабинет Изначального Владыки ИВО \"&справочники!K212","v":"Зал и кабинет Ипостась Синтеза 301-Мерностного Синтезтела Сына Изначальности Изначально Вышестоящего Отца, Управления Синтеза Полины ИВО\nЗал и кабинет Изначального Владыки ИВО Полины"},{"$f":"IF(Ипостасные!D229=\"\",\"\", \"Зал и кабинет \"&Ипостасные!C229&\" \"&Ипостасные!D229)","v":""}]
[45,null,{"$f":"\"Зал и кабинет \"&Ипостасные!C230&\" ИВО\nЗал и кабинет Изначального Владыки ИВО \"&справочники!K213","v":"Зал и кабинет Ипостась Синтеза 300-Мерностного Синтезтела Дочери Изначальности Изначально Вышестоящего Отца, Управления Синтеза Виры ИВО\nЗал и кабинет Изначального Владыки ИВО Виру"},{"$f":"IF(Ипостасные!D230=\"\",\"\", \"Зал и кабинет \"&Ипостасные!C230&\" \"&Ипостасные!D230)","v":""}]
[44,null,{"$f":"\"Зал и кабинет \"&Ипостасные!C231&\" ИВО\nЗал и кабинет Изначального Владыки ИВО \"&справочники!K214","v":"Зал и кабинет Ипостась Синтеза 299-Мерностного Синтезтела Человека Изначальной Метагалактики Изначальности ИВОтца, Управления Синтеза Фанны ИВО\nЗал и кабинет Изначального Владыки ИВО Фанны"},{"$f":"IF(Ипостасные!D231=\"\",\"\", \"Зал и кабинет \"&Ипостасные!C231&\" \"&Ипостасные!D231)","v":""}]
[43,null,{"$f":"\"Зал и кабинет \"&Ипостасные!C232&\" ИВО\nЗал и кабинет Изначального Владыки ИВО \"&справочники!K215","v":"Зал и кабинет Ипостась Синтеза 298-Мерностного Синтезтела Человека Изначальности Изначально Вышестоящего Отца, Управления Синтеза Евгении ИВО\nЗал и кабинет Изначального Владыки ИВО Евгении"},{"$f":"IF(Ипостасные!D232=\"\",\"\", \"Зал и кабинет \"&Ипостасные!C232&\" \"&Ипостасные!D232)","v":""}]
[42,null,{"$f":"\"Зал и кабинет \"&Ипостасные!C233&\" ИВО\nЗал и кабинет Изначального Владыки ИВО \"&справочники!K216","v":"Зал и кабинет Ипостась Синтеза 297-Мерностного Синтезтела Человека Метагалактики Изначальности ИВышестоящего Отца, Управления Синтеза Элины ИВО\nЗал и кабинет Изначального Владыки ИВО Элины"},{"$f":"IF(Ипостасные!D233=\"\",\"\", \"Зал и кабинет \"&Ипостасные!C233&\" \"&Ипостасные!D233)","v":""}]
[41,null,{"$f":"\"Зал и кабинет \"&Ипостасные!C234&\" ИВО\nЗал и кабинет Изначального Владыки ИВО \"&справочники!K217","v":"Зал и кабинет Ипостась Синтеза 296-Мерностного Синтезтела Матери Изначальности Изначально Вышестоящего Отца, Управления Синтеза Сары ИВО\nЗал и кабинет Изначального Владыки ИВО Сары"},{"$f":"IF(Ипостасные!D234=\"\",\"\", \"Зал и кабинет \"&Ипостасные!C234&\" \"&Ипостасные!D234)","v":""}]
[40,null,{"$f":"\"Зал и кабинет \"&Ипостасные!C235&\" ИВО\nЗал и кабинет Изначального Владыки ИВО \"&справочники!K218","v":"Зал и кабинет Ипостась Синтеза 295-Мерностного Синтезтела Праведника Изначальности Изначально Вышестоящего Отца, Управления Синтеза Алевтины ИВО\nЗал и кабинет Изначального Владыки ИВО Алевтины"},{"$f":"IF(Ипостасные!D235=\"\",\"\", \"Зал и кабинет \"&Ипостасные!C235&\" \"&Ипостасные!D235)","v":""}]
[39,null,{"$f":"\"Зал и кабинет \"&Ипостасные!C236&\" ИВО\nЗал и кабинет Изначального Владыки ИВО \"&справочники!K219","v":"Зал и кабинет Ипостась Синтеза 294-Мерностного Синтезтела Неизречённого Изначальности Изначально Вышестоящего Отца, Управления Синтеза Раисы ИВО\nЗал и кабинет Изначального Владыки ИВО Раисы"},{"$f":"IF(Ипостасные!D236=\"\",\"\", \"Зал и кабинет \"&Ипостасные!C236&\" \"&Ипостасные!D236)","v":""}]
[38,null,{"$f":"\"Зал и кабинет \"&Ипостасные!C237&\" ИВО\nЗал и кабинет Изначального Владыки ИВО \"&справочники!K220","v":"Зал и кабинет Ипостась Синтеза 293-Мерностного Синтезтела Всемогущего Изначальности Изначально Вышестоящего Отца, Управления Синтеза Авроры ИВО\nЗал и кабинет Изначального Владыки ИВО Авроры"},{"$f":"IF(Ипостасные!D237=\"\",\"\", \"Зал и кабинет \"&Ипостасные!C237&\" \"&Ипостасные!D237)","v":""}]
[37,null,{"$f":"\"Зал и кабинет \"&Ипостасные!C238&\" ИВО\nЗал и кабинет Изначального Владыки ИВО \"&справочники!K221","v":"Зал и кабинет Ипостась Синтеза 292-Мерностного Синтезтела Предвечного Изначальности Изначально Вышестоящего Отца, Управления Синтеза Диланы ИВО\nЗал и кабинет Изначального Владыки ИВО Диланы"},{"$f":"IF(Ипостасные!D238=\"\",\"\", \"Зал и кабинет \"&Ипостасные!C238&\" \"&Ипостасные!D238)","v":""}]
[36,null,{"$f":"\"Зал и кабинет \"&Ипостасные!C239&\" ИВО\nЗал и кабинет Изначального Владыки ИВО \"&справочники!K222","v":"Зал и кабинет Ипостась Синтеза 291-Мерностного Синтезтела Предначального Изначальности Изначально Вышестоящего Отца, Управления Синтеза Яси ИВО\nЗал и кабинет Изначального Владыки ИВО Яси"},{"$f":"IF(Ипостасные!D239=\"\",\"\", \"Зал и кабинет \"&Ипостасные!C239&\" \"&Ипостасные!D239)","v":""}]
[35,null,{"$f":"\"Зал и кабинет \"&Ипостасные!C240&\" ИВО\nЗал и кабинет Изначального Владыки ИВО \"&справочники!K223","v":"Зал и кабинет Ипостась Синтеза 290-Мерностного Синтезтела Вседержителя Изначальности Изначально Вышестоящего Отца, Управления Синтеза Фиры ИВО\nЗал и кабинет Изначального Владыки ИВО Фиры"},{"$f":"IF(Ипостасные!D240=\"\",\"\", \"Зал и кабинет \"&Ипостасные!C240&\" \"&Ипостасные!D240)","v":""}]
[34,null,{"$f":"\"Зал и кабинет \"&Ипостасные!C241&\" ИВО\nЗал и кабинет Изначального Владыки ИВО \"&справочники!K224","v":"Зал и кабинет Ипостась Синтеза 289-Мерностного Синтезтела Всевышнего Изначальности Изначально Вышестоящего Отца, Управления Синтеза Омелии ИВО\nЗал и кабинет Изначального Владыки ИВО Омелии"},{"$f":"IF(Ипостасные!D241=\"\",\"\", \"Зал и кабинет \"&Ипостасные!C241&\" \"&Ипостасные!D241)","v":""}]
[33,null,{"$f":"\"Зал и кабинет \"&Ипостасные!C242&\" ИВО\nЗал и кабинет Изначального Владыки ИВО \"&справочники!K225","v":"Зал и кабинет Ипостась Синтеза 288-Мерностного Синтезтела Человека Планеты Изначальности Изначально Вышестоящего Отца, Управления Синтеза Мадлен ИВО\nЗал и кабинет Изначального Владыки ИВО Мадлен"},{"$f":"IF(Ипостасные!D242=\"\",\"\", \"Зал и кабинет \"&Ипостасные!C242&\" \"&Ипостасные!D242)","v":""}]
[32,null,{"$f":"\"Зал и кабинет \"&Ипостасные!C243&\" ИВО\nЗал и кабинет Изначального Владыки ИВО \"&справочники!K226","v":"Зал и кабинет Ипостась Синтеза 287-Мерностного Синтезтела Отца Метагалактики Изначально Вышестоящего Отца, Управления Синтеза Риммы ИВО\nЗал и кабинет Изначального Владыки ИВО Риммы"},{"$f":"IF(Ипостасные!D243=\"\",\"\", \"Зал и кабинет \"&Ипостасные!C243&\" \"&Ипостасные!D243)","v":""}]
[31,null,{"$f":"\"Зал и кабинет \"&Ипостасные!C244&\" ИВО\nЗал и кабинет Изначального Владыки ИВО \"&справочники!K227","v":"Зал и кабинет Ипостась Синтеза 286-Мерностного Синтезтела Владыки Метагалактики Изначально Вышестоящего Отца, Управления Синтеза Беллы ИВО\nЗал и кабинет Изначального Владыки ИВО Беллы"},{"$f":"IF(Ипостасные!D244=\"\",\"\", \"Зал и кабинет \"&Ипостасные!C244&\" \"&Ипостасные!D244)","v":""}]
[30,null,{"$f":"\"Зал и кабинет \"&Ипостасные!C245&\" ИВО\nЗал и кабинет Изначального Владыки ИВО \"&справочники!K228","v":"Зал и кабинет Ипостась Синтеза 285-Мерностного Синтезтела Учителя Метагалактики Изначально Вышестоящего Отца, Управления Синтеза Агнии ИВО\nЗал и кабинет Изначального Владыки ИВО Агнии"},{"$f":"IF(Ипостасные!D245=\"\",\"\", \"Зал и кабинет \"&Ипостасные!C245&\" \"&Ипостасные!D245)","v":""}]
[29,null,{"$f":"\"Зал и кабинет \"&Ипостасные!C246&\" ИВО\nЗал и кабинет Изначального Владыки ИВО \"&справочники!K229","v":"Зал и кабинет Ипостась Синтеза 284-Мерностного Синтезтела Логоса Метагалактики Изначально Вышестоящего Отца, Управления Синтеза Фелиции ИВО\nЗал и кабинет Изначального Владыки ИВО Фелиции"},{"$f":"IF(Ипостасные!D246=\"\",\"\", \"Зал и кабинет \"&Ипостасные!C246&\" \"&Ипостасные!D246)","v":""}]
[28,null,{"$f":"\"Зал и кабинет \"&Ипостасные!C247&\" ИВО\nЗал и кабинет Изначального Владыки ИВО \"&справочники!K230","v":"Зал и кабинет Ипостась Синтеза 283-Мерностного Синтезтела Аватара Метагалактики Изначально Вышестоящего Отца, Управления Синтеза Виталины ИВО\nЗал и кабинет Изначального Владыки ИВО Виталины"},{"$f":"IF(Ипостасные!D247=\"\",\"\", \"Зал и кабинет \"&Ипостасные!C247&\" \"&Ипостасные!D247)","v":""}]
[27,null,{"$f":"\"Зал и кабинет \"&Ипостасные!C248&\" ИВО\nЗал и кабинет Изначального Владыки ИВО \"&справочники!K231","v":"Зал и кабинет Ипостась Синтеза 282-Мерностного Синтезтела Ипостаси Метагалактики Изначально Вышестоящего Отца, Управления Синтеза Ноны ИВО\nЗал и кабинет Изначального Владыки ИВО Ноны"},{"$f":"IF(Ипостасные!D248=\"\",\"\", \"Зал и кабинет \"&Ипостасные!C248&\" \"&Ипостасные!D248)","v":""}]
[26,null,{"$f":"\"Зал и кабинет \"&Ипостасные!C249&\" ИВО\nЗал и кабинет Изначального Владыки ИВО \"&справочники!K232","v":"Зал и кабинет Ипостась Синтеза 281-Мерностного Синтезтела Служащего Метагалактики Изначально Вышестоящего Отца, Управления Синтеза Клементины ИВО\nЗал и кабинет Изначального Владыки ИВО Клементины"},{"$f":"IF(Ипостасные!D249=\"\",\"\", \"Зал и кабинет \"&Ипостасные!C249&\" \"&Ипостасные!D249)","v":""}]
[25,null,{"$f":"\"Зал и кабинет \"&Ипостасные!C250&\" ИВО\nЗал и кабинет Изначального Владыки ИВО \"&справочники!K233","v":"Зал и кабинет Ипостась Синтеза 280-Мерностного Синтезтела Посвящённого Метагалактики Изначально Вышестоящего Отца, Управления Синтеза Лиры ИВО\nЗал и кабинет Изначального Владыки ИВО Лиры"},{"$f":"IF(Ипостасные!D250=\"\",\"\", \"Зал и кабинет \"&Ипостасные!C250&\" \"&Ипостасные!D250)","v":""}]
[24,null,{"$f":"\"Зал и кабинет \"&Ипостасные!C251&\" ИВО\nЗал и кабинет Изначального Владыки ИВО \"&справочники!K234","v":"Зал и кабинет Ипостась Синтеза 279-Мерностного Синтезтела Полномочного Метагалактики Изначально Вышестоящего Отца, Управления Синтеза Ванессы ИВО\nЗал и кабинет Изначального Владыки ИВО Ванессы"},{"$f":"IF(Ипостасные!D251=\"\",\"\", \"Зал и кабинет \"&Ипостасные!C251&\" \"&Ипостасные!D251)","v":""}]
[23,null,{"$f":"\"Зал и кабинет \"&Ипостасные!C252&\" ИВО\nЗал и кабинет Изначального Владыки ИВО \"&справочники!K235","v":"Зал и кабинет Ипостась Синтеза 278-Мерностного Синтезтела Ману Метагалактики Изначально Вышестоящего Отца, Управления Синтеза Евдокии ИВО\nЗал и кабинет Изначального Владыки ИВО Евдокии"},{"$f":"IF(Ипостасные!D252=\"\",\"\", \"Зал и кабинет \"&Ипостасные!C252&\" \"&Ипостасные!D252)","v":""}]
[22,null,{"$f":"\"Зал и кабинет \"&Ипостасные!C253&\" ИВО\nЗал и кабинет Изначального Владыки ИВО \"&справочники!K236","v":"Зал и кабинет Ипостась Синтеза 277-Мерностного Синтезтела Теурга Метагалактики Изначально Вышестоящего Отца, Управления Синтеза Клары ИВО\nЗал и кабинет Изначального Владыки ИВО Клары"},{"$f":"IF(Ипостасные!D253=\"\",\"\", \"Зал и кабинет \"&Ипостасные!C253&\" \"&Ипостасные!D253)","v":""}]
[21,null,{"$f":"\"Зал и кабинет \"&Ипостасные!C254&\" ИВО\nЗал и кабинет Изначального Владыки ИВО \"&справочники!K237","v":"Зал и кабинет Ипостась Синтеза 276-Мерностного Синтезтела Творца Метагалактики Изначально Вышестоящего Отца, Управления Синтеза Лизы ИВО\nЗал и кабинет Изначального Владыки ИВО Лизы"},{"$f":"IF(Ипостасные!D254=\"\",\"\", \"Зал и кабинет \"&Ипостасные!C254&\" \"&Ипостасные!D254)","v":""}]
[20,null,{"$f":"\"Зал и кабинет \"&Ипостасные!C255&\" ИВО\nЗал и кабинет Изначального Владыки ИВО \"&справочники!K238","v":"Зал и кабинет Ипостась Синтеза 275-Мерностного Синтезтела Аспекта Метагалактики Изначально Вышестоящего Отца, Управления Синтеза Сюзанны ИВО\nЗал и кабинет Изначального Владыки ИВО Сюзанны"},{"$f":"IF(Ипостасные!D255=\"\",\"\", \"Зал и кабинет \"&Ипостасные!C255&\" \"&Ипостасные!D255)","v":""}]
[19,null,{"$f":"\"Зал и кабинет \"&Ипостасные!C256&\" ИВО\nЗал и кабинет Изначального Владыки ИВО \"&справочники!K239","v":"Зал и кабинет Ипостась Синтеза 274-Мерностного Синтезтела Майтрейи Метагалактики Изначально Вышестоящего Отца, Управления Синтеза Сейлы ИВО\nЗал и кабинет Изначального Владыки ИВО Сейлы"},{"$f":"IF(Ипостасные!D256=\"\",\"\", \"Зал и кабинет \"&Ипостасные!C256&\" \"&Ипостасные!D256)","v":""}]
[18,null,{"$f":"\"Зал и кабинет \"&Ипостасные!C257&\" ИВО\nЗал и кабинет Изначального Владыки ИВО \"&справочники!K240","v":"Зал и кабинет Ипостась Синтеза 273-Мерностного Синтезтела Христа Метагалактики Изначально Вышестоящего Отца, Управления Синтеза Русланы ИВО\nЗал и кабинет Изначального Владыки ИВО Русланы"},{"$f":"IF(Ипостасные!D257=\"\",\"\", \"Зал и кабинет \"&Ипостасные!C257&\" \"&Ипостасные!D257)","v":""}]
[17,null,{"$f":"\"Зал и кабинет \"&Ипостасные!C258&\" ИВО\nЗал и кабинет Изначального Владыки ИВО \"&справочники!K241","v":"Зал и кабинет Ипостась Синтеза 272-Мерностного Синтезтела Будды Метагалактики Изначально Вышестоящего Отца, Управления Синтеза Устины ИВО\nЗал и кабинет Изначального Владыки ИВО Устины"},{"$f":"IF(Ипостасные!D258=\"\",\"\", \"Зал и кабинет \"&Ипостасные!C258&\" \"&Ипостасные!D258)","v":""}]
[16,null,{"$f":"\"Зал и кабинет \"&Ипостасные!C259&\" ИВО\nЗал и кабинет Изначального Владыки ИВО \"&справочники!K242","v":"Зал и кабинет Ипостась Синтеза 271-Мерностного Синтезтела ИВЧеловека Изначально Вышестоящего Отца Метагалактики, Управления Синтеза Марики ИВО\nЗал и кабинет Изначального Владыки ИВО Марики"},{"$f":"IF(Ипостасные!D259=\"\",\"\", \"Зал и кабинет \"&Ипостасные!C259&\" \"&Ипостасные!D259)","v":""}]
[15,null,{"$f":"\"Зал и кабинет \"&Ипостасные!C260&\" ИВО\nЗал и кабинет Изначального Владыки ИВО \"&справочники!K243","v":"Зал и кабинет Ипостась Синтеза 270-Мерностного Синтезтела Человека Изначально Вышестоящего Отца Метагалактики, Управления Синтеза Франсуазы ИВО\nЗал и кабинет Изначального Владыки ИВО Франсуазы"},{"$f":"IF(Ипостасные!D260=\"\",\"\", \"Зал и кабинет \"&Ипостасные!C260&\" \"&Ипостасные!D260)","v":""}]
[14,null,{"$f":"\"Зал и кабинет \"&Ипостасные!C261&\" ИВО\nЗал и кабинет Изначального Владыки ИВО \"&справочники!K244","v":"Зал и кабинет Ипостась Синтеза 269-Мерностного Синтезтела Сына Метагалактики Изначально Вышестоящего Отца, Управления Синтеза Христины ИВО\nЗал и кабинет Изначального Владыки ИВО Христины"},{"$f":"IF(Ипостасные!D261=\"\",\"\", \"Зал и кабинет \"&Ипостасные!C261&\" \"&Ипостасные!D261)","v":""}]
[13,null,{"$f":"\"Зал и кабинет \"&Ипостасные!C262&\" ИВО\nЗал и кабинет Изначального Владыки ИВО \"&справочники!K245","v":"Зал и кабинет Ипостась Синтеза 268-Мерностного Синтезтела Дочери Метагалактики Изначально Вышестоящего Отца, Управления Синтеза Иоланы ИВО\nЗал и кабинет Изначального Владыки ИВО Иоланы"},{"$f":"IF(Ипостасные!D262=\"\",\"\", \"Зал и кабинет \"&Ипостасные!C262&\" \"&Ипостасные!D262)","v":""}]
[12,null,{"$f":"\"Зал и кабинет \"&Ипостасные!C263&\" ИВО\nЗал и кабинет Изначального Владыки ИВО \"&справочники!K246","v":"Зал и кабинет Ипостась Синтеза 267-Мерностного Синтезтела Человека Изначальной Метагалактики Метагалактики ИВОтца, Управления Синтеза Джесики ИВО\nЗал и кабинет Изначального Владыки ИВО Джесики"},{"$f":"IF(Ипостасные!D263=\"\",\"\", \"Зал и кабинет \"&Ипостасные!C263&\" \"&Ипостасные!D263)","v":""}]
[11,null,{"$f":"\"Зал и кабинет \"&Ипостасные!C264&\" ИВО\nЗал и кабинет Изначального Владыки ИВО \"&справочники!K247","v":"Зал и кабинет Ипостась Синтеза 266-Мерностного Синтезтела Человека Изначальности Метагалактики ИВышестоящего Отца, Управления Синтеза Сабины ИВО\nЗал и кабинет Изначального Владыки ИВО Сабины"},{"$f":"IF(Ипостасные!D264=\"\",\"\", \"Зал и кабинет \"&Ипостасные!C264&\" \"&Ипостасные!D264)","v":""}]
[10,null,{"$f":"\"Зал и кабинет \"&Ипостасные!C265&\" ИВО\nЗал и кабинет Изначального Владыки ИВО \"&справочники!K248","v":"Зал и кабинет Ипостась Синтеза 265-Мерностного Синтезтела Человека Метагалактики Изначально Вышестоящего Отца, Управления Синтеза Нелли ИВО\nЗал и кабинет Изначального Владыки ИВО Нелли"},{"$f":"IF(Ипостасные!D265=\"\",\"\", \"Зал и кабинет \"&Ипостасные!C265&\" \"&Ипостасные!D265)","v":""}]
[9,null,{"$f":"\"Зал и кабинет \"&Ипостасные!C266&\" ИВО\nЗал и кабинет Изначального Владыки ИВО \"&справочники!K249","v":"Зал и кабинет Ипостась Синтеза 264-Мерностного Синтезтела Матери Метагалактики Изначально Вышестоящего Отца, Управления Синтеза Санты ИВО\nЗал и кабинет Изначального Владыки ИВО Санты"},{"$f":"IF(Ипостасные!D266=\"\",\"\", \"Зал и кабинет \"&Ипостасные!C266&\" \"&Ипостасные!D266)","v":""}]
[8,null,{"$f":"\"Зал и кабинет \"&Ипостасные!C267&\" ИВО\nЗал и кабинет Изначального Владыки ИВО \"&справочники!K250","v":"Зал и кабинет Ипостась Синтеза 263-Мерностного Синтезтела Праведника Метагалактики Изначально Вышестоящего Отца, Управления Синтеза Доротеи ИВО\nЗал и кабинет Изначального Владыки ИВО Доротеи"},{"$f":"IF(Ипостасные!D267=\"\",\"\", \"Зал и кабинет \"&Ипостасные!C267&\" \"&Ипостасные!D267)","v":""}]
[7,null,{"$f":"\"Зал и кабинет \"&Ипостасные!C268&\" ИВО\nЗал и кабинет Изначального Владыки ИВО \"&справочники!K251","v":"Зал и кабинет Ипостась Синтеза 262-Мерностного Синтезтела Неизречённого Метагалактики Изначально Вышестоящего Отца, Управления Синтеза Янины ИВО\nЗал и кабинет Изначального Владыки ИВО Янины"},{"$f":"IF(Ипостасные!D268=\"\",\"\", \"Зал и кабинет \"&Ипостасные!C268&\" \"&Ипостасные!D268)","v":""}]
[6,null,{"$f":"\"Зал и кабинет \"&Ипостасные!C269&\" ИВО\nЗал и кабинет Изначального Владыки ИВО \"&справочники!K252","v":"Зал и кабинет Ипостась Синтеза 261-Мерностного Синтезтела Всемогущего Метагалактики Изначально Вышестоящего Отца, Управления Синтеза Люции ИВО\nЗал и кабинет Изначального Владыки ИВО Люции"},{"$f":"IF(Ипостасные!D269=\"\",\"\", \"Зал и кабинет \"&Ипостасные!C269&\" \"&Ипостасные!D269)","v":""}]
[5,null,{"$f":"\"Зал и кабинет \"&Ипостасные!C270&\" ИВО\nЗал и кабинет Изначального Владыки ИВО \"&справочники!K253","v":"Зал и кабинет Ипостась Синтеза 260-Мерностного Синтезтела Предвечного Метагалактики Изначально Вышестоящего Отца, Управления Синтеза Ирэн ИВО\nЗал и кабинет Изначального Владыки ИВО Ирэн"},{"$f":"IF(Ипостасные!D270=\"\",\"\", \"Зал и кабинет \"&Ипостасные!C270&\" \"&Ипостасные!D270)","v":""}]
[4,null,{"$f":"\"Зал и кабинет \"&Ипостасные!C271&\" ИВО\nЗал и кабинет Изначального Владыки ИВО \"&справочники!K254","v":"Зал и кабинет Ипостась Синтеза 259-Мерностного Синтезтела Предначального Метагалактики Изначально Вышестоящего Отца, Управления Синтеза Сесилии ИВО\nЗал и кабинет Изначального Владыки ИВО Сесилии"},{"$f":"IF(Ипостасные!D271=\"\",\"\", \"Зал и кабинет \"&Ипостасные!C271&\" \"&Ипостасные!D271)","v":""}]
[3,null,{"$f":"\"Зал и кабинет \"&Ипостасные!C272&\" ИВО\nЗал и кабинет Изначального Владыки ИВО \"&справочники!K255","v":"Зал и кабинет Ипостась Синтеза 258-Мерностного Синтезтела Вседержителя Метагалактики Изначально Вышестоящего Отца, Управления Синтеза Вериславы ИВО\nЗал и кабинет Изначального Владыки ИВО Вериславы"},{"$f":"IF(Ипостасные!D272=\"\",\"\", \"Зал и кабинет \"&Ипостасные!C272&\" \"&Ипостасные!D272)","v":""}]
[2,null,{"$f":"\"Зал и кабинет \"&Ипостасные!C273&\" ИВО\nЗал и кабинет Изначального Владыки ИВО \"&справочники!K256","v":"Зал и кабинет Ипостась Синтеза 257-Мерностного Синтезтела Всевышнего Метагалактики Изначально Вышестоящего Отца, Управления Синтеза Станиславы ИВО\nЗал и кабинет Изначального Владыки ИВО Станиславы"},{"$f":"IF(Ипостасные!D273=\"\",\"\", \"Зал и кабинет \"&Ипостасные!C273&\" \"&Ипостасные!D273)","v":""}]
[1,null,{"$f":"\"Зал и кабинет \"&Ипостасные!C274&\" ИВО\nЗал и кабинет Изначального Владыки ИВО \"&справочники!K257","v":"Зал и кабинет Ипостась Синтеза 256-Мерностного Синтезтела Человека Планеты Метагалактики Изначально Вышестоящего Отца, Управления Синтеза Милославы ИВО\nЗал и кабинет Изначального Владыки ИВО Милославы"},{"$f":"IF(Ипостасные!D274=\"\",\"\", \"Зал и кабинет \"&Ипостасные!C274&\" \"&Ипостасные!D274)","v":""}]

{"sheet":"Этажи","index":3,"n_rows":4,"n_cols":1,"rows_kept":4,"cut":false,"hidden":false,"merged":[[0,0,0,1],[1,0,1,1],[18,0,18,1],[3,0,3,1]]}
[{"$f":"\"План здания \"&Наименование_Подразделения&\" \"&Изначальность&\" Изначальности, \"&Территория","v":"План здания ИВДИВО 256 Изначальности, Москва"}]
["В плане здания распределены только Ипостасные ИВДИВО Основного и Синтезного состава. Служащие, Посвящённые и Полномочные приписаны к Ипостасным и составляют их группы явления в Залах."]
[]
["План 256-ти этажей:"]

{"sheet":"справочники","index":4,"n_rows":274,"n_cols":17,"rows_kept":274,"cut":false,"hidden":false,"merged":[]}
["№ Изн","территория","территории","Отделения","Название подразделения","Название подразделения в родительном падеже","128рица Синтеза ИВО","256-рица ИВО","256-рица ИВО в родительном падеже","ИВладыки","ИВладыки","Вид подразделения",{"$f":"\"Контакты Ипостасных подразделения \"&Наименование_Подразделения&\" \"&Изначальность&\" Изначальности\"&\", \"&Территория","v":"Контакты Ипостасных подразделения ИВДИВО 256 Изначальности, Москва"},null,null,null,"128 частей"]
[256,"Москва","Москвы","Р","ИВДИВО","ИВДИВО","ИВДИВО","ИВ Отец ИВО","ИВ Отца ИВО","Кут Хуми   ","Кут Хуми","1 Состав: 16 Служащих","Фаинь",null,0,0," Отец ИВО                               "]
[255,"Санкт-Петербург","Санкт-Петербурга","Р","Изначально Вышестоящая Иерархия ИВО ИВДИВО","Изначально Вышестоящей Иерархии ИВО ИВДИВО","Иерархия ИВО","ИВ Владыка ИВО","ИВ Владыки ИВО","Иосиф","Иосифа","2 Состав: 22 Служащих","Славия","Наименование подразделения в родительном падеже:",null,null," Владыка ИВО                         "]
[254,"Новосибирск","Новосибирска","Р","Синтез Изначально Вышестоящего Человека ИВО ИВДИВО","Синтеза Изначально Вышестоящего Человека ИВО ИВДИВО","Цивилизация ИВО","ИВ Учитель ИВО","ИВ Учителя ИВО","Мория","Мории","3 Состав: 27 Служащих","Свет","Управление Синтеза",null,null," Учитель ИВО                          "]
[253,"Крым","Крыма","Р","Синтез Изначально Метагалактической Цивилизации ИВО ИВДИВО","Синтеза Изначально Метагалактической Цивилизации ИВО ИВДИВО","Психодинамика ИВО","ИВ Логос ИВО","ИВ Логоса ИВО","Филипп","Филиппа","4 Состав: 33 Служащих","Марина","Территория (именительный падеж):",null,null," Логос ИВО                              "]
[252,"Краснодар","Краснодара","Р","Синтез Метагалактической Гражданской Конфедерации ИВО ИВДИВО","Синтеза Метагалактической Гражданской Конфедерации ИВО ИВДИВО","Человек ИВО","ИВ Аватар ИВО","ИВ Аватара ИВО","Византий","Византия","5 Состав: 40 Служащих","Альбина","Территория (родительный падеж):",null,null," Аватар ИВО                            "]
[251,"Красноярск","Красноярска","Р","Синтез Изначально Психодинамического Мастерства ИВО ИВДИВО","Синтеза Изначально Психодинамического Мастерства ИВО ИВДИВО","Конфедерация ИВО","ИВ Ипостась ИВО","ИВ Ипостаси ИВО","Янов","Янова","6 Состав: 50 Служащих","Вероника","Владыка",null,null," Ипостась ИВО                        "]
[250,"Екатеринбург","Екатеринбурга","Р","Синтез Изначально Вышестоящих Статусов ИВО ИВДИВО","Синтеза Изначально Вышестоящих Статусов ИВО ИВДИВО","Теофа ИВО","ИВ Служащий ИВО","ИВ Служащего ИВО","Юлий","Юлия","7 Состав: 59 Служащих","Сиана","Владычица",null,null," Служащий ИВО                      "]
[249,"Московия","Московии","Р","Синтез Изначально Вышестоящих Посвящений ИВО ИВДИВО","Синтеза Изначально Вышестоящих Посвящений ИВО ИВДИВО","Изначальная Метагалактика ИВО","ИВ Посвящённый ИВО","ИВ Посвящённого ИВО","Юсеф ","Юсефа","8 Состав: 68 Служащих","Она",null,null,null," Посвящённый ИВО                "]
[248,"Иркутск","Иркутска","Р","Синтез Изначально Вышестоящего Полномочного ИВО ИВДИВО","Синтеза Изначально Вышестоящего Полномочного ИВО ИВДИВО","ИВДИВО Полномочного","ИВ Полномочный ИВО","ИВ Полномочного ИВО","Владомир  ","Владомира","9 Состав: 76 Служащих","Стефания",null,null,null," Полномочный ИВО                "]
[247,"Сочи","Сочи","Р","Синтез Генезиса ИВО ИВДИВО","Синтеза Генезиса ИВО ИВДИВО","Статусы ИВО","ИВ Ману ИВО","ИВ Ману ИВО","Савва         ","Саввы","10 Состав: 84 Служащих","Свята",null,null,null," Ману ИВО                               "]
[246,"Ставрополь","Ставрополя","Р","Синтез Практик ИВО ИВДИВО","Синтеза Практик ИВО ИВДИВО","Посвящения ИВО","ИВ Теург ИВО","ИВ Теурга ИВО","Савелий     ","Савелия","11 Состав: 92 Служащих","Баяна",null,null,null," Теург ИВО                                "]
[245,"Самара","Самары","Р","Синтез Человечности ИВО ИВДИВО","Синтеза Человечности ИВО ИВДИВО","Технологии ИВО","ИВ Творец ИВО","ИВ Творца ИВО","Вильгельм ","Вильгельма","12 Состав: 100 Служащих","Екатерина",null,null,null," Творец ИВО                                "]
[244,"Ростов-на-Дону","Ростова-на-Дону","Р","Синтез Служения ИВО ИВДИВО","Синтеза Служения ИВО ИВДИВО","Изначальности ИВО","ИВ Аспект ИВО","ИВ Аспекта ИВО","Юстас        ","Юстаса","13 Состав: 108 Служащих","Сивилла",null,null,null," Аспект ИВО                             "]
[243,"Челны","Челнов","Р","Синтез Взрастания ИВО ИВДИВО","Синтеза Взрастания ИВО ИВДИВО","Присутствия ИВО","ИВ Майтрейя ИВО","ИВ Майтрейи ИВО","Александр ","Александра","14 Состав: 116 Служащих","Тамила",null,null,null," Майтрейя ИВО                        "]
[242,"Кавминводы","Кавминвод","Р","Синтез Воскрешения ИВО ИВДИВО","Синтеза Воскрешения ИВО ИВДИВО","Миры ИВО","ИВ Христос ИВО","ИВ Христа ИВО","Яромир       ","Яромира","15 Состав: 124 Служащих","Ника",{"$f":"\"Отец, Ипостась Синтез Синтеза Изначально Вышестоящего Отца, Глава \"&Наименование_Подразделения&\" \"&Изначальность&\" Изначальности, Управления Синтеза Кут Хуми\"","v":"Отец, Ипостась Синтез Синтеза Изначально Вышестоящего Отца, Глава ИВДИВО 256 Изначальности, Управления Синтеза Кут Хуми"},null,null," Христос ИВО                           "]
[241,"Казань","Казани","Р","Синтез Пробуждения ИВО ИВДИВО","Синтеза Пробуждения ИВО ИВДИВО","Метагалактика ИВО","ИВ Будда ИВО","ИВ Будды ИВО","Серапис      ","Сераписа","16 Состав: 128 Служащих","Велетте",{"$f":"\"Владыка, Ипостась \"&IFERROR(INDEX(_256_ИВО,257-Изначальность),\"ошибка\")&\", Глава Высшей Школы Синтеза ИВДИВО \"&Изначальность&\" Изначальности, Управления Синтеза Иосифа\"","v":"Владыка, Ипостась ИВ Отца ИВО, Глава Высшей Школы Синтеза ИВДИВО 256 Изначальности, Управления Синтеза Иосифа"},null,null," Будда ИВО                               "]
[240,"Севастополь","Севастополя","Р","Синтез Ипостасности ИВО ИВДИВО","Синтеза Ипостасности ИВО ИВДИВО","Синтез ИВДИВО Изначального Неизречённого","ИВ ИВЧеловек ИВО","ИВ ИВЧеловека ИВО","Эдуард        ","Эдуарда",null,"Эмилия",{"$f":"\"Учитель, Ипостась Синтеза Изначального Владыки Кут Хуми, Глава Изначально Метагалактической Академии Наук \"&Территории&\", Управления Синтеза Мории\"","v":"Учитель, Ипостась Синтеза Изначального Владыки Кут Хуми, Глава Изначально Метагалактической Академии Наук Москвы, Управления Синтеза Мории"},null,null," Изначально Вышестоящий Человек ИВО        "]
[239,"Балтия","Балтии","Р","Синтез Пассионарности ИВО ИВДИВО","Синтеза Пассионарности ИВО ИВДИВО","Синтез Изначального Предвечного ИВО","ИВ Человек ИВО","ИВ Человека ИВО","Фадей          ","Фадея",null,"Елена",{"$f":"\"Учитель, Ипостась Синтеза Изначального Владыки \"&Владыка&\", Глава Изначального Центра Ипостаси Синтеза \"&Наименование_Подразделения&\", Управления Синтеза Филиппа\"","v":"Учитель, Ипостась Синтеза Изначального Владыки Кут Хуми, Глава Изначального Центра Ипостаси Синтеза ИВДИВО, Управления Синтеза Филиппа"},null,null," Человек ИВО                                                                "]
[238,"Бородино","Бородино","М","Синтез Истинности ИВО ИВДИВО","Синтеза Истинности ИВО ИВДИВО","Синтез Изначального Всемогущего ИВО","ИВ Сын ИВО","ИВ Сына ИВО","Серафим     ","Серафима",null,"Валерия",{"$f":"\"Учитель, Ипостась Синтеза Изначально Вышестоящего Отца, Глава Метагалактической Гражданской Конфедерации \"&Территории&\", Управления Синтеза Византия\"","v":"Учитель, Ипостась Синтеза Изначально Вышестоящего Отца, Глава Метагалактической Гражданской Конфедерации Москвы, Управления Синтеза Византия"},null,null," Сын ИВО                                   "]
[237,"Волгоград","Волгограда","Р","Синтез Окскости ИВО ИВДИВО","Синтеза Окскости ИВО ИВДИВО","Синтез Изначального Творца ИВО","ИВ Дочь ИВО","ИВ Дочери ИВО","Святослав  ","Святослава",null,"Олеся",{"$f":"\"Учитель, Ипостась Синтеза Изначально Вышестоящего Отца, Глава Дома Изначально Вышестоящего Отца Психодинамики \"&Изначальность&\" Изначальности, Управления Синтеза Янова\"","v":"Учитель, Ипостась Синтеза Изначально Вышестоящего Отца, Глава Дома Изначально Вышестоящего Отца Психодинамики 256 Изначальности, Управления Синтеза Янова"},null,null," Дочь ИВО                                     "]
[236,"Вологодск","Вологодской области","Р","Синтез Могущества ИВО ИВДИВО","Синтеза Могущества ИВО ИВДИВО","Синтез Изначального Теурга ИВО","ИВ Человек Изначальной Метагалактики ИВО","ИВ Человека Изначальной Метагалактики ИВО","Эоан            ","Эоана",null,"Антуанэтта",{"$f":"\"Учитель, Ипостась Синтеза Изначально Вышестоящего Отца, Глава Дома Изначально Вышестоящего Отца Статусов \"&Изначальность&\" Изначальности, Управления Синтеза Юлия\"","v":"Учитель, Ипостась Синтеза Изначально Вышестоящего Отца, Глава Дома Изначально Вышестоящего Отца Статусов 256 Изначальности, Управления Синтеза Юлия"},null,null," Человек Изначальной Метагалактики ИВО                 "]
[235,"Уфа","Уфы","Р","Синтез Изначальности ИВО ИВДИВО","Синтеза Изначальности ИВО ИВДИВО","Синтез Изначального Ману ИВО","ИВ Человек Изначальности ИВО","ИВ Человека Изначальности ИВО","Сергей         ","Сергея",null,"Юлиана",{"$f":"\"Учитель, Ипостась Синтеза Изначально Вышестоящего Отца, Глава Дома Изначально Вышестоящего Отца Посвящений \"&Изначальность&\" Изначальности, Управления Синтеза Юсефа\"","v":"Учитель, Ипостась Синтеза Изначально Вышестоящего Отца, Глава Дома Изначально Вышестоящего Отца Посвящений 256 Изначальности, Управления Синтеза Юсефа"},null,null," Человек Изначальности ИВО                        "]
[234,"Хакасия","Хакасии","Р","Синтез Присутствия ИВО ИВДИВО","Синтеза Присутствия ИВО ИВДИВО","Синтез Изначального Всевышнего ИВО","ИВ Человек Метагалактики ИВО","ИВ Человека Метагалактики ИВО","Сулейман   ","Сулеймана",null,"Синтия",{"$f":"\"Учитель, Ипостась Синтеза Изначально Вышестоящего Отца, Глава Метагалактического Агентства Информации \"&Территории&\", Управления Синтеза Владомира\"","v":"Учитель, Ипостась Синтеза Изначально Вышестоящего Отца, Глава Метагалактического Агентства Информации Москвы, Управления Синтеза Владомира"},null,null," Человек Метагалактики ИВО                       "]
[233,"Дагестан","Дагестана","Р","Синтез Изначальной Метагалактики ИВО ИВДИВО","Синтеза Изначальной Метагалактики ИВО ИВДИВО","Синтез Изначального Предначального ИВО","ИВ Мать ИВО","ИВ Матери ИВО","Себастьян  ","Себастьяна",null,"Виктория",null,null,null," Мать ИВО                         "]
[232,"Курск","Курска","Р","Синтез Метагалактики ИВО ИВДИВО","Синтеза Метагалактики ИВО ИВДИВО","Синтез ИВДИВО Изначально Вышестоящего Человека ИВО","ИВ Праведник ИВО","ИВ Праведника ИВО","Теодор         ","Теодора",null,"Дарида","Логос, Ипостась Синтеза Изначально Вышестоящего Отца, Глава Дома Отца Генезиса ИВО, Управления Синтеза Саввы",null,null," Праведник ИВО                                                        "]
[231,"Воронеж","Воронежа","Р","Синтез Планеты ИВО ИВДИВО","Синтеза Планеты ИВО ИВДИВО","Синтез Основного ИВО","ИВ Неизречённый ИВО","ИВ Неизречённого ИВО","Антей          ","Антея",null,"Алина","Логос, Ипостась Синтеза Изначально Вышестоящего Отца, Глава Дома Отца Практик ИВО, Управления Синтеза Савелия",null,null," Неизречённый ИВО       "]
[230,"Королёв","Королёва","М","Синтез Буддичности Человека ИВО ИВДИВО","Синтеза Буддичности Человека ИВО ИВДИВО","Синтез Истинного ИВО","ИВ Всемогущий ИВО","ИВ Всемогущего ИВО","Наум            ","Наума",null,"Софья","Логос, Ипостась Синтеза Изначально Вышестоящего Отца, Глава Дома Отца Человечности ИВО, Управления Синтеза Вильгельма",null,null," Всемогущий ИВО                                                 "]
[229,"Братск","Братска","Р","Синтез Всеединой Супергалактики ИВО ИВДИВО","Синтеза Всеединой Супергалактики ИВО ИВДИВО","Синтез Окского ИВО","ИВ Предвечный ИВО","ИВ Предвечного ИВО","Велемир      ","Велемира",null,"Агафья","Логос, Ипостась Синтеза Изначально Вышестоящего Отца, Глава Дома Отца Служения ИВО, Управления Синтеза Юстаса",null,null," Предвечный ИВО                                                      "]
[228,"Чита","Читы","Р","Синтез Единой Галактики ИВО ИВДИВО","Синтеза Единой Галактики ИВО ИВДИВО","Синтез Человека Изначальной Метагалактики ИВО","ИВ Предначальный ИВО","ИВ Предначального ИВО","Георг             ","Георга",null,"Дарья","Логос, Ипостась Синтеза Изначально Вышестоящего Отца, Глава Дома Отца Взрастания ИВО, Управления Синтеза Александра",null,null," Предначальный ИВО      "]
[227,"Тверь","Твери","Р","Синтез Универсума Солнца ИВО ИВДИВО","Синтеза Универсума Солнца ИВО ИВДИВО","Синтез Человека Изначальности ИВО","ИВ Вседержитель ИВО","ИВ Вседержителя ИВО","Алексей  ","Алексея",null,"Илана","Логос, Ипостась Синтеза Изначально Вышестоящего Отца, Глава Дома Отца Воскрешения ИВО, Управления Синтеза Яромира",null,null," Вседержитель ИВО                          "]
[226,"Бурятия","Бурятии","Р","Синтез Звёздной Вселенной ИВО ИВДИВО","Синтеза Звёздной Вселенной ИВО ИВДИВО","Синтез Человека Метагалактики ИВО","ИВ Всевышний ИВО","ИВ Всевышнего ИВО","Эмиль           ","Эмиля",null,"Яна","Логос, Ипостась Синтеза Изначально Вышестоящего Отца, Глава Дома Отца Пробуждения ИВО, Управления Синтеза Сераписа",null,null," Всевышний ИВО                           "]
[225,"Алтай","Алтая","Р","Синтез Физичности ИВО ИВДИВО","Синтеза Физичности ИВО ИВДИВО","Синтез Человека Планеты ИВО","ИВ Человек Планеты ИВО","ИВ Человека Планеты ИВО","Дарий     ","Дария",null,"Давлата","Логос, Ипостась Синтеза Изначально Вышестоящего Отца, Глава Дома Отца Ипостаси ИВО, Управления Синтеза Эдуарда",null,null," Человек Планеты ИВО                                     "]
[224,"Югра","Югры","М","Синтез Изначально Вышестоящего Дома Аватара ИВО","Синтеза Изначально Вышестоящего Дома Аватара ИВО","Синтез ИВДИВО Основ","ИВ Дом Аватара ИВО","ИВ Дома Аватара ИВО","Валентин     ","Валентина",null,"Ирина","Логос, Ипостась Синтеза Изначально Вышестоящего Отца, Глава Дома Отца Пассионарности ИВО, Управления Синтеза Фадея",null,null," Изначально Вышестоящий Дом Аватара ИВО       "]
[223,"Тамбов","Тамбова","Р","Синтез Изначально Вышестоящей Воли ИВО ИВДИВО","Синтеза Изначально Вышестоящей Воли ИВО ИВДИВО","Синтез Идеи ИВО","ИВ Воля ИВО","ИВ Воли ИВО","Савий          ","Савия",null,"Лина","Логос, Ипостась Синтеза Изначально Вышестоящего Отца, Глава Дома Отца Истинности ИВО, Управления Синтеза Серафима",null,null," Воля ИВО"]
[222,"Чебоксары","Чебоксар","М","Синтез Изначально Вышестоящей Мудрости ИВО ИВДИВО","Синтеза Изначально Вышестоящей Мудрости ИВО ИВДИВО","Синтез Сути ИВО","ИВ Мудрость ИВО","ИВ Мудрости ИВО","Вячеслав    ","Вячеслава",null,"Анастасия","Логос, Ипостась Синтеза Изначально Вышестоящего Отца, Глава Дома Отца Окскости ИВО, Управления Синтеза Святослава",null,null," Мудрость ИВО"]
[221,"Ангарск","Ангарска","М","Синтез Изначально Вышестоящей Любви ИВО ИВДИВО 221 Изначальности","Синтеза Изначально Вышестоящей Любви ИВО ИВДИВО 221 Изначальности","Синтез Смысла ИВО","ИВ Любовь ИВО","ИВ Любви ИВО","Андрей        ","Андрея",null,"Ома","Логос, Ипостась Синтеза Изначально Вышестоящего Отца, Глава Дома Отца Могущества ИВО, Управления Синтеза Эоана",null,null," Любовь ИВО "]
[220,"Волгодонск","Волгодонска","М","Синтез Изначально Вышестоящей Живы ИВО ИВДИВО","Синтеза Изначально Вышестоящей Живы ИВО ИВДИВО","Синтез Мысли ИВО","ИВ Жива ИВО","ИВ Живы ИВО","Давид          ","Давида",null,"Сольвейг","Логос, Ипостась Синтеза Изначально Вышестоящего Отца, Глава Дома Отца Изначальности ИВО, Управления Синтеза Сергея",null,null," Жива ИВО                                                                                  "]
[219,"Зеленогорск","Зеленогорска","М","Синтез Изначально Вышестоящего Творения ИВО ИВДИВО","Синтеза Изначально Вышестоящего Творения ИВО ИВДИВО","Синтез Чувства ИВО","ИВ Творение ИВО","ИВ Творения ИВО","Евгений     ","Евгения",null,"Октавия","Логос, Ипостась Синтеза Изначально Вышестоящего Отца, Глава Дома Отца Присутствия ИВО, Управления Синтеза Сулеймана",null,null," Творение ИВО   "]
[218,"Порубежье","Порубежья","Р","Синтез Изначально Вышестоящего Созидания ИВО ИВДИВО","Синтеза Изначально Вышестоящего Созидания ИВО ИВДИВО","Синтез Ощущения ИВО","ИВ Созидание ИВО","ИВ Созидания ИВО","Дмитрий     ","Дмитрия",null,"Кристина","Логос, Ипостась Синтеза Изначально Вышестоящего Отца, Глава Дома Отца Изначальной Метагалактики ИВО, Управления Синтеза Себастьяна",null,null," Созидание ИВО                                       "]
[217,"Новороссийск","Новороссийска","М","Синтез Изначально Вышестоящей Жизни ИВО ИВДИВО","Синтеза Изначально Вышестоящей Жизни ИВО ИВДИВО","Синтез Движения ИВО","ИВ Жизнь ИВО","ИВ Жизни ИВО","Есений        ","Есения",null,"Версавия","Логос, Ипостась Синтеза Изначально Вышестоящего Отца, Глава Дома Отца Метагалактики ИВО, Управления Синтеза Теодора",null,null," Жизнь ИВО "]
[216,"Донецк","Донецка","Р","Синтез Изначально Вышестоящего Дома Ипостаси ИВО","Синтеза Изначально Вышестоящего Дома Ипостаси ИВО","Синтез ИВДИВО Огня","ИВ Дом Ипостаси ИВО","ИВ Дома Ипостаси ИВО","Константин","Константина",null,"Ксения","Логос, Ипостась Синтеза Изначально Вышестоящего Отца, Глава Дома Отца Планеты ИВО, Управления Синтеза Антея",null,null," Изначально Вышестоящий Дом Ипостаси ИВО    "]
[215,"Омск","Омска","Р","Синтез Изначально Вышестоящего Генезиса ИВО ИВДИВО","Синтеза Изначально Вышестоящего Генезиса ИВО ИВДИВО","Синтез Духа ИВО","ИВ Генезис ИВО","ИВ Генезиса ИВО","Ростислав   ","Ростислава",null,"Эмма","Логос, Ипостась Синтеза Изначально Вышестоящего Отца, Глава Дома Отца Буддичности Человека ИВО, Управления Синтеза Наума",null,null," Генезис ИВО"]
[214,"Астана","Астаны","Р","Синтез Изначально Вышестоящей Практики ИВО ИВДИВО","Синтеза Изначально Вышестоящей Практики ИВО ИВДИВО","Синтез Света ИВО","ИВ Практика ИВО","ИВ Практики ИВО","Ян                ","Яна",null,"Стафия","Логос, Ипостась Синтеза Изначально Вышестоящего Отца, Глава Дома Отца Всеединой Супергалактики ИВО, Управления Синтеза Велемира",null,null," Практика ИВО "]
[213,"Киев","Киева","Р","Синтез Изначально Вышестоящей Человечности ИВО ИВДИВО","Синтеза Изначально Вышестоящей Человечности ИВО ИВДИВО","Синтез Энергии ИВО","ИВ Человечность ИВО","ИВ Человечности ИВО","Василий       ","Василия",null,"Оксана","Логос, Ипостась Синтеза Изначально Вышестоящего Отца, Глава Дома Отца Единой Галактики Метагалактики ИВО, Управления Синтеза Георга",null,null," Человечность ИВО "]
[212,"Минск","Минска","Р","Синтез Изначально Вышестоящего Служения ИВО ИВДИВО","Синтеза Изначально Вышестоящего Служения ИВО ИВДИВО","Синтез Субъядерности ИВО","ИВ Служение ИВО","ИВ Служения ИВО","Арсений      ","Арсения",null,"Ульяна","Логос, Ипостась Синтеза Изначально Вышестоящего Отца, Глава Дома Отца Универсума Солнца ИВО, Управления Синтеза Алексея",null,null," Служение ИВО"]
[211,"Одесса","Одессы","Р","Синтез Изначально Вышестоящей Изначальной Метагалактичности ИВО ИВДИВО","Синтеза Изначально Вышестоящей Изначальной Метагалактичности ИВО ИВДИВО","Синтез Формы ИВО","ИВ Изначальная Метагалактичность ИВО","ИВ Изначальной Метагалактичности ИВО","Огюст          ","Огюста",null,"Беатрисс","Логос, Ипостась Синтеза Изначально Вышестоящего Отца, Глава Дома Отца Звёздной Вселенной ИВО, Управления Синтеза Эмиля",null,null," Изначальная Метагалактичность ИВО "]
[210,"Днепр","Днепр","Р","Синтез Изначально Вышестоящей Изначальности ИВО ИВДИВО","Синтеза Изначально Вышестоящей Изначальности ИВО ИВДИВО","Синтез Содержания ИВО","ИВ Изначальность ИВО","ИВ Изначальности ИВО","Илий           ","Илия",null,"Оливия",null,null,null," Изначальность ИВО                                                          "]
[209,"Германия","Германии","Р","Синтез Изначально Вышестоящей Метагалактичности ИВО ИВДИВО","Синтеза Изначально Вышестоящей Метагалактичности ИВО ИВДИВО","Синтез Поля ИВО","ИВ Метагалактичность ИВО","ИВ Метагалактичности ИВО","Геральд      ","Геральда",null,"Алла","Аватар, Ипостась Синтеза Физичности Изначально Вышестоящего Отца Управления Синтеза Дария, Ипостась Ипостасного Синтеза ВШС",null,null," Метагалактичность ИВО"]
[208,"Азнакаево","Азнакаево","М","Синтез Изначально Вышестоящего Дома Служащего ИВО","Синтеза Изначально Вышестоящего Дома Служащего ИВО","Синтез Свойства ИВО","ИВ Дом Служащего ИВО","ИВ Дома Служащего ИВО","Платон        ","Платона",null,"Натали","Аватар, Ипостась Синтеза ИВД Аватара Изначально Вышестоящего Отца Управления Синтеза Валентина, Ипостась Профессионального Синтеза ВШС",null,null," Изначально Вышестоящий Дом Служащего ИВО    "]
[207," Харьков","Харькова","Р","Синтез Изначально Вышестоящей Пассионарности Идеи ИВО ИВДИВО","Синтеза Изначально Вышестоящей Пассионарности Идеи ИВО ИВДИВО","Синтез Функции ИВО","ИВ Пассионарность Идеи ИВО","ИВ Пассионарности Идеи ИВО","Николай     ","Николая",null,"Эва","Аватар, Ипостась Синтеза ИВ Воли Изначально Вышестоящего Отца Управления Синтеза Савия, Ипостась Синтеза Изначально Вышестоящего Отца ВШС",null,null," Пассионарность Идеи ИВО"]
[206,"Витебск","Витебска","Р","Синтез Изначально Вышестоящей Истинности Сути ИВО ИВДИВО","Синтеза Изначально Вышестоящей Истинности Сути ИВО ИВДИВО","Синтез Активности ИВО","ИВ Истинность Сути ИВО","ИВ Истинности Сути ИВО","Игорь         ","Игоря",null,"Лана","Аватар, Ипостась Синтеза ИВ Мудрости Изначально Вышестоящего Отца Управления Синтеза Вячеслава, Философский Синтез-Секретарь ВШС",null,null," Истинность Сути ИВО"]
[205,"Херсон","Херсона","Р","Синтез Изначально Вышестоящей Окскости Смысла ИВО ИВДИВО","Синтеза Изначально Вышестоящей Окскости Смысла ИВО ИВДИВО","Синтез Мощи ИВО","ИВ Окскость Смысла ИВО","ИВ Окскости Смысла ИВО","Яр                ","Яра",null,"Одель","Аватар, Ипостась Синтеза ИВ Любви Изначально Вышестоящего Отца Управления Синтеза Андрея, Ипостась Сиаматического Совета ИМАН",null,null," Окскость Смысла ИВО"]
[204,"Невинномыск","Невинномысска","Р","Синтез Изначально Вышестоящего Могущества Мысли ИВО ИВДИВО","Синтеза Изначально Вышестоящего Могущества Мысли ИВО ИВДИВО","Синтез Планеты ИВО","ИВ Могущество Мысли ИВО","ИВ Могущества Мысли ИВО","Вадим          ","Вадима",null,"Тамара","Аватар, Ипостась Синтеза ИВ Живы Изначально Вышестоящего Отца Управления Синтеза Давида, Ипостась Философского Совета ИМАН",null,null," Могущество Мысли ИВО"]
[203,"Молдова","Молдовы","Р","Синтез Изначально Вышестоящей Воссоединённости Чувств ИВО ИВДИВО","Синтеза Изначально Вышестоящей Воссоединённости Чувств ИВО ИВДИВО","Синтез Всеединства Супергалактики ИВО","ИВ Воссоединённость Чувства ИВО","ИВ Воссоединённости Чувства ИВО","Огнеслав    ","Огнеслава",null,"Нина","Аватар, Ипостась Синтеза ИВ Творения Изначально Вышестоящего Отца Управления Синтеза Евгения, Ипостась Учёного Совета ИМАН",null,null," Воссоединённость Чувства ИВО                                        "]
[202,"Запорожье","Запорожья","Р","Синтез Изначально Вышестоящего Образа Ощущений ИВО ИВДИВО","Синтеза Изначально Вышестоящего Образа Ощущений ИВО ИВДИВО","Синтез Универсума Солнца ИВО","ИВ Образ Ощущений ИВО","ИВ Образа Ощущений ИВО","Марк           ","Марка",null,"Орфея","Аватар, Ипостась Синтеза ИВ Созидания Изначально Вышестоящего Отца Управления Синтеза Дмитрия, Академический Секретарь ИМАН",null,null," Образ Ощущений ИВО                                                     "]
[201,"Темиртау","Темиртау","Р","Синтез Изначально Вышестоящей Изначальной Метагалактики Движения ИВО ИВДИВО","Синтеза Изначально Вышестоящей Изначальной Метагалактики Движения ИВО ИВДИВО","Синтез Физичности ИВО","ИВ Изначальная Метагалактика Движения ИВО","ИВ Изначальной Метагалактики Движения ИВО","Теон             ","Теона",null,"Вергилия","Аватар, Ипостась Синтеза ИВ Жизни Изначально Вышестоящего Отца Управления Синтеза Есения, Ипостась Синтез-Окскости",null,null," Изначальная Метагалактика Движения ИВО"]
[200,"Могилёв","Могилёва","М","Синтез Изначально Вышестоящего Дома Посвящённого ИВО Метагалактики","Синтеза Изначально Вышестоящего Дома Посвящённого ИВО Метагалактики","Синтез Матери ИВО","ИВ Дом Посвящённого ИВО","ИВ Дома Посвящённого ИВО","Трофим   ","Трофима",null,"Василиса","Аватар, Ипостась Синтеза ИВД Ипостаси Изначально Вышестоящего Отца Управления Синтеза Константина, Ипостась Синтез-Ипостасности",null,null," Изначально Вышестоящий Дом Посвящённого ИВО   "]
[199,"Алматы","Алматы","Р","Синтез Изначально Вышестоящего Духа Частей ИВО ИВДИВО","Синтеза Изначально Вышестоящего Духа Частей ИВО ИВДИВО","Синтез Дочери ИВО","ИВ Дух Частей ИВО","ИВ Духа Частей ИВО","Емельян     ","Емельяна",null,"Варвара","Аватар, Ипостась Синтеза ИВ Генезиса Изначально Вышестоящего Отца Управления Синтеза Ростислава, Ипостась Синтез-Метагалактичности",null,null," Дух Частей ИВО"]
[198,"Энергодар","Энергодара","М","Синтез Изначально Вышестоящего Света Систем ИВО ИВДИВО","Синтеза Изначально Вышестоящего Света Систем ИВО ИВДИВО","Синтез Аватара ИВО","ИВ Свет Систем ИВО","ИВ Света Систем ИВО","Ефрем       ","Ефрема",null,"Арина","Аватар, Ипостась Синтеза ИВ Практик Изначально Вышестоящего Отца Управления Синтеза Яна, Изначальный Офис-секретарь ИВДИВО",null,null," Свет Систем ИВО "]
[197,"Черкассы","Черкассы","Р","Синтез Изначально Вышестоящей Энергии Аппаратов ИВО ИВДИВО","Синтеза Изначально Вышестоящей Энергии Аппаратов ИВО ИВДИВО","Синтез Майтрейи ИВО","ИВ Энергия Аппаратов ИВО","ИВ Энергии Аппаратов ИВО","Натан          ","Натана",null,"Амалия",{"$f":"\"Аватар, Ипостась Синтеза ИВ Человечности Изначально Вышестоящего Отца Управления Синтеза Василия, Ипостась  \"&Р_М_Совета&\" Совета МГК\"","v":"Аватар, Ипостась Синтеза ИВ Человечности Изначально Вышестоящего Отца Управления Синтеза Василия, Ипостась  Регионального Совета МГК"},null,null," Энергия Аппаратов ИВО "]
[196,"Канск","Канска","М","Синтез Изначально Вышестоящей Субъядерности Частностей ИВО ИВДИВО","Синтеза Изначально Вышестоящей Субъядерности Частностей ИВО ИВДИВО","Синтез Христа ИВО","ИВ Субъядерность Частностей ИВО","ИВ Субъядерности Частностей ИВО","Артём          ","Артёма",null,"Елизавета",{"$f":"\"Аватар, Ипостась Синтеза ИВ Служения Изначально Вышестоящего Отца Управления Синтеза Арсения, Ипостась  \"&Р_М_Совета&\" Совета МГК\"","v":"Аватар, Ипостась Синтеза ИВ Служения Изначально Вышестоящего Отца Управления Синтеза Арсения, Ипостась  Регионального Совета МГК"},null,null," Субъядерность Частностей ИВО "]
[195,"Уральск","Уральска","М","Синтез Изначально Вышестоящей Формы Абсолютности ИВО ИВДИВО","Синтеза Изначально Вышестоящей Формы Абсолютности ИВО ИВДИВО","Синтез Будды ИВО","ИВ Форма Абсолютности ИВО","ИВ Формы Абсолютности ИВО","Игнатий      ","Игнатия",null,"Вера",{"$f":"\"Аватар, Ипостась Синтеза ИВ Изначальной Метагалактичности Изначально Вышестоящего Отца Управления Синтеза Огюста, \"&Р_М_Совет&\"  Ревизор МГК\"","v":"Аватар, Ипостась Синтеза ИВ Изначальной Метагалактичности Изначально Вышестоящего Отца Управления Синтеза Огюста, Региональный  Ревизор МГК"},null,null," Форма Абсолютности ИВО "]
[194,"Причерноморье","Причерноморья","М","Синтез Изначально Вышестоящего Содержания Воскрешения ИВО ИВДИВО","Синтеза Изначально Вышестоящего Содержания Воскрешения ИВО ИВДИВО","Синтез ИВДИВО Владыки","ИВ Содержание Воскрешения ИВО","ИВ Содержания Воскрешения ИВО","Юлиан        ","Юлиана",null,"Мирослава",{"$f":"\"Аватар, Ипостась Синтеза ИВ Изначальности Изначально Вышестоящего Отца Управления Синтеза Илия, \"&Р_М_Совет&\"  Секретарь МГК\"","v":"Аватар, Ипостась Синтеза ИВ Изначальности Изначально Вышестоящего Отца Управления Синтеза Илия, Региональный  Секретарь МГК"},null,null," Содержание Воскрешения ИВО"]
[193,"Полесье","Полесья","М","Синтез Изначально Вышестоящего Поля Пробуждения ИВО ИВДИВО","Синтеза Изначально Вышестоящего Поля Пробуждения ИВО ИВДИВО","Синтез Учителя ИВО","ИВ Поле Пробуждения ИВО","ИВ Поля Пробуждения ИВО","Аркадий     ","Аркадия",null,"Даяна","Аватар, Ипостась Синтеза ИВ Метагалактичности Изначально Вышестоящего Отца Управления Синтеза Геральда, Ипостась Культуры Синтеза",null,null," Поле Пробуждения ИВО"]
[192,"США","США","Р","Синтез Изначально Вышестоящего Дома Изначально Вышестоящего Человека ИВО","Синтеза Изначально Вышестоящего Дома Изначально Вышестоящего Человека ИВО","Синтез Логоса ИВО","ИВ Дом Изначально Вышестоящего Человека ИВО","ИВ Дома Изначально Вышестоящего Человека ИВО","Никита","Никиты",null,"Стелла","Аватар, Ипостась Синтеза ИВД Служащего Изначально Вышестоящего Отца Управления Синтеза Платона, Ипостась Психодинамического Мастерства",null,null," Изначально Вышестоящий Дом Изначально Вышестоящего Человека ИВО  "]
[191,"Елабуга","Елабуги","М","Синтез Владычества Статусов ИВО ИВДИВО","Синтеза Владычества Статусов ИВО ИВДИВО","Синтез Аспекта ИВО","ИВ Владычество Статусов ИВО","ИВ Владычества Статусов ИВО","Олег","Олега",null,"Дора","Аватар, Ипостась Синтеза ИВ Пассионарности Идеи Изначально Вышестоящего Отца Управления Синтеза Николая, Ипостась Пассионарного Синтеза",null,null," Владычество Статусов ИВО   "]
[190,"Вишнёвое","Вишнёвого","М","Синтез Прав Посвящений ИВО ИВДИВО","Синтеза Прав Посвящений ИВО ИВДИВО","Синтез Ипостаси ИВО","ИВ Права Посвящений ИВО","ИВ Прав Посвящений ИВО","Владимир","Владимира",null,"Клавдия","Аватар, Ипостась Синтеза ИВ Истинности Сути Изначально Вышестоящего Отца Управления Синтеза Игоря, Частный Синтез-Секретарь ИВДИВО",null,null," Права Посвящений ИВО"]
[189,"Белая Церковь","Белой Церкви","М","Синтез Стратагемии Знаний ИВО ИВДИВО","Синтеза Стратагемии Знаний ИВО ИВДИВО","Синтез Служащего ИВО","ИВ Стратагемия Знаний ИВО","ИВ Стратагемии Знаний ИВО","Стефан","Стефана",null,"Лада","Аватар, Ипостась Синтеза ИВ Окскости Смысла Изначально Вышестоящего Отца Управления Синтеза Яра, Ипостась Синтез-Генезиса",null,null," Стратагемия Знаний ИВО "]
[188,"Ялта","Ялты","М","Синтез Мочьности Наблюдателя ИВО ИВДИВО","Синтеза Мочьности Наблюдателя ИВО ИВДИВО","Синтез Посвящённого ИВО","ИВ Мочьность Наблюдателя ИВО","ИВ Мочьности Наблюдателя ИВО","Горислав","Горислава",null,"Ветта","Аватар, Ипостась Синтеза ИВ Могущества Мысли Изначально Вышестоящего Отца Управления Синтеза Вадима, Ипостась Статус-Синтеза",null,null," Мочьность Наблюдателя ИВО"]
[187,"Адыгея","Адыгеи","Р","Синтез Голоса Полномочий ИВО ИВДИВО","Синтеза Голоса Полномочий ИВО ИВДИВО","Синтез Праведника ИВО","ИВ Голос Полномочий ИВО","ИВ Голоса Полномочий ИВО","Никон","Никона",null,"Власта","Аватар, Ипостась Синтеза ИВ Воссоединённости Чувств Изначально Вышестоящего Отца Управления Синтеза Огнеслава, Ипостась Синтез-Стяжаний",null,null," Голос Полномочий ИВО"]
[186,"Караганда","Караганды","Р","Синтез Интуиции Генезиса ИВО ИВДИВО","Синтеза Интуиции Генезиса ИВО ИВДИВО","Синтез ИВДИВО Неизречённого","ИВ Интуиция Генезиса ИВО","ИВ Интуиции Генезиса ИВО","Эрик","Эрика",null,"Офелия","Аватар, Ипостась Синтеза ИВ Образа Ощущений Изначально Вышестоящего Отца Управления Синтеза Марка, Праздничный Секретарь ИВДИВО",null,null," Интуиция Генезиса ИВО  "]
[185,"Североуральск","Североуральска","М","Синтез Парадигмы Отца ИВО ИВДИВО","Синтеза Парадигмы Отца ИВО ИВДИВО","Синтез Предвечного ИВО","ИВ Парадигма Отца ИВО","ИВ Парадигмы Отца ИВО","Олаф","Олафа",null,"Даная","Аватар, Ипостась Синтеза ИВ Изначальной Метагалактики Движения ИВО Управления Синтеза Теона, Ипостась Синтез-Практик",null,null," Парадигма Отца ИВО"]
[184,"Чувашия","Чувашии","Р","Синтез Изначально Вышестоящего Дома Человека ИВО","Синтеза Изначально Вышестоящего Дома Человека ИВО","Синтез Всемогущего ИВО","ИВ Дом Человека ИВО","ИВ Дома Человека ИВО","Вацлав","Вацлава",null,"Ханна","Аватар, Ипостась Синтеза ИВД Посвящённого Изначально Вышестоящего Отца Управления Синтеза Трофима, Ипостась Синтез-Посвящений",null,null," Изначально Вышестоящий Дом Человека ИВО  "]
[183,"Житомир","Житомира","М","Синтез Столпа ИВО ИВДИВО","Синтеза Столпа ИВО ИВДИВО","Синтез Творца ИВО","ИВ Столп ИВО","ИВ Столпа ИВО","Левий","Левия",null,"Хлоя","Аватар, Ипостась Синтеза ИВ Духа Частей Изначально Вышестоящего Отца Управления Синтеза Емельяна, Ипостась Синтез-Инструментов",null,null," Столп ИВО"]
[182,"Шымкент","Шымкента","М","Синтез Сутенности ИВО ИВДИВО","Синтеза Сутенности ИВО ИВДИВО","Синтез Теурга ИВО","ИВ Сутенность ИВО","ИВ Сутенности ИВО","Руслан","Руслана",null,"Надежда","Аватар, Ипостась Синтеза ИВ Света Систем Изначально Вышестоящего Отца Управления Синтеза Ефрема, Энергопотенциальный Секретарь ИВДИВО",null,null," Сутенность ИВО"]
[181,"Европа","Европы","Р","Синтез Пассионарности ИВО ИВДИВО","Синтеза Пассионарности ИВО ИВДИВО","Синтез Ману ИВО","ИВ Пассионарность ИВО","ИВ Пассионарности ИВО","Генрих","Генриха",null,"Олла","Аватар, Ипостась Синтеза ИВ Энергии Аппаратов Изначально Вышестоящего Отца Управления Синтеза Натана, Ипостась Синтез-Сайта ИВДИВО",null,null," Пассионарность ИВО"]
[180,"Италия","Италии","Р","Синтез Чаши ОМ ИВО ИВДИВО","Синтеза Чаши ОМ ИВО ИВДИВО","Синтез Всевышнего ИВО","ИВ Чаша ОМ ИВО","ИВ Чаши ОМ ИВО","Владлен","Владлена",null,"Илона","Аватар, Ипостась Синтеза ИВ Субъядерности Частностей Изначально Вышестоящего Отца Управления Синтеза Артёма, Ипостась Синтез-Мышления",null,null," Чаша ОМ ИВО"]
[179,"Усолье-Сибирское","Усолья-Сибирского","М","Синтез Куба Созидания ИВО ИВДИВО","Синтеза Куба Созидания ИВО ИВДИВО","Синтез Предначального ИВО","ИВ Куб Созидания ИВО","ИВ Куба Созидания ИВО","Борислав","Борислава",null,"Генриетта","Аватар, Ипостась Синтеза ИВ Формы Абсолютности Изначально Вышестоящего Отца Управления Синтеза Игнатия, Ипостась Пресс-секретарь ИВДИВО",null,null," Куб Созидания ИВО"]
[178,"Петропавловск","Петропавловска","Р","Синтез Потенциала ИВО ИВДИВО","Синтеза Потенциала ИВО ИВДИВО","Синтез ИВДИВО Человека ИВО","ИВ Потенциал ИВО","ИВ Потенциала ИВО","Нестор","Нестора",null,"Мария","Аватар, Ипостась Синтеза ИВ Содержания Воскрешения ИзначальноВышестоящегоОтца Управления Синтеза Юлиана, Ипостась Дома Отца Генезиса ИВО",null,null," Потенциал ИВО"]
[177,"Приднепровье","Приднепровья","Р","Синтез Вечности Отца ИВО ИВДИВО","Синтеза Вечности Отца ИВО ИВДИВО","Синтез Основного Тела ИВО","ИВ Вечность Отца ИВО","ИВ Вечности Отца ИВО","Аристарх","Аристарха",null,"Глория","Аватар, Ипостась Синтеза ИВ Поле Пробуждения Изначально Вышестоящего Отца Управления Синтеза Аркадия, Ипостась Дома Отца Генезиса ИВО",null,null," Вечность Отца ИВО"]
[176,"Стерлитамак","Стерлитамака","М","Синтез Изначально Вышестоящего Дома Сына ИВО","Синтеза Изначально Вышестоящего Дома Сына ИВО","Синтез Истины ИВО","ИВ Дом Сына ИВО","ИВ Дома Сына ИВО","Альфред","Альфреда",null,"Констанция","Аватар, Ипостась Синтеза ИВД ИВ Человека Изначально Вышестоящего Отца Управления Синтеза Никиты, Ипостась Дома Отца Генезиса ИВО",null,null," Изначально Вышестоящий Дом Сына ИВО  "]
[175,"Измаил","Измаила","М","Синтез Веры ИВО ИВДИВО","Синтеза Веры ИВО ИВДИВО","Синтез Ока ИВО","ИВ Вера ИВО","ИВ Веры ИВО","Егор","Егора",null,"Стэвия","Аватар, Ипостась Синтеза Владычества Статусов Изначально Вышестоящего Отца Управления Синтеза Олега, Ипостась Дома Отца Практик ИВО",null,null," Вера ИВО "]
[174,"Актау","Актау","М","Синтез Рацио ИВО ИВДИВО","Синтеза Рацио ИВО ИВДИВО","Синтез Хум ИВО","ИВ Рацио ИВО","ИВ Рацио ИВО","Витольд","Витольда",null,"Полина","Аватар, Ипостась Синтеза Прав Посвящений Изначально Вышестоящего Отца Управления Синтеза Владимира, Ипостась Дома Отца Практик ИВО",null,null," Рацио ИВО"]
[173,"Зальцгиттер","Зальцгиттер","Р","Синтез Памяти ИВО ИВДИВО","Синтеза Памяти ИВО ИВДИВО","Синтез Абсолюта ИВО","ИВ Память ИВО","ИВ Памяти ИВО","Стократ","Стократа",null,"Виру","Аватар, Ипостась Синтеза Стратагемии Знаний Изначально Вышестоящего Отца Управления Синтеза Стефана, Ипостась Дома Отца Практик ИВО",null,null," Память ИВО"]
[172,"Хальброн ","Хальброн ","Р","Синтез Прозрения ИВО ИВДИВО","Синтеза Прозрения ИВО ИВДИВО","Синтез Омеги ИВО","ИВ Прозрение ИВО","ИВ Прозрения ИВО","Глеб","Глеба",null,"Фанна","Аватар, Ипостась Синтеза Мочьности Наблюдателя Изначально Вышестоящего Отца Управления Синтеза Горислава, Ипостась Дома Отца Человечности ИВО",null,null," Прозрение ИВО"]
[171,null,null,null,null,null,"Синтез Монады ИВО","ИВ Униграмма ИВО","ИВ Униграммы ИВО","Клавдий","Клавдия",null,"Евгения","Аватар, Ипостась Синтеза Голоса Полномочий Изначально Вышестоящего Отца Управления Синтеза Никона, Ипостась Дома Отца Человечности ИВО",null,null," Униграмма ИВО"]
[170,null,null,null,null,null,"Синтез ИВДИВО Человека Изначальной Метагалактики","ИВ Мерность ИВО","ИВ Мерности ИВО","Теонис","Теониса",null,"Элина","Аватар, Ипостась Синтеза Интуиции Генезиса Изначально Вышестоящего Отца Управления Синтеза Эрика, Ипостась Дома Отца Человечности ИВО",null,null," Мерность ИВО"]
[169,null,null,null,null,null,"Синтез Физического Тела ИВО","ИВ Заряженность ИВО","ИВ Заряженности ИВО","Донан","Донана",null,"Сара","Аватар, Ипостась Синтеза Парадигмы Отца Изначально Вышестоящего Отца Управления Синтеза Олафа, Ипостась Дома Отца Служения ИВО",null,null," Заряженность ИВО                                               "]
[168,null,null,null,null,null,"Синтез Разума ИВО","ИВ Дом Дочери ИВО","ИВ Дома Дочери ИВО","Альберт","Альберта",null,"Алевтина","Аватар, Ипостась Синтеза ИВД Человека Изначально Вышестоящего Отца Управления Синтеза Вацлава, Ипостась Дома Отца Служения ИВО",null,null," Изначально Вышестоящий Дом Дочери ИВО "]
[167,null,null,null,null,null,"Синтез Сердца ИВО","ИВ Образ-тип ИВО","ИВ Образ-типа ИВО","Степан","Степана",null,"Раиса","Аватар, Ипостась Синтеза Столпа Изначально Вышестоящего Отца Управления Синтеза Левия, Ипостась Дома Отца Служения ИВО",null,null," Образ-тип ИВО                                                           "]
[166,null,null,null,null,null,"Синтез Мышления ИВО","ИВ Сообразительность ИВО","ИВ Сообразительности ИВО","Арсан","Арсана",null,"Аврора","Аватар, Ипостась Синтеза Сутенности Изначально Вышестоящего Отца Управления Синтеза Руслана, Ипостась Дома Отца Взрастания ИВО",null,null," Сообразительность ИВО                                                                                "]
[165,null,null,null,null,null,"Синтез Головерсума ИВО","ИВ Осмысленность ИВО","ИВ Осмысленности ИВО","Остап","Остапа",null,"Дилана","Аватар, Ипостась Синтеза ИВ Пассионарности Изначально Вышестоящего Отца Управления Синтеза Генриха, Ипостась Дома Отца Взрастания ИВО",null,null," Осмысленность ИВО"]
[164,null,null,null,null,null,"Синтез Восприятия ИВО","ИВ Логика ИВО","ИВ Логики ИВО","Роман","Романа",null,"Яся","Аватар, Ипостась Синтеза Чаши ОМ Изначально Вышестоящего Отца Управления Синтеза Владлена, Ипостась Дома Отца Взрастания ИВО",null,null," Логика ИВО                                                                                                    "]
[163,null,null,null,null,null,"Синтез Вечности Отца ИВО","ИВ Чувствознание ИВО","ИВ Чувствознания ИВО","Клим","Клима",null,"Фира","Аватар, Ипостась Синтеза Куба Созидания Изначально Вышестоящего Отца Управления Синтеза Борислава, Ипостась Дома Отца Воскрешения ИВО",null,null," Чувствознание ИВО"]
[162,null,null,null,null,null,"Синтез ИВДИВО Человека Изначальности","ИВ Проницание ИВО","ИВ Проницания ИВО","Пётр","Петра",null,"Омелия","Аватар, Ипостась Синтеза Потенциала Изначально Вышестоящего Отца Управления Синтеза Нестора, Ипостась Дома Отца Воскрешения ИВО",null,null," Проницание ИВО                                                                                      "]
[161,null,null,null,null,null,"Синтез Синтезтела ИВО","ИВ Активность ИВО","ИВ Активности ИВО","Макей","Макея",null,"Мадлен","Аватар, Ипостась Синтеза Вечности Отца Изначально Вышестоящего Отца Управления Синтеза Аристарха, Ипостась Дома Отца Воскрешения ИВО",null,null," Активность ИВО"]
[160,null,null,null,null,null,"Синтез Сообразительности ИВО","ИВ Дом Человека Изначальной Метагалактики ИВО","ИВ Дома Человека Изначальной Метагалактики ИВО","Анис","Аниса",null,"Римма","Аватар, Ипостась Синтеза ИВД Сына Изначально Вышестоящего Отца Управления Синтеза Альфреда, Ипостась Дома Отца Пробуждения ИВО",null,null," Изначально Вышестоящий Дом Человека Изначальной Метагалактики ИВО "]
[159,null,null,null,null,null,"Синтез Осмысленности ИВО","ИВ Ипостасное Тело ИВО","ИВ Ипостасного Тела ИВО","Ар","Ара",null,"Белла","Аватар, Ипостась Синтеза Веры Изначально Вышестоящего Отца Управления Синтеза Егора, Ипостась Дома Отца Пробуждения ИВО",null,null," Ипостасное Тело ИВО"]
[158,null,null,null,null,null,"Синтез Ума ИВО","ИВ Истина ИВО","ИВ Истины ИВО","Дорадий","Дорадия",null,"Агния","Аватар, Ипостась Синтеза Рацио Изначально Вышестоящего Отца Управления Синтеза Витольда, Ипостась Дома Отца Пробуждения ИВО",null,null," Истина ИВО"]
[157,null,null,null,null,null,"Синтез Провидения ИВО","ИВ Око ИВО","ИВ Око ИВО","Дор","Дор",null,"Фелиция","Аватар, Ипостась Синтеза Памяти Изначально Вышестоящего Отца Управления Синтеза Стократа, Ипостась Дома Отца Ипостаси ИВО",null,null," Око ИВО"]
[156,null,null,null,null,null,"Синтез Огненной Нити ИВО","ИВ Хум ИВО","ИВ Хум ИВО","Понтелей","Понтелея",null,"Виталина","Аватар, Ипостась Синтеза Прозрения Изначально Вышестоящего Отца Управления Синтеза Глеба, Ипостась Дома Отца Ипостаси ИВО",null,null," Хум ИВО"]
[155,null,null,null,null,null,"Синтез Пламени Отца ИВО","ИВ Абсолют ИВО Абсолют ИВО","ИВ Абсолюта ИВО Абсолют ИВО","Явир","Явира",null,"Нона","Аватар, Ипостась Синтеза Униграммы Изначально Вышестоящего Отца Управления Синтеза Клавдия, Ипостась Дома Отца Ипостаси ИВО",null,null," Абсолют ИВО"]
[154,null,null,null,null,null,"Синтез ИВДИВО Человека Метагалактики","ИВ Омега ИВО","ИВ Омеги ИВО","Трис","Триса",null,"Клементина","Аватар, Ипостась Синтеза Мерности Изначально Вышестоящего Отца Управления Синтеза Теониса, Ипостась Дома Отца Пассионарности ИВО",null,null," Омега ИВО"]
[153,null,null,null,null,null,"Синтез Трансвизора ИВО","ИВ Монада ИВО","ИВ Монады ИВО","Виктор","Виктора",null,"Лира","Аватар, Ипостась Синтеза Заряженности Изначально Вышестоящего Отца Управления Синтеза Донана, Ипостась Дома Отца Пассионарности ИВО",null,null," Монада ИВО "]
[152,null,null,null,null,null,"Синтез Интеллекта ИВО","ИВ Дом Человека Изначальности ИВО","ИВ Дома Человека Изначальности ИВО","Визар","Визара",null,"Ванесса","Аватар, Ипостась Синтеза ИВД Дочери Изначально Вышестоящего Отца Управления Синтеза Альберта, Ипостась Дома Отца Пассионарности ИВО",null,null," Изначально Вышестоящий Дом Человека Изначальности ИВО  "]
[151,null,null,null,null,null,"Синтез Престола ИВО","ИВ Физическое Тело ИВО","ИВ Физического Тела ИВО","Ерёма","Ерёмы",null,"Евдокия","Аватар, Ипостась Синтеза Образ-типа Изначально Вышестоящего Отца Управления Синтеза Степана, Ипостась Дома Отца Истинности ИВО",null,null," Физическое Тело ИВО "]
[150,null,null,null,null,null,"Синтез Веры ИВО","ИВ Разум ИВО","ИВ Разума ИВО","Ираклий","Ираклия",null,"Клара","Аватар, Ипостась Синтеза Сообразительности Изначально Вышестоящего Отца Управления Синтеза Арсана, Ипостась Дома Отца Истинности ИВО",null,null," Разум ИВО"]
[149,null,null,null,null,null,"Синтез Чувствознания ИВО","ИВ Сердце ИВО","ИВ Сердца ИВО","Елизар","Елизара",null,"Лиза","Аватар, Ипостась Синтеза Осмысленности Изначально Вышестоящего Отца Управления Синтеза Остапа, Ипостась Дома Отца Истинности ИВО",null,null," Сердце ИВО"]
[148,null,null,null,null,null,"Синтез Потенциала ИВО","ИВ Мышление ИВО","ИВ Мышления ИВО","Градимир","Градимира",null,"Сюзанна","Аватар, Ипостась Синтеза Логики Изначально Вышестоящего Отца Управления Синтеза Романа, Ипостась Дома Отца Окскости ИВО",null,null," Мышление ИВО"]
[147,null,null,null,null,null,"Синтез Мощи Отца ИВО","ИВ Головерсум ИВО","ИВ Головерсума ИВО","Рустам","Рустама",null,"Сейла","Аватар, Ипостась Синтеза Чувствознания Изначально Вышестоящего Отца Управления Синтеза Клима, Ипостась Дома Отца Окскости ИВО",null,null," Головерсум ИВО"]
[146,null,null,null,null,null,"Синтез ИВДИВО Человека Планеты","ИВ Восприятие ИВО","ИВ Восприятия ИВО","Октан","Октана",null,"Руслана","Аватар, Ипостась Синтеза Проницания Изначально Вышестоящего Отца Управления Синтеза Петра, Ипостась Дома Отца Окскости ИВО",null,null," Восприятие ИВО"]
[145,null,null,null,null,null,"Синтез Столпа ИВО","ИВ Пламя Отца ИВО","ИВ Пламени Отца ИВО","Силуан","Силуана",null,"Устина","Аватар, Ипостась Синтеза Активности Изначально Вышестоящего Отца Управления Синтеза Макея, Ипостась Дома Отца Могущества ИВО",null,null," Пламя Отца ИВО"]
[144,null,null,null,null,null,"Синтез Сознания ИВО","ИВ Дом Человека Метагалактики ИВО","ИВ Дома Человека Метагалактики ИВО","Лукьян","Лукьяна",null,"Марика","Аватар, Ипостась Синтеза ИВД Человека ИМг Изначально Вышестоящего Отца Управления Синтеза Аниса, Ипостась Дома Отца Могущества ИВО",null,null," Изначально Вышестоящий Дом Человека Метагалактики ИВО "]
[143,null,null,null,null,null,"Синтез Грааля ИВО","ИВ Синтезтело ИВО","ИВ Синтезтела ИВО","Люсьен","Люсьена",null,"Франсуаза","Аватар, Ипостась Синтеза Ипостасного Тела Изначально Вышестоящего Отца Управления Синтеза Ара, Ипостась Дома Отца Могущества ИВО",null,null," Синтезтело ИВО"]
[142,null,null,null,null,null,"Синтез Синтезобраза ИВО","ИВ Сознание ИВО","ИВ Сознания ИВО","Андриан","Андриана",null,"Христина","Аватар, Ипостась Синтеза Истины Изначально Вышестоящего Отца Управления Синтеза Дорадия, Ипостась Дома Отца Изначальности ИВО",null,null," Сознание ИВО "]
[141,null,null,null,null,null,"Синтез Души ИВО","ИВ Грааль ИВО","ИВ Грааля ИВО","Прокофий","Прокофия",null,"Иолана","Аватар, Ипостась Синтеза Око Изначально Вышестоящего Отца Управления Синтеза Дора, Ипостась Дома Отца Изначальности ИВО",null,null," Грааль ИВО "]
[140,null,null,null,null,null,"Синтез Слова Отца ИВО","ИВ Синтезобраз ИВО","ИВ Синтезобраза ИВО","Зарк","Зарка",null,"Джесика","Аватар, Ипостась Синтеза Хум Изначально Вышестоящего Отца Управления Синтеза Понтелея, Ипостась Дома Отца Изначальности ИВО",null,null," Синтезобраз ИВО"]
[139,null,null,null,null,null,"Синтез Образа Отца ИВО","ИВ Провидение ИВО","ИВ Провидения ИВО","Станис","Станиса",null,"Сабина","Аватар, Ипостась Синтеза Абсолют Изначально Вышестоящего Отца Управления Синтеза Явира, Ипостась Дома Отца Присутствия ИВО",null,null," Провидение ИВО"]
[138,null,null,null,null,null,"Синтезтело Изначальный Отец ИВО 383мерное","ИВ Нить Синтеза ИВО","ИВ Нити Синтеза ИВО","Панкрат","Панкрата",null,"Нелли","Аватар, Ипостась Синтеза Омега Изначально Вышестоящего Отца Управления Синтеза Триса, Ипостась Дома Отца Присутствия ИВО",null,null," Нить Синтеза ИВО"]
[137,null,null,null,null,null,"Синтезтело Изначальная Мать ИВО 382мерное","ИВ Мощь Отца ИВО","ИВ Мощи Отца ИВО","Старк","Старка",null,"Санта","Аватар, Ипостась Синтеза Монада Изначально Вышестоящего Отца Управления Синтеза Виктора, Ипостась Дома Отца Присутствия ИВО",null,null," Мощь Отца ИВО "]
[136,null,null,null,null,null,"Синтезтело Изначальный Сын ИВО 381мерное","ИВ Дом Человека Планеты ИВО","ИВ Дома Человека Планеты ИВО","Дорофей","Дорофея",null,"Доротея","Аватар, Ипостась Синтеза ИВД Человека Изначальности Изначально Вышестоящего Отца Управления Синтеза Визара, Ипостась Дома Отца ИМг ИВО",null,null," Изначально Вышестоящий Дом Человека Планеты ИВО "]
[135,null,null,null,null,null,"Синтезтело Изначальная Дочь ИВО 380мерное","ИВ Трансвизор ИВО Трансвизор ИВО","ИВ Трансвизора ИВО Трансвизор ИВО","Яков","Якова",null,"Янина","Аватар, Ипостась Синтеза Физического тела Изначально Вышестоящего Отца Управления Синтеза Ерёмы, Ипостась Дома Отца ИМг ИВО",null,null," Трансвизор ИВО"]
[134,null,null,null,null,null,"Синтезтело Изначальный Аватар ИВО 379мерное","ИВ Интеллект ИВО","ИВ Интеллекта ИВО","Ульян","Ульяна",null,"Люция","Аватар, Ипостась Синтеза Разума Изначально Вышестоящего Отца Управления Синтеза Ираклия, Ипостась Дома Отца ИМг ИВО",null,null," Интеллект ИВО "]
[133,null,null,null,null,null,"Синтезтело Изначальный Майтрейя ИВО 378мерное","ИВ Престол ИВО","ИВ Престола ИВО","Герман","Германа",null,"Ирэн","Аватар, Ипостась Синтеза Сердца Изначально Вышестоящего Отца Управления Синтеза Елизара, Ипостась Дома Отца Метагалактики ИВО",null,null," Престол ИВО "]
[132,null,null,null,null,null,"Синтезтело Изначальный Христос ИВО 377мерное","ИВ Ум ИВО","ИВ Ума ИВО","Радомир","Радомира",null,"Сесилия","Аватар, Ипостась Синтеза Мышления Изначально Вышестоящего Отца Управления Синтеза Градимира, Ипостась Дома Отца Метагалактики ИВО",null,null," Ум ИВО"]
[131,null,null,null,null,null,"Синтезтело Изначальный Будда ИВО 376мерное","ИВ Душа ИВО","ИВ Души ИВО","Октавий","Октавия",null,"Верислава","Аватар, Ипостась Синтеза Головерсума Изначально Вышестоящего Отца Управления Синтеза Рустама, Ипостась Дома Отца Метагалактики ИВО",null,null," Душа ИВО"]
[130,null,null,null,null,null,"Синтезтело Изначальный Владыка ИВО 375мерное","ИВ Слово Отца ИВО","ИВ Слова Отца ИВО","Ким","Кима",null,"Станислава","Аватар, Ипостась Синтеза Восприятия Изначально Вышестоящего Отца Управления Синтеза Октана, Ипостась Дома Отца Планеты ИВО",null,null," Слово Отца ИВО"]
[129,null,null,null,null,null,"Синтезтело Изначальный Учитель ИВО 374мерное","ИВ Образ Отца ИВО","ИВ Образа Отца ИВО","Бонифаций","Бонифация",null,"Милослава","Аватар, Ипостась Синтеза Пламени Отца Изначально Вышестоящего Отца Управления Синтеза Силуана, Ипостась Дома Отца Планеты ИВО",null,null," Образ Отца ИВО"]
[null,null,null,null,null,null,"Синтезтело Изначальный Логос ИВО 373мерное",null,null,"Фаинь","Фаинь",null,null,"Аватар, Ипостась Синтеза ИВД Человека Мг Изначально Вышестоящего Отца Управления Синтеза Лукьяна, Ипостась Дома Отца Планеты ИВО"]
[null,null,null,null,null,null,"Синтезтело Изначальный Аспект ИВО 372мерное",null,null,"Славия","Славии",null,null,"Аватар, Ипостась Синтеза Синтезтела Изначально Вышестоящего Отца Управления Синтеза Люсьена, Ипостась Дома Отца Буддичности Человека ИВО"]
[null,null,null,null,null,null,"Синтезтело Изначальная Ипостась ИВО 371мерное",null,null,"Свет","Свет",null,null,"Аватар, Ипостась Синтеза Сознания Изначально Вышестоящего Отца Управления Синтеза Андриана, Ипостась Дома Отца Буддичности Человека ИВО"]
[null,null,null,null,null,null,"Синтезтело Изначальный Служащий ИВО 370мерное",null,null,"Марина","Марины",null,null,"Аватар, Ипостась Синтеза Грааля Изначально Вышестоящего Отца Управления Синтеза Прокофия, Ипостась Дома Отца Буддичности Человека ИВО"]
[null,null,null,null,null,null,"Синтезтело Изначальный Посвящённый ИВО 369мерное",null,null,"Альбина","Альбины",null,null,"Аватар, Ипостась Синтеза Синтезобраза ИзначальноВышестоящегоОтца Управления Синтеза Зарка, Ипостась Дома Отца Всеединой Супергалактики ИВО"]
[null,null,null,null,null,null,"Синтезтело Изначальный Праведник ИВО 368мерное",null,null,"Вероника","Вероники",null,null,"Аватар, Ипостась Синтеза Провидения ИзначальноВышестоящегоОтца УправленияСинтеза Станиса, Ипостась Дома Отца Всеединой Супергалактики ИВО"]
[null,null,null,null,null,null,"Синтезтело Изначальный Неизречённый ИВО 367мерное",null,null,"Сиана","Сианы",null,null,"Аватар, Ипостась Синтеза Нить Синтеза Изначально Вышестоящего Отца Управления Синтеза Панкрата, Ипостась Дома Отца Всеединой Супергалактики ИВО"]
[null,null,null,null,null,null,"Синтезтело Изначальный Предвечный ИВО 366мерное",null,null,"Она","Оны",null,null,"Аватар, Ипостась Синтеза Мощи Отца Изначально Вышестоящего Отца Управления Синтеза Старка, Ипостась Дома Отца Единой Галактики ИВО"]
[null,null,null,null,null,null,"Синтезтело Изначальный Всемогущий ИВО 365мерное",null,null,"Стефания","Стефании",null,null,"Аватар, Ипостась Синтеза ИВД Человека Планеты Изначально Вышестоящего Отца Управления Синтеза Дорофея,Ипостась Дома Отца Единой Галактики ИВО"]
[null,null,null,null,null,null,"Синтезтело Изначальный Творец ИВО 364мерное",null,null,"Свята","Святы",null,null,"Аватар, Ипостась Синтеза Трансвизора Изначально Вышестоящего Отца Управления Синтеза Якова, Ипостась Дома Отца Единой Галактики ИВО"]
[null,null,null,null,null,null,"Синтезтело Изначальный Теург ИВО 363мерное",null,null,"Баяна","Баяны",null,null,"Аватар, Ипостась Синтеза Интеллекта Изначально Вышестоящего Отца Управления Синтеза Ульяна, Ипостась Дома Отца Универсума Солнца ИВО"]
[null,null,null,null,null,null,"Синтезтело Изначальный Ману ИВО 362мерное",null,null,"Екатерина","Екатерины",null,null,"Аватар, Ипостась Синтеза Престола Изначально Вышестоящего Отца Управления Синтеза Германа, Ипостась Дома Отца Универсума Солнца ИВО"]
[null,null,null,null,null,null,"Синтезтело Изначальный Всевышний ИВО 361мерное",null,null,"Сивилла","Сивиллы",null,null,"Аватар, Ипостась Синтеза Ума Изначально Вышестоящего Отца Управления Синтеза Радомира, Ипостась Дома Отца Универсума Солнца ИВО"]
[null,null,null,null,null,null,"Синтезтело Изначальный Предначальный ИВО 360мерное",null,null,"Тамила","Тамилы",null,null,"Аватар, Ипостась Синтеза Души Изначально Вышестоящего Отца Управления Синтеза Октавия, Ипостась Дома Отца Звёздной Вселенной ИВО"]
[null,null,null,null,null,null,"Синтезтело Изначальный Человек ИВО 359мерное",null,null,"Ника","Ники",null,null,"Аватар, Ипостась Синтеза Слова Отца Изначально Вышестоящего Отца Управления Синтеза Кима, Ипостась Дома Отца Звёздной Вселенной ИВО"]
[null,null,null,null,null,null,"Синтезтело Изначальный Основный ИВО 358мерное",null,null,"Велетте","Велетте",null,null,"Аватар, Ипостась Синтеза Образа Отца Изначально Вышестоящего Отца Управления Синтеза Бонифация, Ипостась Дома Отца Звёздной Вселенной ИВО"]
[null,null,null,null,null,null,"Синтезтело Изначальный Истинный ИВО 357мерное",null,null,"Эмилия","Эмилии"]
[null,null,null,null,null,null,"Синтезтело Изначальный Окский ИВО 356мерное",null,null,"Елена","Елены",null,null,"Ипостась Синтеза 383-Мерностного Синтезтела Изначально Вышестоящего Отца Изначально Вышестоящего Отца, Управления Синтеза Фаинь"]
[null,null,null,null,null,null,"Синтезтело Изначальный Человек Изначальной Метагалактики ИВО 355мерное",null,null,"Валерия","Валерии",null,null,"Ипостась Синтеза 382-Мерностного Синтезтела Изначально Вышестоящего Владыки Изначально Вышестоящего Отца, Управления Синтеза Славии"]
[null,null,null,null,null,null,"Синтезтело Изначальный Человек Изначальности ИВО 354мерное",null,null,"Олеся","Олеси",null,null,"Ипостась Синтеза 381-Мерностного Синтезтела Изначально Вышестоящего Учителя Изначально Вышестоящего Отца, Управления Синтеза Свет"]
[null,null,null,null,null,null,"Синтезтело Изначальный Человек Метагалактики ИВО 353мерное",null,null,"Антуанэтта","Антуанэтты",null,null,"Ипостась Синтеза 380-Мерностного Синтезтела Изначально Вышестоящего Логоса Изначально Вышестоящего Отца, Управления Синтеза Марины"]
[null,null,null,null,null,null,"Синтезтело Изначальный Человек Планеты ИВО 352мерное",null,null,"Юлиана","Юлианы",null,null,"Ипостась Синтеза 379-Мерностного Синтезтела Изначально Вышестоящего Аватара Изначально Вышестоящего Отца, Управления Синтеза Альбины"]
[null,null,null,null,null,null,"Синтезтело ИВДИВО Основ ИВО 351мерное",null,null,"Синтия","Синтии",null,null,"Ипостась Синтеза 378-Мерностного Синтезтела Изначально Вышестоящей Ипостаси Изначально Вышестоящего Отца, Управления Синтеза Вероники"]
[null,null,null,null,null,null,"Синтезтело Идей ИВО 350мерное",null,null,"Виктория","Виктории",null,null,"Ипостась Синтеза 377-Мерностного Синтезтела Изначально Вышестоящего Служащего Изначально Вышестоящего Отца, Управления Синтеза Сианы"]
[null,null,null,null,null,null,"Синтезтело Сути ИВО 349мерное",null,null,"Дарида","Дариды",null,null,"Ипостась Синтеза 376-Мерностного Синтезтела Изначально Вышестоящего Посвящённого Изначально Вышестоящего Отца, Управления Синтеза Оны"]
[null,null,null,null,null,null,"Синтезтело Смыслов ИВО 348мерное",null,null,"Алина","Алины",null,null,"Ипостась Синтеза 375-Мерностного Синтезтела Изначально Вышестоящего Полномочного Изначально Вышестоящего Отца, Управления Синтеза Стефании"]
[null,null,null,null,null,null,"Синтезтело Мысли ИВО 347мерное",null,null,"Софья","Софьи",null,null,"Ипостась Синтеза 374-Мерностного Синтезтела Изначально Вышестоящего Ману Изначально Вышестоящего Отца, Управления Синтеза Святы"]
[null,null,null,null,null,null,"Синтезтело Чувств ИВО 346мерное",null,null,"Агафья","Агафьи",null,null,"Ипостась Синтеза 373-Мерностного Синтезтела Изначально Вышестоящего Теурга Изначально Вышестоящего Отца, Управления Синтеза Баяны"]
[null,null,null,null,null,null,"Синтезтело Ощущений ИВО 345мерное",null,null,"Дарья","Дарьи",null,null,"Ипостась Синтеза 372-Мерностного Синтезтела Изначально Вышестоящего Творца Изначально Вышестоящего Отца, Управления Синтеза Екатерины"]
[null,null,null,null,null,null,"Синтезтело Движений ИВО 344мерное",null,null,"Илана","Иланы",null,null,"Ипостась Синтеза 371-Мерностного Синтезтела Изначально Вышестоящего Аспекта Изначально Вышестоящего Отца, Управления Синтеза Сивиллы"]
[null,null,null,null,null,null,"Синтезтело ИВДИВО Огня ИВО 343мерное",null,null,"Яна","Яны",null,null,"Ипостась Синтеза 370-Мерностного Синтезтела Изначально Вышестоящего Майтрейи Изначально Вышестоящего Отца, Управления Синтеза Тамилы"]
[null,null,null,null,null,null,"Синтезтело Духа ИВО 342мерное",null,null,"Давлата","Давлаты",null,null,"Ипостась Синтеза 369-Мерностного Синтезтела Изначально Вышестоящего Христа Изначально Вышестоящего Отца, Управления Синтеза Ники"]
[null,null,null,null,null,null,"Синтезтело Света ИВО 341мерное",null,null,"Ирина","Ирины",null,null,"Ипостась Синтеза 368-Мерностного Синтезтела Изначально Вышестоящего Будды Изначально Вышестоящего Отца, Управления Синтеза Велетте"]
[null,null,null,null,null,null,"Синтезтело Энергии ИВО 340мерное",null,null,"Лина","Лины",null,null,"Ипостась Синтеза 367-Мерностного Синтезтела Изначально Вышестоящего ИВ Человека ИВышестоящего Отца, Управления Синтеза Эмилии"]
[null,null,null,null,null,null,"Синтезтело Субъядерности ИВО 339мерное",null,null,"Анастасия","Анастасии",null,null,"Ипостась Синтеза 366-Мерностного Синтезтела Изначально Вышестоящего Человека Изначально Вышестоящего Отца, Управления Синтеза Елены"]
[null,null,null,null,null,null,"Синтезтело Формы ИВО 338мерное",null,null,"Ома","Омы",null,null,"Ипостась Синтеза 365-Мерностного Синтезтела Изначально Вышестоящего Сына Изначально Вышестоящего Отца, Управления Синтеза Валерии"]
[null,null,null,null,null,null,"Синтезтело Содержания ИВО 337мерное",null,null,"Сольвейг","Сольвейг",null,null,"Ипостась Синтеза 364-Мерностного Синтезтела Изначально Вышестоящей Дочери Изначально Вышестоящего Отца, Управления Синтеза Олеси"]
[null,null,null,null,null,null,"Синтезтело Поля ИВО 336мерное",null,null,"Октавия","Октавии",null,null,"Ипостась Синтеза 363-Мерностного Синтезтела Изначально Вышестоящего Человека ИМетагалактики ИВО, Управления Синтеза Антуанетты"]
[null,null,null,null,null,null,"Синтезтело ИВДИВО Изначальной Метагалактики ИВО 335мерное",null,null,"Кристина","Кристины",null,null,"Ипостась Синтеза 362-Мерностного Синтезтела Изначально Вышестоящего Человека Изначальности ИВОтца, Управления Синтеза Юлианы"]
[null,null,null,null,null,null,"Синтезтело Свойств ИВО 334мерное",null,null,"Версавия","Версавии",null,null,"Ипостась Синтеза 361-Мерностного Синтезтела Изначально Вышестоящего Человека Метагалактики ИВОтца, Управления Синтеза Синтии"]
[null,null,null,null,null,null,"Синтезтело Качеств ИВО 333мерное",null,null,"Ксения","Ксении",null,null,"Ипостась Синтеза 360-Мерностного Синтезтела Изначально Вышестоящей Матери Изначально Вышестоящего Отца, Управления Синтеза Виктории"]
[null,null,null,null,null,null,"Синтезтело Функций ИВО 332мерное",null,null,"Эмма","Эммы",null,null,"Ипостась Синтеза 359-Мерностного Синтезтела Изначально Вышестоящего Праведника ИВышестоящего Отца, Управления Синтеза Дариды"]
[null,null,null,null,null,null,"Синтезтело Процессов ИВО 331мерное",null,null,"Стафия","Стафии",null,null,"Ипостась Синтеза 358-Мерностного Синтезтела Изначально Вышестоящего Неизречённого ИВышестоящего Отца, Управления Синтеза Алины"]
[null,null,null,null,null,null,"Синтезтело Активностей ИВО 330мерное",null,null,"Оксана","Оксаны",null,null,"Ипостась Синтеза 357-Мерностного Синтезтела Изначально Вышестоящего Всемогущего ИВышестоящего Отца, Управления Синтеза Софьи"]
[null,null,null,null,null,null,"Синтезтело Заряженностей ИВО 329мерное",null,null,"Ульяна","Ульяны",null,null,"Ипостась Синтеза 356-Мерностного Синтезтела Изначально Вышестоящего Предвечного ИВышестоящего Отца, Управления Синтеза Агафьи"]
[null,null,null,null,null,null,"Синтезтело Мощи ИВО 328мерное",null,null,"Беатрисс","Беатрисс",null,null,"Ипостась Синтеза 355-Мерностного Синтезтела Изначально Вышестоящего Предначального ИВышестоящего Отца, Управления Синтеза Дарьи"]
[null,null,null,null,null,null,"Синтезтело ИВДИВО Метагалактики ИВО 327мерное",null,null,"Оливия","Оливии",null,null,"Ипостась Синтеза 354-Мерностного Синтезтела Изначально Вышестоящего Вседержителя ИВышестоящего Отца, Управления Синтеза Иланы"]
[null,null,null,null,null,null,"Синтезтело Планеты ИВО 326мерное",null,null,"Алла","Аллы",null,null,"Ипостась Синтеза 353-Мерностного Синтезтела Изначально Вышестоящего Всевышнего Изначально Вышестоящего Отца, Управления Синтеза Яны"]
[null,null,null,null,null,null,"Синтезтело Буддичности Человека ИВО 325мерное",null,null,"Натали","Натали",null,null,"Ипостась Синтеза 352-Мерностного Синтезтела Изначально Вышестоящего Человека Планеты Изначально Вышестоящего Отца, Управления Синтеза Давлаты"]
[null,null,null,null,null,null,"Синтезтело Всеединства Супергалактики ИВО 324мерное",null,null,"Эва","Эвы",null,null,"Ипостась Синтеза 351-Мерностного Синтезтела Отца Изначальной Метагалактики Изначально Вышестоящего Отца, Управления Синтеза Ирины"]
[null,null,null,null,null,null,"Синтезтело Единства Галактики ИВО 323мерное",null,null,"Лана","Ланы",null,null,"Ипостась Синтеза 350-Мерностного Синтезтела Владыки Изначальной Метагалактики Изначально Вышестоящего Отца, Управления Синтеза Лины"]
[null,null,null,null,null,null,"Синтезтело Универсума Солнца ИВО 322мерное",null,null,"Одель","Одель",null,null,"Ипостась Синтеза 349-Мерностного Синтезтела Учителя Изначальной Метагалактики Изначально Вышестоящего Отца, Управления Синтеза Анастасии"]
[null,null,null,null,null,null,"Синтезтело Звёздной Вселенной ИВО 321мерное",null,null,"Тамара","Тамары",null,null,"Ипостась Синтеза 348-Мерностного Синтезтела Логоса Изначальной Метагалактики Изначально Вышестоящего Отца, Управления Синтеза Омы"]
[null,null,null,null,null,null,"Синтезтело Физичности ИВО 320мерное",null,null,"Нина","Нины",null,null,"Ипостась Синтеза 347-Мерностного Синтезтела Аватара Изначальной Метагалактики Изначально Вышестоящего Отца, Управления Синтеза Сольвейг"]
[null,null,null,null,null,null,"Синтезтело ИВДИВО Отца ИВО 319мерное",null,null,"Орфея","Орфеи",null,null,"Ипостась Синтеза 346-Мерностного Синтезтела Ипостаси Изначальной Метагалактики Изначально Вышестоящего Отца, Управления Синтеза Октавии"]
[null,null,null,null,null,null,"Синтезтело Матери ИВО 318мерное",null,null,"Вергилия","Вергилии",null,null,"Ипостась Синтеза 345-Мерностного Синтезтела Служащего Изначальной Метагалактики Изначально Вышестоящего Отца, Управления Синтеза Кристины"]
[null,null,null,null,null,null,"Синтезтело Сына ИВО 317мерное",null,null,"Василиса","Василисы",null,null,"Ипостась Синтеза 344-Мерностного Синтезтела Посвящённого Изначальной Метагалактики Изначально Вышестоящего Отца, Управления Синтеза Версавии"]
[null,null,null,null,null,null,"Синтезтело Дочери ИВО 316мерное",null,null,"Варвара","Варвары",null,null,"Ипостась Синтеза 343-Мерностного Синтезтела Полномочного Изначальной Метагалактики Изначально Вышестоящего Отца, Управления Синтеза Ксении"]
[null,null,null,null,null,null,"Синтезтело Аватара ИВО 315мерное",null,null,"Арина","Арины",null,null,"Ипостась Синтеза 342-Мерностного Синтезтела Ману Изначальной Метагалактики Изначально Вышестоящего Отца, Управления Синтеза Эммы"]
[null,null,null,null,null,null,"Синтезтело Майтрейи ИВО 314мерное",null,null,"Амалия","Амалии",null,null,"Ипостась Синтеза 341-Мерностного Синтезтела Теурга Изначальной Метагалактики Изначально Вышестоящего Отца, Управления Синтеза Стафии"]
[null,null,null,null,null,null,"Синтезтело Христа ИВО 313мерное",null,null,"Елизавета","Елизаветы",null,null,"Ипостась Синтеза 340-Мерностного Синтезтела Творца Изначальной Метагалактики Изначально Вышестоящего Отца, Управления Синтеза Оксаны"]
[null,null,null,null,null,null,"Синтезтело Будды ИВО 312мерное",null,null,"Вера","Веры",null,null,"Ипостась Синтеза 339-Мерностного Синтезтела Аспекта Изначальной Метагалактики Изначально Вышестоящего Отца, Управления Синтеза Ульяны"]
[null,null,null,null,null,null,"Синтезтело ИВДИВО Владыки ИВО 311мерное",null,null,"Мирослава","Мирославы",null,null,"Ипостась Синтеза 338-Мерностного Синтезтела Майтрейю Изначальной Метагалактики ИВышестоящего Отца, Управления Синтеза Беатрисс"]
[null,null,null,null,null,null,"Синтезтело Учителя ИВО 310мерное",null,null,"Даяна","Даяны",null,null,"Ипостась Синтеза 337-Мерностного Синтезтела Христа Изначальной Метагалактики Изначально Вышестоящего Отца, Управления Синтеза Оливии"]
[null,null,null,null,null,null,"Синтезтело Логоса ИВО 309мерное",null,null,"Стелла","Стеллы",null,null,"Ипостась Синтеза 336-Мерностного Синтезтела Будду Изначальной Метагалактики Изначально Вышестоящего Отца, Управления Синтеза Аллы"]
[null,null,null,null,null,null,"Синтезтело Аспекта ИВО 308мерное",null,null,"Дора","Доры",null,null,"Ипостась Синтеза 335-Мерностного Синтезтела ИВ Человека ИВышестоящего Отца Изначальной Метагалактики, Управления Синтеза Натали"]
[null,null,null,null,null,null,"Синтезтело Ипостаси ИВО 307мерное",null,null,"Клавдия","Клавдии",null,null,"Ипостась Синтеза 334-Мерностного Синтезтела Человека Изначально Вышестоящего Отца Изначальной Метагалактики, Управления Синтеза Эвы"]
[null,null,null,null,null,null,"Синтезтело Служащего ИВО 306мерное",null,null,"Лада","Лады",null,null,"Ипостась Синтеза 333-Мерностного Синтезтела Сына Изначальной Метагалактики Изначально Вышестоящего Отца, Управления Синтеза Ланы"]
[null,null,null,null,null,null,"Синтезтело Посвящённого ИВО 305мерное",null,null,"Ветта","Ветты",null,null,"Ипостась Синтеза 332-Мерностного Синтезтела Дочери Изначальной Метагалактики Изначально Вышестоящего Отца, Управления Синтеза Одель"]
[null,null,null,null,null,null,"Синтезтело Праведника ИВО 304мерное",null,null,"Власта","Власты",null,null,"Ипостась Синтеза 331-Мерностного Синтезтела Человека Изначальной Метагалактики Изначально Вышестоящего Отца, Управления Синтеза Тамары"]
[null,null,null,null,null,null,"Синтезтело ИВДИВО Неизречённого ИВО 303мерное",null,null,"Офелия","Офелии",null,null,"Ипостась Синтеза 330-Мерностного Синтезтела Человека Изначальности Изначальной Метагалактики Изначально Вышестоящего Отца, Управления Синтеза Нины"]
[null,null,null,null,null,null,"Синтезтело Предвечного ИВО 302мерное",null,null,"Даная","Данаи",null,null,"Ипостась Синтеза 329-Мерностного Синтезтела Человека Метагалактики Изначальной Метагалактики Изначально Вышестоящего Отца, Управления Синтеза Орфеи"]
[null,null,null,null,null,null,"Синтезтело Всемогущего ИВО 301мерное",null,null,"Ханна","Ханны",null,null,"Ипостась Синтеза 328-Мерностного Синтезтела Матери Изначальной Метагалактики Изначально Вышестоящего Отца, Управления Синтеза Вергилии"]
[null,null,null,null,null,null,"Синтезтело Творца ИВО 300мерное",null,null,"Хлоя","Хлои",null,null,"Ипостась Синтеза 327-Мерностного Синтезтела Праведника Изначальной Метагалактики Изначально Вышестоящего Отца, Управления Синтеза Василисы"]
[null,null,null,null,null,null,"Синтезтело Теурга ИВО299мерное",null,null,"Надежда","Надежды",null,null,"Ипостась Синтеза 326-Мерностного Синтезтела Неизречённого Изначальной Метагалактики Изначально Вышестоящего Отца, Управления Синтеза Варвары"]
[null,null,null,null,null,null,"Синтезтело Ману ИВО 298мерное",null,null,"Олла","Оллы",null,null,"Ипостась Синтеза 325-Мерностного Синтезтела Всемогущего Изначальной Метагалактики Изначально Вышестоящего Отца, Управления Синтеза Арины"]
[null,null,null,null,null,null,"Синтезтело Всевышнего ИВО 297мерное",null,null,"Илона","Илоны",null,null,"Ипостась Синтеза 324-Мерностного Синтезтела Предвечного Изначальной Метагалактики Изначально Вышестоящего Отца, Управления Синтеза Амалии"]
[null,null,null,null,null,null,"Синтезтело Предначального ИВО 296мерное",null,null,"Генриетта","Генриетты",null,null,"Ипостась Синтеза 323-Мерностного Синтезтела Предначального Изначальной Метагалактики Изначально Вышестоящего Отца, Управления Синтеза Елизаветы"]
[null,null,null,null,null,null,"Синтезтело ИВДИВО Человека ИВО 295мерное",null,null,"Мария","Марии",null,null,"Ипостась Синтеза 322-Мерностного Синтезтела Вседержителя Изначальной Метагалактики Изначально Вышестоящего Отца, Управления Синтеза Веры"]
[null,null,null,null,null,null,"Синтезтело Основного Тела ИВО 294мерное",null,null,"Глория","Глории",null,null,"Ипостась Синтеза 321-Мерностного Синтезтела Всевышнего Изначальной Метагалактики Изначально Вышестоящего Отца, Управления Синтеза Мирославы"]
[null,null,null,null,null,null,"Синтезтело Истины ИВО 293мерное",null,null,"Констанция","Констанции",null,null,"Ипостась Синтеза 320-Мерностного Синтезтела Человека Планеты Изначальной Метагалактики Изначально Вышестоящего Отца, Управления Синтеза Даяны"]
[null,null,null,null,null,null,"Синтезтело Ока ИВО 292мерное",null,null,"Стэвия","Стэвии",null,null,"Ипостась Синтеза 319-Мерностного Синтезтела Отца Изначальности Изначально Вышестоящего Отца, Управления Синтеза Стеллы"]
[null,null,null,null,null,null,"Синтезтело Хум ИВО 291мерное",null,null,"Полина","Полины",null,null,"Ипостась Синтеза 318-Мерностного Синтезтела Владыки Изначальности Изначально Вышестоящего Отца, Управления Синтеза Доры"]
[null,null,null,null,null,null,"Синтезтело Абсолюта ИВО 290мерное",null,null,"Виру","Виру",null,null,"Ипостась Синтеза 317-Мерностного Синтезтела Учителя Изначальности Изначально Вышестоящего Отца, Управления Синтеза Клавдии"]
[null,null,null,null,null,null,"Синтезтело Омеги ИВО 289мерное",null,null,"Фанна","Фанны",null,null,"Ипостась Синтеза 316-Мерностного Синтезтела Логоса Изначальности Изначально Вышестоящего Отца, Управления Синтеза Лады"]
[null,null,null,null,null,null,"Синтезтело Монады ИВО 288мерное",null,null,"Евгения","Евгении",null,null,"Ипостась Синтеза 315-Мерностного Синтезтела Аватара Изначальности Изначально Вышестоящего Отца, Управления Синтеза Ветты"]
[null,null,null,null,null,null,"Синтезтело ИВДИВО Человека Изначальной Метагалактики ИВО 287мерное",null,null,"Элина","Элины",null,null,"Ипостась Синтеза 314-Мерностного Синтезтела Ипостаси Изначальности Изначально Вышестоящего Отца, Управления Синтеза Власты"]
[null,null,null,null,null,null,"Синтезтело Физического Тела ИВО 286мерное",null,null,"Сара","Сары",null,null,"Ипостась Синтеза 313-Мерностного Синтезтела Служащего Изначальности Изначально Вышестоящего Отца, Управления Синтеза Офелии"]
[null,null,null,null,null,null,"Синтезтело Разума ИВО 285мерное",null,null,"Алевтина","Алевтины",null,null,"Ипостась Синтеза 312-Мерностного Синтезтела Посвящённого Изначальности Изначально Вышестоящего Отца, Управления Синтеза Данаи"]
[null,null,null,null,null,null,"Синтезтело Сердца ИВО 284мерное",null,null,"Раиса","Раисы",null,null,"Ипостась Синтеза 311-Мерностного Синтезтела Полномочного Изначальности Изначально Вышестоящего Отца, Управления Синтеза Ханны"]
[null,null,null,null,null,null,"Синтезтело Мышления ИВО 283мерное",null,null,"Аврора","Авроры",null,null,"Ипостась Синтеза 310-Мерностного Синтезтела Ману Изначальности Изначально Вышестоящего Отца, Управления Синтеза Хлои"]
[null,null,null,null,null,null,"Синтезтело Головерсума ИВО 282мерное",null,null,"Дилана","Диланы",null,null,"Ипостась Синтеза 309-Мерностного Синтезтела Теурга Изначальности Изначально Вышестоящего Отца, Управления Синтеза Надежды"]
[null,null,null,null,null,null,"Синтезтело Восприятия ИВО 281мерное",null,null,"Яся","Яси",null,null,"Ипостась Синтеза 308-Мерностного Синтезтела Творца Изначальности Изначально Вышестоящего Отца, Управления Синтеза Оллы"]
[null,null,null,null,null,null,"Синтезтело Вечности Отца ИВО 280мерное",null,null,"Фира","Фиры",null,null,"Ипостась Синтеза 307-Мерностного Синтезтела Аспекта Изначальности Изначально Вышестоящего Отца, Управления Синтеза Илоны"]
[null,null,null,null,null,null,"Синтезтело ИВДИВО Человека Изначальности ИВО279",null,null,"Омелия","Омелии",null,null,"Ипостась Синтеза 306-Мерностного Синтезтела Майтрейи Изначальности Изначально Вышестоящего Отца, Управления Синтеза Генриетты"]
[null,null,null,null,null,null,"Синтезтело ИВО 278мерное",null,null,"Мадлен","Мадлен",null,null,"Ипостась Синтеза 305-Мерностного Синтезтела Христа Изначальности Изначально Вышестоящего Отца, Управления Синтеза Марии"]
[null,null,null,null,null,null,"Синтезтело Сообразительности ИВО 277мерное",null,null,"Римма","Риммы",null,null,"Ипостась Синтеза 304-Мерностного Синтезтела Будды Изначальности Изначально Вышестоящего Отца, Управления Синтеза Глории"]
[null,null,null,null,null,null,"Синтезтело Осмысленности ИВО 276мерное",null,null,"Белла","Беллы",null,null,"Ипостась Синтеза 303-Мерностного Синтезтела ИВЧеловека Изначально Вышестоящего Отца Изначальности, Управления Синтеза Констанции"]
[null,null,null,null,null,null,"Синтезтело Ума ИВО 275мерное",null,null,"Агния","Агнии",null,null,"Ипостась Синтеза 302-Мерностного Синтезтела Человека Изначально Вышестоящего Отца Изначальности, Управления Синтеза Стэвии"]
[null,null,null,null,null,null,"Синтезтело Провидения ИВО 274мерное",null,null,"Фелиция","Фелиции",null,null,"Ипостась Синтеза 301-Мерностного Синтезтела Сына Изначальности Изначально Вышестоящего Отца, Управления Синтеза Полины"]
[null,null,null,null,null,null,"Синтезтело Огненной Нити ИВО 273мерное",null,null,"Виталина","Виталины",null,null,"Ипостась Синтеза 300-Мерностного Синтезтела Дочери Изначальности Изначально Вышестоящего Отца, Управления Синтеза Виры"]
[null,null,null,null,null,null,"Синтезтело Пламени Отца ИВО 272мерное",null,null,"Нона","Ноны",null,null,"Ипостась Синтеза 299-Мерностного Синтезтела Человека Изначальной Метагалактики Изначальности ИВОтца, Управления Синтеза Фанны"]
[null,null,null,null,null,null,"Синтезтело ИВДИВО Человека Метагалактики ИВО 271мерное",null,null,"Клементина","Клементины",null,null,"Ипостась Синтеза 298-Мерностного Синтезтела Человека Изначальности Изначально Вышестоящего Отца, Управления Синтеза Евгении"]
[null,null,null,null,null,null,"Синтезтело Трансвизора ИВО 270мерное",null,null,"Лира","Лиры",null,null,"Ипостась Синтеза 297-Мерностного Синтезтела Человека Метагалактики Изначальности ИВышестоящего Отца, Управления Синтеза Элины"]
[null,null,null,null,null,null,"Синтезтело Интеллекта ИВО 269мерное",null,null,"Ванесса","Ванессы",null,null,"Ипостась Синтеза 296-Мерностного Синтезтела Матери Изначальности Изначально Вышестоящего Отца, Управления Синтеза Сары"]
[null,null,null,null,null,null,"Синтезтело Престола ИВО 268мерное",null,null,"Евдокия","Евдокии",null,null,"Ипостась Синтеза 295-Мерностного Синтезтела Праведника Изначальности Изначально Вышестоящего Отца, Управления Синтеза Алевтины"]
[null,null,null,null,null,null,"Синтезтело Веры ИВО 267мерное",null,null,"Клара","Клары",null,null,"Ипостась Синтеза 294-Мерностного Синтезтела Неизречённого Изначальности Изначально Вышестоящего Отца, Управления Синтеза Раисы"]
[null,null,null,null,null,null,"Синтезтело Чувствознания ИВО 266мерное",null,null,"Лиза","Лизы",null,null,"Ипостась Синтеза 293-Мерностного Синтезтела Всемогущего Изначальности Изначально Вышестоящего Отца, Управления Синтеза Авроры"]
[null,null,null,null,null,null,"Синтезтело Потенциала ИВО 265мерное",null,null,"Сюзанна","Сюзанны",null,null,"Ипостась Синтеза 292-Мерностного Синтезтела Предвечного Изначальности Изначально Вышестоящего Отца, Управления Синтеза Диланы"]
[null,null,null,null,null,null,"Синтезтело Мощи Отца ИВО 264мерное",null,null,"Сейла","Сейлы",null,null,"Ипостась Синтеза 291-Мерностного Синтезтела Предначального Изначальности Изначально Вышестоящего Отца, Управления Синтеза Яси"]
[null,null,null,null,null,null,"Синтезтело ИВДИВО Человека Планеты ИВО 263мерное",null,null,"Руслана","Русланы",null,null,"Ипостась Синтеза 290-Мерностного Синтезтела Вседержителя Изначальности Изначально Вышестоящего Отца, Управления Синтеза Фиры"]
[null,null,null,null,null,null,"Синтезтело Столпа ИВО 262мерное",null,null,"Устина","Устины",null,null,"Ипостась Синтеза 289-Мерностного Синтезтела Всевышнего Изначальности Изначально Вышестоящего Отца, Управления Синтеза Омелии"]
[null,null,null,null,null,null,"Синтезтело Сознания ИВО 261мерное",null,null,"Марика","Марики",null,null,"Ипостась Синтеза 288-Мерностного Синтезтела Человека Планеты Изначальности Изначально Вышестоящего Отца, Управления Синтеза Мадлен"]
[null,null,null,null,null,null,"Синтезтело Грааля ИВО 260мерное",null,null,"Франсуаза","Франсуазы",null,null,"Ипостась Синтеза 287-Мерностного Синтезтела Отца Метагалактики Изначально Вышестоящего Отца, Управления Синтеза Риммы"]
[null,null,null,null,null,null,"Синтезтело Синтезобраза ИВО 259мерное",null,null,"Христина","Христины",null,null,"Ипостась Синтеза 286-Мерностного Синтезтела Владыки Метагалактики Изначально Вышестоящего Отца, Управления Синтеза Беллы"]
[null,null,null,null,null,null,"Синтезтело Души ИВО 258мерное",null,null,"Иолана","Иоланы",null,null,"Ипостась Синтеза 285-Мерностного Синтезтела Учителя Метагалактики Изначально Вышестоящего Отца, Управления Синтеза Агнии"]
[null,null,null,null,null,null,"Синтезтело Слова Отца ИВО 257мерное",null,null,"Джесика","Джесики",null,null,"Ипостась Синтеза 284-Мерностного Синтезтела Логоса Метагалактики Изначально Вышестоящего Отца, Управления Синтеза Фелиции"]
[null,null,null,null,null,null,"Синтезтело Образа Отца ИВО 256мерное",null,null,"Сабина","Сабины",null,null,"Ипостась Синтеза 283-Мерностного Синтезтела Аватара Метагалактики Изначально Вышестоящего Отца, Управления Синтеза Виталины"]
[null,null,null,null,null,null,null,null,null,"Нелли","Нелли",null,null,"Ипостась Синтеза 282-Мерностного Синтезтела Ипостаси Метагалактики Изначально Вышестоящего Отца, Управления Синтеза Ноны"]
[null,null,null,null,null,null,null,null,null,"Санта","Санты",null,null,"Ипостась Синтеза 281-Мерностного Синтезтела Служащего Метагалактики Изначально Вышестоящего Отца, Управления Синтеза Клементины"]
[null,null,null,null,null,null,null,null,null,"Доротея","Доротеи",null,null,"Ипостась Синтеза 280-Мерностного Синтезтела Посвящённого Метагалактики Изначально Вышестоящего Отца, Управления Синтеза Лиры"]
[null,null,null,null,null,null,null,null,null,"Янина","Янины",null,null,"Ипостась Синтеза 279-Мерностного Синтезтела Полномочного Метагалактики Изначально Вышестоящего Отца, Управления Синтеза Ванессы"]
[null,null,null,null,null,null,null,null,null,"Люция","Люции",null,null,"Ипостась Синтеза 278-Мерностного Синтезтела Ману Метагалактики Изначально Вышестоящего Отца, Управления Синтеза Евдокии"]
[null,null,null,null,null,null,null,null,null,"Ирэн","Ирэн",null,null,"Ипостась Синтеза 277-Мерностного Синтезтела Теурга Метагалактики Изначально Вышестоящего Отца, Управления Синтеза Клары"]
[null,null,null,null,null,null,null,null,null,"Сесилия","Сесилии",null,null,"Ипостась Синтеза 276-Мерностного Синтезтела Творца Метагалактики Изначально Вышестоящего Отца, Управления Синтеза Лизы"]
[null,null,null,null,null,null,null,null,null,"Верислава","Вериславы",null,null,"Ипостась Синтеза 275-Мерностного Синтезтела Аспекта Метагалактики Изначально Вышестоящего Отца, Управления Синтеза Сюзанны"]
[null,null,null,null,null,null,null,null,null,"Станислава","Станиславы",null,null,"Ипостась Синтеза 274-Мерностного Синтезтела Майтрейи Метагалактики Изначально Вышестоящего Отца, Управления Синтеза Сейлы"]
[null,null,null,null,null,null,null,null,null,"Милослава","Милославы",null,null,"Ипостась Синтеза 273-Мерностного Синтезтела Христа Метагалактики Изначально Вышестоящего Отца, Управления Синтеза Русланы"]
[null,null,null,null,null,null,null,null,null,null,null,null,null,"Ипостась Синтеза 272-Мерностного Синтезтела Будды Метагалактики Изначально Вышестоящего Отца, Управления Синтеза Устины"]
[null,null,null,null,null,null,null,null,null,null,null,null,null,"Ипостась Синтеза 271-Мерностного Синтезтела ИВЧеловека Изначально Вышестоящего Отца Метагалактики, Управления Синтеза Марики"]
[null,null,null,null,null,null,null,null,null,null,null,null,null,"Ипостась Синтеза 270-Мерностного Синтезтела Человека Изначально Вышестоящего Отца Метагалактики, Управления Синтеза Франсуазы"]
[null,null,null,null,null,null,null,null,null,null,null,null,null,"Ипостась Синтеза 269-Мерностного Синтезтела Сына Метагалактики Изначально Вышестоящего Отца, Управления Синтеза Христины"]
[null,null,null,null,null,null,null,null,null,null,null,null,null,"Ипостась Синтеза 268-Мерностного Синтезтела Дочери Метагалактики Изначально Вышестоящего Отца, Управления Синтеза Иоланы"]
[null,null,null,null,null,null,null,null,null,null,null,null,null,"Ипостась Синтеза 267-Мерностного Синтезтела Человека Изначальной Метагалактики Метагалактики ИВОтца, Управления Синтеза Джесики"]
[null,null,null,null,null,null,null,null,null,null,null,null,null,"Ипостась Синтеза 266-Мерностного Синтезтела Человека Изначальности Метагалактики ИВышестоящего Отца, Управления Синтеза Сабины"]
[null,null,null,null,null,null,null,null,null,null,null,null,null,"Ипостась Синтеза 265-Мерностного Синтезтела Человека Метагалактики Изначально Вышестоящего Отца, Управления Синтеза Нелли"]
[null,null,null,null,null,null,null,null,null,null,null,null,null,"Ипостась Синтеза 264-Мерностного Синтезтела Матери Метагалактики Изначально Вышестоящего Отца, Управления Синтеза Санты"]
[null,null,null,null,null,null,null,null,null,null,null,null,null,"Ипостась Синтеза 263-Мерностного Синтезтела Праведника Метагалактики Изначально Вышестоящего Отца, Управления Синтеза Доротеи"]
[null,null,null,null,null,null,null,null,null,null,null,null,null,"Ипостась Синтеза 262-Мерностного Синтезтела Неизречённого Метагалактики Изначально Вышестоящего Отца, Управления Синтеза Янины"]
[null,null,null,null,null,null,null,null,null,null,null,null,null,"Ипостась Синтеза 261-Мерностного Синтезтела Всемогущего Метагалактики Изначально Вышестоящего Отца, Управления Синтеза Люции"]
[null,null,null,null,null,null,null,null,null,null,null,null,null,"Ипостась Синтеза 260-Мерностного Синтезтела Предвечного Метагалактики Изначально Вышестоящего Отца, Управления Синтеза Ирэн"]
[null,null,null,null,null,null,null,null,null,null,null,null,null,"Ипостась Синтеза 259-Мерностного Синтезтела Предначального Метагалактики Изначально Вышестоящего Отца, Управления Синтеза Сесилии"]
[null,null,null,null,null,null,null,null,null,null,null,null,null,"Ипостась Синтеза 258-Мерностного Синтезтела Вседержителя Метагалактики Изначально Вышестоящего Отца, Управления Синтеза Вериславы"]
[null,null,null,null,null,null,null,null,null,null,null,null,null,"Ипостась Синтеза 257-Мерностного Синтезтела Всевышнего Метагалактики Изначально Вышестоящего Отца, Управления Синтеза Станиславы"]
[null,null,null,null,null,null,null,null,null,null,null,null,null,"Ипостась Синтеза 256-Мерностного Синтезтела Человека Планеты Метагалактики Изначально Вышестоящего Отца, Управления Синтеза Милославы"]